Workbook

Sheet Production (hidden)
D1: Solid Manure Production Volume
B3: Species | D3: Daily | G3: Monthly | J3: Yearly
D4: lbs | E4: kgs | F4: cu ft | G4: lbs | H4: kgs | I4: cu ft | J4: tons | K4: tonnes | L4: cu ft
B5: Beef | C5: Feeders | D5: 8.4 | E5: 3.8 | F5: 0.21 | G5: 250 | H5: 110 | I5: 6.2 | J5: 1.53 | K5: 1.39 | L5: 75
B6: Beef | C6: Finishers – Open Lot | D6: 13.1 | E6: 5.9 | F6: 0.32 | G6: 390 | H6: 180 | I6: 9.6 | J6: 2.38 | K6: 2.16 | L6: 117
B7: Beef | C7: Finishers – Paved Lot | D7: 19.8 | E7: 9 | F7: 0.43 | G7: 590 | H7: 270 | I7: 12.8 | J7: 3.61 | K7: 3.28 | L7: 156
B8: Beef | C8: Feeder Calves <550 lbs | D8: 3.3 | E8: 1.5 | F8: 0.08 | G8: 100 | H8: 50 | I8: 2.4 | J8: 0.59 | K8: 0.54 | L8: 29
B9: Beef | C9: Cow w/Calf | D9: 17.8 | E9: 8.1 | F9: 0.44 | G9: 530 | H9: 240 | I9: 13.1 | J9: 3.25 | K9: 2.95 | L9: 159
B10: Beef | C10: Cows/Bulls | D10: 16.5 | E10: 7.5 | F10: 0.4 | G10: 500 | H10: 230 | I10: 12.1 | J10: 3.02 | K10: 2.73 | L10: 147
B11: Dairy | C11: Tie Stall | D11: 139.7 | E11: 63.5 | F11: 2.66 | G11: 4190 | H11: 1900 | I11: 79.7 | J11: 25.5 | K11: 23.12 | L11: 970
B12: Dairy | C12: Loose Housing | D12: 146.3 | E12: 66.5 | F12: 2.78 | G12: 4390 | H12: 2000 | I12: 83.5 | J12: 26.71 | K12: 24.21 | L12: 1016
B13: Dairy | C13: Replacements | D13: 42.9 | E13: 19.5 | F13: 0.82 | G13: 1290 | H13: 590 | I13: 24.5 | J13: 7.83 | K13: 7.1 | L13: 298
B14: Dairy | C14: Calves | D14: 2.9 | E14: 1.3 | F14: 0.07 | G14: 90 | H14: 40 | I14: 2.1 | J14: 0.54 | K14: 0.49 | L14: 26
B15: Swine | C15: Farrow to Finish | D15: 86.4 | E15: 39.3 | F15: 1.74 | G15: 2590 | H15: 1180 | I15: 52.3 | J15: 15.76 | K15: 14.29 | L15: 637
B16: Swine | C16: Farrow to Wean | D16: 26.6 | E16: 12.1 | F16: 0.54 | G16: 800 | H16: 360 | I16: 16.1 | J16: 4.85 | K16: 4.4 | L16: 196
B17: Swine | C17: Farrowing | D17: 21.3 | E17: 9.7 | F17: 0.43 | G17: 640 | H17: 290 | I17: 12.9 | J17: 3.88 | K17: 3.52 | L17: 157
B18: Swine | C18: Weaner | D18: 2.8 | E18: 1.3 | F18: 0.06 | G18: 80 | H18: 40 | I18: 1.7 | J18: 0.5 | K18: 0.46 | L18: 20
B19: Swine | C19: Feeder | D19: 8.2 | E19: 3.7 | F19: 0.17 | G19: 250 | H19: 110 | I19: 5 | J19: 1.5 | K19: 1.36 | L19: 61
A20: (per 100) | B20: Poultry | C20: Layers – Belt Cage | D20: 9.9 | E20: 4.5 | F20: 0.41 | G20: 300 | H20: 140 | I20: 12.3 | J20: 1.81 | K20: 1.64 | L20: 149
B21: Poultry | C21: Layers – Deep Pit | D21: 13 | E21: 5.9 | F21: 0.31 | G21: 390 | H21: 180 | I21: 9.2 | J21: 2.37 | K21: 2.15 | L21: 112
B22: Poultry | C22: Broilers | D22: 6 | E22: 2.7 | F22: 0.3 | G22: 180 | H22: 82 | I22: 8.9 | J22: 1.09 | K22: 0.99 | L22: 108
B23: Poultry | C23: Broiler Breeders | D23: 15.8 | E23: 7.2 | F23: 0.59 | G23: 480 | H23: 220 | I23: 17.8 | J23: 2.89 | K23: 2.62 | L23: 217
B24: Poultry | C24: Layer Breeders | D24: 11.7 | E24: 5.3 | F24: 0.53 | G24: 350 | H24: 160 | I24: 15.8 | J24: 2.13 | K24: 1.93 | L24: 192
B25: Poultry | C25: Pullets | D25: 6 | E25: 2.7 | F25: 0.15 | G25: 180 | H25: 80 | I25: 4.6 | J25: 1.09 | K25: 0.99 | L25: 56
B26: Turkey | C26: Turkey Hens (Light) | D26: 13.6 | E26: 6.2 | F26: 0.85 | G26: 410 | H26: 190 | I26: 25.4 | J26: 2.49 | K26: 2.26 | L26: 309
B27: Turkey | C27: Turkey Toms (Heavy) | D27: 19.8 | E27: 9 | F27: 1.28 | G27: 590 | H27: 270 | I27: 38.5 | J27: 3.61 | K27: 3.28 | L27: 468
B28: Turkey | C28: Turkey Broilers | D28: 11 | E28: 5 | F28: 0.51 | G28: 330 | H28: 150 | I28: 15.3 | J28: 0.01 | K28: 1.82 | L28: 186
B29: Horses | C29: PMU | D29: 45.8 | E29: 20.8 | F29: 0.92 | G29: 1370 | H29: 620 | I29: 27.7 | J29: 8.35 | K29: 7.57 | L29: 337
B30: Horses | C30: Feedlot | D30: 15.2 | E30: 6.9 | F30: 0.46 | G30: 460 | H30: 210 | I30: 13.9 | J30: 2.77 | K30: 2.51 | L30: 169
B31: Horses | C31: Donkeys | D31: 7.6 | E31: 3.5 | F31: 0.23 | G31: 230 | H31: 100 | I31: 6.9 | J31: 1.39 | K31: 1.26 | L31: 84
B32: Horses | C32: Mules | D32: 11.4 | E32: 5.2 | F32: 0.35 | G32: 340 | H32: 150 | I32: 10.4 | J32: 2.08 | K32: 1.89 | L32: 127
B33: Fur Farms | C33: Mink (per 100) | D33: 30.8 | E33: 14 | F33: 0.71 | G33: 920 | H33: 420 | I33: 21.3 | J33: 5.62 | K33: 5.1 | L33: 260
C34: Fox (per 100) | D34: 77 | E34: 35 | F34: 1.24 | G34: 2310 | H34: 1050 | I34: 37.3 | J34: 14.05 | K34: 12.74 | L34: 454
C35: Rabbits (per 100) | D35: 100.1 | E35: 45.5 | F35: 2.49 | G35: 3000 | H35: 1360 | I35: 74.7 | J35: 18.27 | K35: 16.56 | L35: 908
B36: Cervid | C36: Elk | D36: 5.8 | E36: 2.6 | F36: 0.14 | G36: 170 | H36: 77 | I36: 4.3 | J36: 1.06 | K36: 0.96 | L36: 52
B37: Cervid | C37: Deer | D37: 2.9 | E37: 1.3 | F37: 0.07 | G37: 90 | H37: 40 | I37: 2.1 | J37: 0.52 | K37: 0.47 | L37: 25
B38: Sheep | C38: Bison | D38: 7.3 | E38: 3.3 | F38: 0.18 | G38: 220 | H38: 100 | I38: 5.3 | J38: 1.32 | K38: 1.2 | L38: 65
B39: Sheep | C39: Alpaca/Llama | D39: 4.6 | E39: 2.1 | F39: 0.15 | G39: 140 | H39: 60 | I39: 4.5 | J39: 0.84 | K39: 0.76 | L39: 55
B40: Sheep | C40: Ewes w/Lambs | D40: 3.9 | E40: 1.8 | F40: 0.13 | G40: 120 | H40: 55 | I40: 3.8 | J40: 0.71 | K40: 0.64 | L40: 46
B41: Sheep | C41: Ewes/Rams | D41: 3.1 | E41: 1.4 | F41: 0.1 | G41: 90 | H41: 41 | I41: 3 | J41: 0.57 | K41: 0.51 | L41: 37
B42: Sheep | C42: Feeders | D42: 1.5 | E42: 0.7 | F42: 0.05 | G42: 50 | H42: 23 | I42: 1.5 | J42: 0.28 | K42: 0.25 | L42: 18
B43: Sheep | C43: Lambs | D43: 0.8 | E43: 0.4 | F43: 0.02 | G43: 23 | H43: 11 | I43: 0.7 | J43: 0.14 | K43: 0.13 | L43: 9
B44: Goats | C44: Meat/Milk (per Ewe) | D44: 5.9 | E44: 2.7 | F44: 0.19 | G44: 180 | H44: 80 | I44: 5.8 | J44: 1.08 | K44: 0.98 | L44: 70
B45: Goats | C45: Feeders | D45: 0.6 | E45: 0.3 | F45: 0.02 | G45: 20 | H45: 10 | I45: 0.5 | J45: 0.1 | K45: 0.09 | L45: 6
B46: Goats | C46: Nannies/Billies | D46: 3.1 | E46: 1.4 | F46: 0.1 | G46: 90 | H46: 40 | I46: 3 | J46: 0.56 | K46: 0.51 | L46: 36
B47: Ratite | C47: Emu | D47: 1.3 | E47: 0.6 | F47: 0.08 | G47: 40 | H47: 20 | I47: 2.4 | J47: 0.24 | K47: 0.22 | L47: 29
C48: Ostrich | D48: 2.4 | E48: 1.1 | F48: 0.15 | G48: 70 | H48: 30 | I48: 4.4 | J48: 0.44 | K48: 0.4 | L48: 53

Sheet NH3 Loss (hidden)
A1: Expected Ammonia Loss from Manure
D2: Ammonia Loss Coeffieicients
A3: Manure Appliation and Incorporation | B3: Average | C3: Cool-Wet | D3: Cool-Dry | E3: Warm-Wet | F3: Warm-Dry
A5: Surface Applied, No Incorporation | B5: 0.66 | C5: 0.4 | D5: 0.5 | E5: 0.75 | F5: 1
A6: Surface Applied, Incorporated within 1 day | B6: 0.25 | C6: 0.1 | D6: 0.15 | E6: 0.31 | F6: 0.5
A7: Surface Applied, Incorporated 1-2 days | B7: 0.3 | C7: 0.13 | D7: 0.19 | E7: 0.38 | F7: 0.57
A8: Surface Applied, Incorporated 2-3 days | B8: 0.35 | C8: 0.15 | D8: 0.22 | E8: 0.44 | F8: 0.65
A9: Surface Applied, Incorporated 3-4 days | B9: 0.4 | C9: 0.17 | D9: 0.26 | E9: 0.5 | F9: 0.72
A10: Surface Applied, Incorporated 4-5 days | B10: 0.45 | C10: 0.2 | D10: 0.3 | E10: 0.75 | F10: 0.8
A11: Injected | B11: 0 | C11: 0 | D11: 0 | E11: 0 | F11: 0
A12: Cover Crop | B12: 0.35 | C12: 0.25 | D12: 0.25 | E12: 0.4 | F12: 0.5

Sheet Overview
C5: The calculator is designed to assist in the determination of the most economically beneficial and cost effective fields (area) to which manure can be transported and utilized.
C7: Instructions
C9: You may move from worksheet to worksheet by clicking on the dark blue buttons
C10: located at the top of each worksheet or the blue tabs at the bottom of this workbook.
C12: Enter data in only the white cells with gray borders:
C13: or use the drop down boxes:
C15: Supply Assessment
C16: Estimate the potential volume of manure produced by the operation and the nutrient content (nitrogen, phosphorus, potassium, sulphur) of the manure. In place of estimated book values, actual volumes and nutrient content of the manure can be entered here. Actual amounts, where available, will be utilized by the model.
C17: Application
C18: Details the manure application equipment utilized, application method employed, and source of manure. An estimate of the expected Nitrogen loss for a given application method and incorporation delay is calculated.
C19: Commercial Fertilizer Inputs
C20: Estimates of manure nutrient values are calculated based on fertilizer prices.
C21: Field Identification
C22: The user inputs a unique field ID and characteristics for up to 6 different fields, along with a 5 year cropping plan for each field. Lab fertility recommendations for year 1 of each crop are entered here.
C23: Analysis1 - 5 Year Cost
C24: The cost of loading, transporting, and spreading manure as well as the economc return from applied nutrients is determined for each field, based on the 5 year cropping plan and fertlity requirements. These calculations optimize the manure application based on it's Nitrogen content and will utilize only the amount of manure necessary to meet that field's nutrient demands.
C25: Summary1
C26: Print a one page summary for a selected field's 5 Year Value/Cost of applying available manure. Separate comparisons for each field can be printed.
C27: Analysis2 - Compare 2 Fields Side-by-Side
C28: Utilizing the same demand inputs as above, this tab compares the cost of loading, transporting and spreading manure applied in year 1, for 2 fields or compares different application parameters within the same field. Calculates the Net Nutrient Value of the year 1 application of manure over a 5 year time horizon for each field.
C29: Summary2
C30: Print a one page summary for any 2 selected fields showing the 5 Year Value/Cost of applying available manure.

Sheet Manure Supply
B8: Livestock:
D9: Select Species | F9: Select Class | H9: Number of Animals | J9: Select Manure Type | L9: Accum. Time (Days)
C10: 1
C12: 2
C14: 3
D20: Calculated | F20: Actual | J20: N | L20: P | N20: K | P20: S | T20: N | V20: P | X20: K | Z20: S
C21: Solid | D21: =Tables!BB53 -> 0 | J21: =Tables!BC87 -> 0 | L21: =Tables!BF87/2.29 -> 0 | N21: =Tables!BG87/1.2 -> 0 | P21: =Tables!BH87 -> 0
C23: Liquid | D23: =Tables!BB54 -> 0 | J23: =Tables!BC88 -> 0 | K23: =SUM(Tables!$BB$7*Tables!BF7,Tables!$BB$23*Tables!BF23,Tables!$BB$39*Tables!BF39)/SUM(Tables!$BB$7,Tables!$BB$23,Tables!$BB$39) -> 0.0019465 | L23: =Tables!BF88/2.29 -> 0 | N23: =Tables!BG88/1.2 -> 0 | P23: =Tables!BH88 -> 0

Sheet Application
C10: Solid Manure | J10: Liquid Manure
C11: Select Application Method | J11: Select Application Method | N11: Select Manure Supply Location
C14: Select Incorporation | J14: Select Incorporation
C17: Select Incorporation Lag | J17: Select Incorporation Lag
B20: =Tables!BV6 -> 0.25 | J20: =Tables!BV29 -> 0.25
C24: Solid Manure Equipment Variables: | J24: ="Liquid Manure Equipment Variables - "&IF(Tables!$BS$29=1,"Injection:","Broadcast:") -> Liquid Manure Equipment Variables - Broadcast:
D25: User Values | F25: Default Values | K25: User Values | M25: Default Values
C26: Spreader Hopper Size | F26: =Tables!$BZ$67 -> 250 | G26: cu. ft. | J26: Tank Size | M26: =IF(Tables!$BS$29=1,Tables!$BZ$89,Tables!$BZ$101) -> 3300 | N26: imp. gal.
C28: Hopper Fill Time | F28: =Tables!$BZ$68 -> 5 | G28: minutes | J28: Tank Fill Time | M28: =IF(Tables!$BS$29=1,Tables!$BZ$90,Tables!$BZ$102) -> 6 | N28: minutes
C30: Road Speed | F30: =Tables!$BZ$69 -> 15 | G30: mph | J30: Road Speed | M30: =IF(Tables!$BS$29=1,Tables!$BZ$91,Tables!$BZ$103) -> 15 | N30: mph
C32: Field Speed | F32: =Tables!$BZ$70 -> 4 | G32: mph | J32: Field Speed | M32: =IF(Tables!$BS$29=1,Tables!$BZ$92,Tables!$BZ$104) -> 4 | N32: mph
C34: Equip/Labour Rate | F34: =Tables!$BZ$73 -> 50.77 | G34: per hr | J34: Equip/Labour Rate | M34: =IF(Tables!$BS$29=1,Tables!$BZ$94,Tables!$BZ$106) -> 50.77 | N34: per hr

Sheet Commercial Fertilizer
E9: $/lb | J9: Type / Blend | K9: N | L9: P2O5 | M9: K2O | N9: S | O9: Fertilizer Cost/tonne
D10: NH3 | E10: =$O$10/(2205*$K$10) -> 0.3594933909 | J10: Anhydrous Ammonia (82-0-0) | K10: 0.82 | L10: 0 | M10: 0 | N10: 0 | O10: 650
D11: N | E11: =$O$11/(2205*$K$11) -> 0.5028098196 | J11: Urea (46-0-0) | K11: 0.46 | L11: 0 | M11: 0 | N11: 0 | O11: 510
D12: P2O5 | E12: =(O13-2205*K13*E11)/(2205*L13) -> 0.3863975914 | J12: Ammonium Phosphate Sulphate (16-20-0-13) | K12: 0.16 | L12: 0.2 | M12: 0 | N12: 0.13
D13: K2O | E13: =$O$16/(2205*$M$16) -> 0.3779289494 | J13: Monoammonium Phosphate (11-52-0) | K13: 0.11 | L13: 0.52 | M13: 0 | N13: 0 | O13: 565
D14: S | E14: =(O17-2205*K17*E13)/(2205*N17) -> 0.2047115142 | J14: Urea Ammonium Phosphate (28-26-0) | K14: 0.28 | L14: 0.26 | M14: 0 | N14: 0
J15: Urea Ammonium Phosphate (34-17-0) | K15: 0.34 | L15: 0.17 | M15: 0 | N15: 0
J16: Potash (0-0-60) | K16: 0 | L16: 0 | M16: 0.6 | N16: 0 | O16: 500
J17: Ammonium Sulphate (20-0-0-24) | K17: 0.2 | L17: 0 | M17: 0 | N17: 0.24 | O17: 275
J18: Potassium Sulphate (0-0-50-18) | K18: 0 | L18: 0 | M18: 0.5 | N18: 0.18
J19: Elemental Sulphur (0-0-0-90) | K19: 0 | L19: 0 | M19: 0 | N19: 0.9
J20: Ammonium Nitrate (20-0-0) Liquid | K20: 0.2 | L20: 0 | M20: 0 | N20: 0
J21: Urea Ammonium Nitrate (28-0-0) Liquid | K21: 0.28 | L21: 0 | M21: 0 | N21: 0
J22: Urea Ammonium Nitrate (32-0-0) Liquid | K22: 0.32 | L22: 0 | M22: 0 | N22: 0
J23: Aqua Ammonia (20-0-0) Liquid | K23: 0.2 | L23: 0 | M23: 0 | N23: 0
J24: Aqua Ammonia (24-0-0) Liquid | K24: 0.24 | L24: 0 | M24: 0 | N24: 0
J25: Ammonium Polyphosphate (10-34-0) Liquid | K25: 0.1 | L25: 0.34 | M25: 0 | N25: 0
J26: Ammonium Phosphate Potassium (3-10-10) Liquid | K26: 0.03 | L26: 0.1 | M26: 0.1 | N26: 0

Sheet Field Identification
K7: Distance from Manure (mi) | M7: Spreadable Size (acres)
B8: Field ID (Legal Description or Name) | R8: Year 1 Crops | V8: N | X8: P | Z8: K | AB8: S
C9: 1 | K9: 1 | M9: 75 | R9: =IF(ISBLANK($E$22),"",$E$22) -> 
C10: 2 | K10: 1 | M10: 75 | R10: =IF(ISBLANK($T$22),"",$T$22) -> 
C11: 3 | K11: 2 | M11: 45 | R11: =IF(ISBLANK($E$37),"",$E$37) -> 
C12: 4 | K12: 2 | M12: 55 | R12: =IF(ISBLANK($T$37),"",$T$37) -> 
C13: 5 | K13: 2 | M13: 90 | R13: =IF(ISBLANK($E$52),"",$E$52) -> 
C14: 6 | K14: 2 | M14: 135 | R14: =IF(ISBLANK($T$52),"",$T$52) -> 
M18: =IF($D$9="","",$D$9) ->  | N18: 1 | AB18: =IF($D$10="","",$D$10) ->  | AC18: 2
E20: Crop Planned | K20: Acres | M20: Target Yield | T20: Crop Planned | Z20: Acres | AB20: Target Yield
I21: Moisture | X21: Moisture
D22: Year 1 | I22: 0.5 | K22: =IF($M$18="","",VLOOKUP($N$18,FieldID,11,FALSE)) ->  | N22: =IF(ISBLANK(E22),"",IF(VLOOKUP(E22,NutrientUptakeTable,2,FALSE)="tons","tons/acre","bu/acre")) ->  | S22: Year 1 | X22: 0.2 | Z22: =IF($AB$18="","",VLOOKUP($AC$18,FieldID,11,FALSE)) ->  | AC22: =IF(ISBLANK(T22),"",IF(VLOOKUP(T22,NutrientUptakeTable,2,FALSE)="tons","tons/acre","bu/acre")) -> 
I23: Moisture | X23: Moisture
D24: Year 2 | I24: 0.3 | K24: =IF($M$18="","",VLOOKUP($N$18,FieldID,11,FALSE)) ->  | N24: =IF(ISBLANK(E24),"",IF(VLOOKUP(E24,NutrientUptakeTable,2,FALSE)="tons","tons/acre","bu/acre")) ->  | S24: Year 2 | X24: 0.3 | Z24: =IF($AB$18="","",VLOOKUP($AC$18,FieldID,11,FALSE)) ->  | AC24: =IF(ISBLANK(T24),"",IF(VLOOKUP(T24,NutrientUptakeTable,2,FALSE)="tons","tons/acre","bu/acre")) -> 
I25: Moisture | X25: Moisture
D26: Year 3 | I26: 0.4 | K26: =IF($M$18="","",VLOOKUP($N$18,FieldID,11,FALSE)) ->  | N26: =IF(ISBLANK(E26),"",IF(VLOOKUP(E26,NutrientUptakeTable,2,FALSE)="tons","tons/acre","bu/acre")) ->  | S26: Year 3 | X26: 0.3 | Z26: =IF($AB$18="","",VLOOKUP($AC$18,FieldID,11,FALSE)) ->  | AC26: =IF(ISBLANK(T26),"",IF(VLOOKUP(T26,NutrientUptakeTable,2,FALSE)="tons","tons/acre","bu/acre")) -> 
I27: Moisture | X27: Moisture
D28: Year 4 | I28: 0.5 | K28: =IF($M$18="","",VLOOKUP($N$18,FieldID,11,FALSE)) ->  | N28: =IF(ISBLANK(E28),"",IF(VLOOKUP(E28,NutrientUptakeTable,2,FALSE)="tons","tons/acre","bu/acre")) ->  | S28: Year 4 | X28: 0.3 | Z28: =IF($AB$18="","",VLOOKUP($AC$18,FieldID,11,FALSE)) ->  | AC28: =IF(ISBLANK(T28),"",IF(VLOOKUP(T28,NutrientUptakeTable,2,FALSE)="tons","tons/acre","bu/acre")) -> 
I29: Moisture | X29: Moisture
D30: Year 5 | I30: 0.05 | K30: =IF($M$18="","",VLOOKUP($N$18,FieldID,11,FALSE)) ->  | N30: =IF(ISBLANK(E30),"",IF(VLOOKUP(E30,NutrientUptakeTable,2,FALSE)="tons","tons/acre","bu/acre")) ->  | S30: Year 5 | X30: 0.3 | Z30: =IF($AB$18="","",VLOOKUP($AC$18,FieldID,11,FALSE)) ->  | AC30: =IF(ISBLANK(T30),"",IF(VLOOKUP(T30,NutrientUptakeTable,2,FALSE)="tons","tons/acre","bu/acre")) -> 
M33: =IF($D$11="","",$D$11) ->  | N33: 3 | AB33: =IF($D$12="","",$D$12) ->  | AC33: 4
E35: Crop Planned | K35: Acres | M35: Target Yield | T35: Crop Planned | Z35: Acres | AB35: Target Yield
I36: Moisture | X36: Moisture
D37: Year 1 | I37: 0.3 | K37: =IF($M$33="","",VLOOKUP($N$33,FieldID,11,FALSE)) ->  | N37: =IF(ISBLANK(E37),"",IF(VLOOKUP(E37,NutrientUptakeTable,2,FALSE)="tons","tons/acre","bu/acre")) ->  | S37: Year 1 | X37: 0.3 | Z37: =IF($AB$33="","",VLOOKUP($AC$33,FieldID,11,FALSE)) ->  | AC37: =IF(ISBLANK(T37),"",IF(VLOOKUP(T37,NutrientUptakeTable,2,FALSE)="tons","tons/acre","bu/acre")) -> 
I38: Moisture | X38: Moisture
D39: Year 2 | I39: 0.3 | K39: =IF($M$33="","",VLOOKUP($N$33,FieldID,11,FALSE)) ->  | N39: =IF(ISBLANK(E39),"",IF(VLOOKUP(E39,NutrientUptakeTable,2,FALSE)="tons","tons/acre","bu/acre")) ->  | S39: Year 2 | X39: 0.3 | Z39: =IF($AB$33="","",VLOOKUP($AC$33,FieldID,11,FALSE)) ->  | AC39: =IF(ISBLANK(T39),"",IF(VLOOKUP(T39,NutrientUptakeTable,2,FALSE)="tons","tons/acre","bu/acre")) -> 
I40: Moisture | X40: Moisture
D41: Year 3 | I41: 0.4 | K41: =IF($M$33="","",VLOOKUP($N$33,FieldID,11,FALSE)) ->  | N41: =IF(ISBLANK(E41),"",IF(VLOOKUP(E41,NutrientUptakeTable,2,FALSE)="tons","tons/acre","bu/acre")) ->  | S41: Year 3 | X41: 0.3 | Z41: =IF($AB$33="","",VLOOKUP($AC$33,FieldID,11,FALSE)) ->  | AC41: =IF(ISBLANK(T41),"",IF(VLOOKUP(T41,NutrientUptakeTable,2,FALSE)="tons","tons/acre","bu/acre")) -> 
I42: Moisture | X42: Moisture
D43: Year 4 | I43: 0.05 | K43: =IF($M$33="","",VLOOKUP($N$33,FieldID,11,FALSE)) ->  | N43: =IF(ISBLANK(E43),"",IF(VLOOKUP(E43,NutrientUptakeTable,2,FALSE)="tons","tons/acre","bu/acre")) ->  | S43: Year 4 | X43: 0.3 | Z43: =IF($AB$33="","",VLOOKUP($AC$33,FieldID,11,FALSE)) ->  | AC43: =IF(ISBLANK(T43),"",IF(VLOOKUP(T43,NutrientUptakeTable,2,FALSE)="tons","tons/acre","bu/acre")) -> 
I44: Moisture | X44: Moisture
D45: Year 5 | I45: 0.05 | K45: =IF($M$33="","",VLOOKUP($N$33,FieldID,11,FALSE)) ->  | N45: =IF(ISBLANK(E45),"",IF(VLOOKUP(E45,NutrientUptakeTable,2,FALSE)="tons","tons/acre","bu/acre")) ->  | S45: Year 5 | X45: 0.3 | Z45: =IF($AB$33="","",VLOOKUP($AC$33,FieldID,11,FALSE)) ->  | AC45: =IF(ISBLANK(T45),"",IF(VLOOKUP(T45,NutrientUptakeTable,2,FALSE)="tons","tons/acre","bu/acre")) -> 
M48: =IF($D$13="","",$D$13) ->  | N48: 5 | AB48: =IF($D$14="","",$D$14) ->  | AC48: 6
E50: Crop Planned | K50: Acres | M50: Target Yield | T50: Crop Planned | Z50: Acres | AB50: Target Yield
I51: Moisture | X51: Moisture
D52: Year 1 | I52: 0.3 | K52: =IF($M$48="","",VLOOKUP($N$48,FieldID,11,FALSE)) ->  | N52: =IF(ISBLANK(E52),"",IF(VLOOKUP(E52,NutrientUptakeTable,2,FALSE)="tons","tons/acre","bu/acre")) ->  | S52: Year 1 | X52: 0.3 | Z52: =IF($AB$48="","",VLOOKUP($AC$48,FieldID,11,FALSE)) ->  | AC52: =IF(ISBLANK(T52),"",IF(VLOOKUP(T52,NutrientUptakeTable,2,FALSE)="tons","tons/acre","bu/acre")) -> 
I53: Moisture | X53: Moisture
D54: Year 2 | I54: 0.3 | K54: =IF($M$48="","",VLOOKUP($N$48,FieldID,11,FALSE)) ->  | N54: =IF(ISBLANK(E54),"",IF(VLOOKUP(E54,NutrientUptakeTable,2,FALSE)="tons","tons/acre","bu/acre")) ->  | S54: Year 2 | X54: 0.3 | Z54: =IF($AB$48="","",VLOOKUP($AC$48,FieldID,11,FALSE)) ->  | AC54: =IF(ISBLANK(T54),"",IF(VLOOKUP(T54,NutrientUptakeTable,2,FALSE)="tons","tons/acre","bu/acre")) -> 
I55: Moisture | X55: Moisture
D56: Year 3 | I56: 0.4 | K56: =IF($M$48="","",VLOOKUP($N$48,FieldID,11,FALSE)) ->  | N56: =IF(ISBLANK(E56),"",IF(VLOOKUP(E56,NutrientUptakeTable,2,FALSE)="tons","tons/acre","bu/acre")) ->  | S56: Year 3 | X56: 0.3 | Z56: =IF($AB$48="","",VLOOKUP($AC$48,FieldID,11,FALSE)) ->  | AC56: =IF(ISBLANK(T56),"",IF(VLOOKUP(T56,NutrientUptakeTable,2,FALSE)="tons","tons/acre","bu/acre")) -> 
I57: Moisture | X57: Moisture
D58: Year 4 | I58: 0.05 | K58: =IF($M$48="","",VLOOKUP($N$48,FieldID,11,FALSE)) ->  | N58: =IF(ISBLANK(E58),"",IF(VLOOKUP(E58,NutrientUptakeTable,2,FALSE)="tons","tons/acre","bu/acre")) ->  | S58: Year 4 | X58: 0.3 | Z58: =IF($AB$48="","",VLOOKUP($AC$48,FieldID,11,FALSE)) ->  | AC58: =IF(ISBLANK(T58),"",IF(VLOOKUP(T58,NutrientUptakeTable,2,FALSE)="tons","tons/acre","bu/acre")) -> 
I59: Moisture | X59: Moisture
D60: Year 5 | I60: 0.05 | K60: =IF($M$48="","",VLOOKUP($N$48,FieldID,11,FALSE)) ->  | N60: =IF(ISBLANK(E60),"",IF(VLOOKUP(E60,NutrientUptakeTable,2,FALSE)="tons","tons/acre","bu/acre")) ->  | S60: Year 5 | X60: 0.3 | Z60: =IF($AB$48="","",VLOOKUP($AC$48,FieldID,11,FALSE)) ->  | AC60: =IF(ISBLANK(T60),"",IF(VLOOKUP(T60,NutrientUptakeTable,2,FALSE)="tons","tons/acre","bu/acre")) -> 

Sheet Analysis1 - 5 Year Cost
G7: Distance from Manure (mi) | I7: Spreadable Size (acres)
D8: Select a Field to Assess | M8: N | O8: P | Q8: K | S8: S | W8: N | Y8: P2O5 | AA8: K2O | AC8: S
G9: =INDEX(FieldID,$J$12,9) -> 1 | I9: =INDEX(FieldID,$J$12,11) -> 75 | M9: =INDEX(LabNutrientRecommendations,$J$12,MATCH(M$8,$M$8:$S$8,0)) -> 0 | O9: =INDEX(LabNutrientRecommendations,$J$12,MATCH(O$8,$M$8:$S$8,0)) -> 0 | Q9: =INDEX(LabNutrientRecommendations,$J$12,MATCH(Q$8,$M$8:$S$8,0)) -> 0 | S9: =INDEX(LabNutrientRecommendations,$J$12,MATCH(S$8,$M$8:$S$8,0)) -> 0
I12: =INDEX([0]!FieldID,$J$12,2) -> 0 | J12: 1 | K12: 1
E13: Crop Planned | F13: Moisture | G13: Acres | I13: Target Yield | M13: N | O13: P2O5 | Q13: K2O | S13: S | AN13: N | AP13: P2O5 | AR13: K2O | AT13: S
D15: Year 1 | E15: =INDEX(INDIRECT("CropProdPlan"&$J$12),ROWS($D$15:$D15),2) -> 0 | F15: =IF(ISERROR(MATCH($E15,MoistureContentRequired,0)),"",INDEX(INDIRECT("CropProdPlan"&$J$12),ROWS($D$15:$D15),6)) ->  | G15: =INDEX(INDIRECT("CropProdPlan"&$J$12),ROWS($D$15:$D15),8) ->  | I15: =INDEX(INDIRECT("CropProdPlan"&$J$12),ROWS($D$15:$D15),10) -> 0 | J15: =INDEX(INDIRECT("CropProdPlan"&$J$12),ROWS($D$15:$D15),11) ->  | M15: =IF(ISBLANK($E15),"",INDEX(NutrientUptakeTable,MATCH($E15,CropList,0),MATCH(M$13,Tables!$D$6:$I$6,0)))*$I15*IF(ISERROR(MATCH($E15,MoistureContentRequired,0)),1,(1-$F15)/INDEX(Tables!$C$25:$C$40,MATCH($E15,MoistureContentRequired,0),1)) ->  | O15: =IF(ISBLANK($E15),"",INDEX(NutrientUptakeTable,MATCH($E15,CropList,0),MATCH(O$13,Tables!$D$6:$I$6,0)))*$I15*IF(ISERROR(MATCH($E15,MoistureContentRequired,0)),1,(1-$F15)/INDEX(Tables!$C$25:$C$40,MATCH($E15,MoistureContentRequired,0),1)) ->  | Q15: =IF(ISBLANK($E15),"",INDEX(NutrientUptakeTable,MATCH($E15,CropList,0),MATCH(Q$13,Tables!$D$6:$I$6,0)))*$I15*IF(ISERROR(MATCH($E15,MoistureContentRequired,0)),1,(1-$F15)/INDEX(Tables!$C$25:$C$40,MATCH($E15,MoistureContentRequired,0),1)) ->  | S15: =IF(ISBLANK($E15),"",INDEX(NutrientUptakeTable,MATCH($E15,CropList,0),MATCH(S$13,Tables!$D$6:$I$6,0)))*$I15*IF(ISERROR(MATCH($E15,MoistureContentRequired,0)),1,(1-$F15)/INDEX(Tables!$C$25:$C$40,MATCH($E15,MoistureContentRequired,0),1)) ->  | AL15: Year 1 | AN15: =IF(ISBLANK(W9),IF(M9=0,M15,M9),W9) ->  | AP15: =IF(ISBLANK(Y9),IF(O9=0,O15,O9),Y9) ->  | AR15: =IF(ISBLANK(AA9),IF(Q9=0,Q15,Q9),AA9) ->  | AT15: =IF(ISBLANK(AC9),IF(S9=0,S15,S9),AC9) -> 
D17: Year 2 | E17: =INDEX(INDIRECT("CropProdPlan"&$J$12),ROWS($D$15:$D17),2) -> 0 | F17: =IF(ISERROR(MATCH($E17,MoistureContentRequired,0)),"",INDEX(INDIRECT("CropProdPlan"&$J$12),ROWS($D$15:$D17),6)) ->  | G17: =INDEX(INDIRECT("CropProdPlan"&$J$12),ROWS($D$15:$D17),8) ->  | I17: =INDEX(INDIRECT("CropProdPlan"&$J$12),ROWS($D$15:$D17),10) -> 0 | J17: =INDEX(INDIRECT("CropProdPlan"&$J$12),ROWS($D$15:$D17),11) ->  | M17: =IF(ISBLANK($E17),"",INDEX(NutrientUptakeTable,MATCH($E17,CropList,0),MATCH(M$13,Tables!$D$6:$I$6,0)))*$I17*IF(ISERROR(MATCH($E17,MoistureContentRequired,0)),1,(1-$F17)/INDEX(Tables!$C$25:$C$40,MATCH($E17,MoistureContentRequired,0),1)) ->  | O17: =IF(ISBLANK($E17),"",INDEX(NutrientUptakeTable,MATCH($E17,CropList,0),MATCH(O$13,Tables!$D$6:$I$6,0)))*$I17*IF(ISERROR(MATCH($E17,MoistureContentRequired,0)),1,(1-$F17)/INDEX(Tables!$C$25:$C$40,MATCH($E17,MoistureContentRequired,0),1)) ->  | Q17: =IF(ISBLANK($E17),"",INDEX(NutrientUptakeTable,MATCH($E17,CropList,0),MATCH(Q$13,Tables!$D$6:$I$6,0)))*$I17*IF(ISERROR(MATCH($E17,MoistureContentRequired,0)),1,(1-$F17)/INDEX(Tables!$C$25:$C$40,MATCH($E17,MoistureContentRequired,0),1)) ->  | S17: =IF(ISBLANK($E17),"",INDEX(NutrientUptakeTable,MATCH($E17,CropList,0),MATCH(S$13,Tables!$D$6:$I$6,0)))*$I17*IF(ISERROR(MATCH($E17,MoistureContentRequired,0)),1,(1-$F17)/INDEX(Tables!$C$25:$C$40,MATCH($E17,MoistureContentRequired,0),1)) ->  | AL17: Year 2 | AN17: =M17 ->  | AP17: =O17 ->  | AR17: =Q17 ->  | AT17: =S17 -> 
D19: Year 3 | E19: =INDEX(INDIRECT("CropProdPlan"&$J$12),ROWS($D$15:$D19),2) -> 0 | F19: =IF(ISERROR(MATCH($E19,MoistureContentRequired,0)),"",INDEX(INDIRECT("CropProdPlan"&$J$12),ROWS($D$15:$D19),6)) ->  | G19: =INDEX(INDIRECT("CropProdPlan"&$J$12),ROWS($D$15:$D19),8) ->  | I19: =INDEX(INDIRECT("CropProdPlan"&$J$12),ROWS($D$15:$D19),10) -> 0 | J19: =INDEX(INDIRECT("CropProdPlan"&$J$12),ROWS($D$15:$D19),11) ->  | M19: =IF(ISBLANK($E19),"",INDEX(NutrientUptakeTable,MATCH($E19,CropList,0),MATCH(M$13,Tables!$D$6:$I$6,0)))*$I19*IF(ISERROR(MATCH($E19,MoistureContentRequired,0)),1,(1-$F19)/INDEX(Tables!$C$25:$C$40,MATCH($E19,MoistureContentRequired,0),1)) ->  | O19: =IF(ISBLANK($E19),"",INDEX(NutrientUptakeTable,MATCH($E19,CropList,0),MATCH(O$13,Tables!$D$6:$I$6,0)))*$I19*IF(ISERROR(MATCH($E19,MoistureContentRequired,0)),1,(1-$F19)/INDEX(Tables!$C$25:$C$40,MATCH($E19,MoistureContentRequired,0),1)) ->  | Q19: =IF(ISBLANK($E19),"",INDEX(NutrientUptakeTable,MATCH($E19,CropList,0),MATCH(Q$13,Tables!$D$6:$I$6,0)))*$I19*IF(ISERROR(MATCH($E19,MoistureContentRequired,0)),1,(1-$F19)/INDEX(Tables!$C$25:$C$40,MATCH($E19,MoistureContentRequired,0),1)) ->  | S19: =IF(ISBLANK($E19),"",INDEX(NutrientUptakeTable,MATCH($E19,CropList,0),MATCH(S$13,Tables!$D$6:$I$6,0)))*$I19*IF(ISERROR(MATCH($E19,MoistureContentRequired,0)),1,(1-$F19)/INDEX(Tables!$C$25:$C$40,MATCH($E19,MoistureContentRequired,0),1)) ->  | AL19: Year 3 | AN19: =M19 ->  | AP19: =O19 ->  | AR19: =Q19 ->  | AT19: =S19 -> 
D21: Year 4 | E21: =INDEX(INDIRECT("CropProdPlan"&$J$12),ROWS($D$15:$D21),2) -> 0 | F21: =IF(ISERROR(MATCH($E21,MoistureContentRequired,0)),"",INDEX(INDIRECT("CropProdPlan"&$J$12),ROWS($D$15:$D21),6)) ->  | G21: =INDEX(INDIRECT("CropProdPlan"&$J$12),ROWS($D$15:$D21),8) ->  | I21: =INDEX(INDIRECT("CropProdPlan"&$J$12),ROWS($D$15:$D21),10) -> 0 | J21: =INDEX(INDIRECT("CropProdPlan"&$J$12),ROWS($D$15:$D21),11) ->  | M21: =IF(ISBLANK($E21),"",INDEX(NutrientUptakeTable,MATCH($E21,CropList,0),MATCH(M$13,Tables!$D$6:$I$6,0)))*$I21*IF(ISERROR(MATCH($E21,MoistureContentRequired,0)),1,(1-$F21)/INDEX(Tables!$C$25:$C$40,MATCH($E21,MoistureContentRequired,0),1)) ->  | O21: =IF(ISBLANK($E21),"",INDEX(NutrientUptakeTable,MATCH($E21,CropList,0),MATCH(O$13,Tables!$D$6:$I$6,0)))*$I21*IF(ISERROR(MATCH($E21,MoistureContentRequired,0)),1,(1-$F21)/INDEX(Tables!$C$25:$C$40,MATCH($E21,MoistureContentRequired,0),1)) ->  | Q21: =IF(ISBLANK($E21),"",INDEX(NutrientUptakeTable,MATCH($E21,CropList,0),MATCH(Q$13,Tables!$D$6:$I$6,0)))*$I21*IF(ISERROR(MATCH($E21,MoistureContentRequired,0)),1,(1-$F21)/INDEX(Tables!$C$25:$C$40,MATCH($E21,MoistureContentRequired,0),1)) ->  | S21: =IF(ISBLANK($E21),"",INDEX(NutrientUptakeTable,MATCH($E21,CropList,0),MATCH(S$13,Tables!$D$6:$I$6,0)))*$I21*IF(ISERROR(MATCH($E21,MoistureContentRequired,0)),1,(1-$F21)/INDEX(Tables!$C$25:$C$40,MATCH($E21,MoistureContentRequired,0),1)) ->  | AL21: Year 4 | AN21: =M21 ->  | AP21: =O21 ->  | AR21: =Q21 ->  | AT21: =S21 -> 
D23: Year 5 | E23: =INDEX(INDIRECT("CropProdPlan"&$J$12),ROWS($D$15:$D23),2) -> 0 | F23: =IF(ISERROR(MATCH($E23,MoistureContentRequired,0)),"",INDEX(INDIRECT("CropProdPlan"&$J$12),ROWS($D$15:$D23),6)) ->  | G23: =INDEX(INDIRECT("CropProdPlan"&$J$12),ROWS($D$15:$D23),8) ->  | I23: =INDEX(INDIRECT("CropProdPlan"&$J$12),ROWS($D$15:$D23),10) -> 0 | J23: =INDEX(INDIRECT("CropProdPlan"&$J$12),ROWS($D$15:$D23),11) ->  | M23: =IF(ISBLANK($E23),"",INDEX(NutrientUptakeTable,MATCH($E23,CropList,0),MATCH(M$13,Tables!$D$6:$I$6,0)))*$I23*IF(ISERROR(MATCH($E23,MoistureContentRequired,0)),1,(1-$F23)/INDEX(Tables!$C$25:$C$40,MATCH($E23,MoistureContentRequired,0),1)) ->  | O23: =IF(ISBLANK($E23),"",INDEX(NutrientUptakeTable,MATCH($E23,CropList,0),MATCH(O$13,Tables!$D$6:$I$6,0)))*$I23*IF(ISERROR(MATCH($E23,MoistureContentRequired,0)),1,(1-$F23)/INDEX(Tables!$C$25:$C$40,MATCH($E23,MoistureContentRequired,0),1)) ->  | Q23: =IF(ISBLANK($E23),"",INDEX(NutrientUptakeTable,MATCH($E23,CropList,0),MATCH(Q$13,Tables!$D$6:$I$6,0)))*$I23*IF(ISERROR(MATCH($E23,MoistureContentRequired,0)),1,(1-$F23)/INDEX(Tables!$C$25:$C$40,MATCH($E23,MoistureContentRequired,0),1)) ->  | S23: =IF(ISBLANK($E23),"",INDEX(NutrientUptakeTable,MATCH($E23,CropList,0),MATCH(S$13,Tables!$D$6:$I$6,0)))*$I23*IF(ISERROR(MATCH($E23,MoistureContentRequired,0)),1,(1-$F23)/INDEX(Tables!$C$25:$C$40,MATCH($E23,MoistureContentRequired,0),1)) ->  | AL23: Year 5 | AN23: =M23 ->  | AP23: =O23 ->  | AR23: =Q23 ->  | AT23: =S23 -> 
D30: SELECT Manure Type | F30: 1 | G30: Year 1 | I30: Year 2 | K30: Year 3 | M30: Year 4 | O30: Year 5 | R30: 5 Year Cost/Benefit Summary
G31: =E15 -> 0 | I31: =E17 -> 0 | K31: =E19 -> 0 | M31: =E21 -> 0 | O31: =E23 -> 0
F33: N Requirement for this field, for this Crop | G33: =AN15*G15 ->  | I33: =$AN$17*$G$17 ->  | K33: =$AN$19*$G$19 ->  | M33: =$AN$21*$G$21 ->  | O33: =$AN$23*$G$23 -> 
F34: N Requirement | G34: =G33/$G$15 ->  | I34: =I33/$G$17 ->  | K34: =K33/$G$19 ->  | M34: =M33/$G$21 ->  | O34: =O33/$G$23 -> 
F36: N Available Immediately (NInorganic) | G36: =IF(ManureTypeSelection=2,Tables!$BE$80,Tables!$BE$79) ->  | I36: =G50 ->  | K36: =I50 ->  | M36: =K50 ->  | O36: =M50 -> 
F37: Loss from Incorporation | G37: =-G36*IF(ManureTypeSelection=2,Tables!$BV$29,Tables!$BV$6) -> 
F38: N Released During Growing Season (NOrganic) | G38: =25%*IF(ManureTypeSelection=2,Tables!$BD$80,Tables!$BD$79) ->  | I38: =$G$38/25%*12%*IF($H$57=1,$G$45,$G$46) ->  | K38: =$G$38/25%*6%*IF($H$57=1,$G$45,$G$46) ->  | M38: =$G$38/25%*3%*IF($H$57=1,$G$45,$G$46) ->  | O38: =$G$38/25%*1.5%*IF($H$57=1,$G$45,$G$46) -> 
F39: Total Plant Available Nitrogen from Manure Supply | G39: =SUM(G36:G38) ->  | I39: =SUM(I38,I36) ->  | K39: =SUM(K38,K36) ->  | M39: =SUM(M38,M36) ->  | O39: =SUM(O38,O36) -> 
F40: Total Plant Available Nitrogen from Manure Supply | G40: =G39/$G$15 ->  | I40: =I39/$G$17 ->  | K40: =K39/$G$19 ->  | M40: =M39/$G$21 ->  | O40: =O39/$G$23 -> 
F42: Nitrogen Available from Applied Manure | G42: =G47+G50 ->  | I42: =I47+I50 ->  | K42: =K47+K50 ->  | M42: =M47+M50 ->  | O42: =O47+O50 -> 
F43: N Available from Applied Manure | G43: =G42/$G$15 ->  | I43: =I42/$G$17 ->  | K43: =K42/$G$19 ->  | M43: =M42/$G$21 ->  | O43: =O42/$G$23 -> 
G44: =IF(G43<G34,ROUND((G34-G43),0) &" lbs/ac Deficient","") ->  | I44: =IF(I43<I34,ROUND((I34-I43),0) &" lbs/ac Deficient","") ->  | K44: =IF(K43<K34,ROUND((K34-K43),0) &" lbs/ac Deficient","") ->  | M44: =IF(M43<M34,ROUND((M34-M43),0) &" lbs/ac Deficient","") ->  | O44: =IF(O43<O34,ROUND((O34-O43),0) &" lbs/ac Deficient","") -> 
F45: % of Available Manure Required | G45: =IF(G39<G$33,100%,G$33/G39) -> 
F46: User Input of Manure Rate (% of Available Manure) | G46: =G59/G56 -> 
F47: Net N Utilized from Manure in Current Year | G47: =IF(ManureToApply_Question=1,IF($G$33<$G$45*G39,$G$33,G39*$G$45),IF($G$33<$G$46*G39,$G$33,G39*$G$46)) ->  | I47: =IF(I$33<I39,I$33,I39) ->  | K47: =IF(K$33<K39,K$33,K39) ->  | M47: =IF(M$33<M39,M$33,M39) ->  | O47: =IF(O$33<O39,O$33,O39) -> 
F48: N Utilized from Applied Manure | G48: =G47/$G$15 ->  | I48: =I47/$G$15 ->  | K48: =K47/$G$15 ->  | M48: =M47/$G$15 ->  | O48: =O47/$G$15 -> 
F50: Unutilized N (from Manure) | G50: =IF(H$57=1,G$45,G$46)*G39-G47 ->  | I50: =I39-I47 ->  | K50: =K39-K47 ->  | M50: =M39-M47 ->  | O50: =O39-O47 -> 
F52: =IF(ManureTypeSelection=2,"Rate of Manure Application (gal./ac)","Rate of Manure Application (cu.ft./ac)") -> Rate of Manure Application (cu.ft./ac) | G52: =IF(H$57=1,G$45,G$46)*(IF(ManureTypeSelection=2,Tables!$BB$80,Tables!$BB$84))/$G$15 -> 
F53: =IF(ManureTypeSelection=2,"Rate of Manure Application (gal./ac)","Rate of Manure Application (tons/ac)") -> Rate of Manure Application (tons/ac) | G53: =IF(H$57=1,G$45,G$46)*(IF(ManureTypeSelection=2,Tables!$BB$80,Tables!$BB$79/2000))/$G$15 -> 
F54: =IF(ManureTypeSelection=2,"Recommended Rate of Manure Application (gal./ac)","Recommended Rate of Manure Application (tons/ac)") -> Recommended Rate of Manure Application (tons/ac) | G54: =G$45*(IF(ManureTypeSelection=2,Tables!$BB$80,Tables!$BB$79/2000))/$G$15 ->  | H54: =IF(AND(ManureTypeSelection=2,ManureToApply_Model<3000),IF(G56<3000,"Warning: A minimum practical application rate (3,000 ga/ac) cannot be met with the volume of liquid manure available.","Warning: A minimum practical application rate (3,000 ga/ac) cannot be acheived for this field without causing an over-application of Nitrogen."),"") -> 
F56: =IF(ManureTypeSelection=2,"Max Rate of Manure Application (gal./ac)","Max Rate of Manure Application (tons/ac)") -> Max Rate of Manure Application (tons/ac) | G56: =IF(ManureTypeSelection=2,Tables!$BB$80,Tables!$BB$79/2000)/$G$15 -> 
F57: Do You Wish to Apply a Different Amount of Manure? | H57: 1
F59: =IF(H$57=1,"","…Enter the rate of Manure to Apply") ->  | H59: =IF(H$57=1,"","Up to a Maximum Rate of "&ROUND($G$56,1)&IF(ManureTypeSelection=2," gal./ac"," tons/ac")&" (given the available manure supply)") -> 
Q60: Total Cost to Apply Manure | S60: Value of Manure Nutrients Utilized
F61: Cost to Apply Manure to Field | G61: =IF(ManureTypeSelection=2,G52*$G$15*Tables!$BT$46+IF(G52=0,0,$G$15*(Tables!$BU$46+Tables!$BU$47))+G52*$G$15*$G$9*Tables!$BV$46,G52*$G$15*Tables!$BT$23+IF(G52=0,0,$G$15*(Tables!$BU$23+Tables!$BU$24))+G52*$G$15*$G$9*Tables!$BV$23) ->  | Q61: =SUM(G61,M61,O61,I61,K61) ->  | S61: =SUM(Q64,Q81,Q100,Q119) -> 
F62: Cost to Apply Manure to Field | G62: =G61/$G$15 ->  | Q62: =Q61/AVERAGE($G$15,$G$17,$G$19,$G$21,$G$23) ->  | S62: =S61/AVERAGE($G$15,$G$17,$G$19,$G$21,$G$23) -> 
F64: Net Nutrient Value of N Utilized from Manure | G64: =G47*'Commercial Fertilizer'!$E$11 ->  | I64: =I47*'Commercial Fertilizer'!$E$11 ->  | K64: =K47*'Commercial Fertilizer'!$E$11 ->  | M64: =M47*'Commercial Fertilizer'!$E$11 ->  | O64: =O47*'Commercial Fertilizer'!$E$11 ->  | Q64: =SUM(G64,I64,K64,M64,O64) -> 
F66: P2O5 Requirement | G66: =$AP$15*$G$15 ->  | I66: =$AP$17*$G$17 ->  | K66: =$AP$19*$G$19 ->  | M66: =$AP$21*$G$21 ->  | O66: =$AP$23*$G$23 -> 
F67: P2O5 Requirement | G67: =G66/$G$15 ->  | I67: =I66/$G$17 ->  | K67: =K66/$G$19 ->  | M67: =M66/$G$21 ->  | O67: =O66/$G$23 -> 
F69: P205 Available from Prior Year | I69: =G83 ->  | K69: =I83 ->  | M69: =K83 ->  | O69: =M83 -> 
F71: P2O5 Available from Manure | G71: =IF($H$57=1,$G$45,$G$46)*IF(ManureTypeSelection=2,Tables!$BF$80,Tables!$BF$79)*70% ->  | I71: =IF($H$57=1,$G$45,$G$46)*IF(ManureTypeSelection=2,Tables!$BF$80,Tables!$BF$79)*20% ->  | K71: =IF($H$57=1,$G$45,$G$46)*IF(ManureTypeSelection=2,Tables!$BF$80,Tables!$BF$79)*16% -> 
F72: P2O5 Available from Manure | G72: =G71/$G$15 ->  | I72: =I71/$G$15 ->  | K72: =K71/$G$15 -> 
F74: P2O5 Available from Manure | G74: =SUM(G71,G69) ->  | I74: =SUM(I71,I69) ->  | K74: =SUM(K71,K69) ->  | M74: =SUM(M71,M69) ->  | O74: =SUM(O71,O69) -> 
G75: =IF(G74<G66,ROUND(G66-G74,0)&" lbs Deficient","") ->  | I75: =IF(I74<I66,ROUND(I66-I74,0)&" lbs Deficient","") ->  | K75: =IF(K74<K66,ROUND(K66-K74,0)&" lbs Deficient","") ->  | M75: =IF(M74<M66,ROUND(M66-M74,0)&" lbs Deficient","") ->  | O75: =IF(O74<O66,ROUND(O66-O74,0)&" lbs Deficient","") -> 
F76: P2O5 Available from Manure | G76: =G74/$G$15 ->  | I76: =I74/$G$17 ->  | K76: =K74/$G$19 ->  | M76: =M74/$G$21 ->  | O76: =O74/$G$23 -> 
G77: =IF(G74<G66,ROUND((G66-G74)/$G$17,0) &" lbs/ac Deficient","") ->  | I77: =IF(I74<I66,ROUND((I66-I74)/$G$17,0) &" lbs/ac Deficient","") ->  | K77: =IF(K74<K66,ROUND((K66-K74)/$G$19,0) &" lbs/ac Deficient","") ->  | M77: =IF(M74<M66,ROUND((M66-M74)/$G$21,0) &" lbs/ac Deficient","") ->  | O77: =IF(O74<O66,ROUND((O66-O74)/$G$23,0) &" lbs/ac Deficient","") -> 
F78: P2O5 Utilized from Manure | G78: =IF(G66<G71,G66,G71) ->  | I78: =IF(I66>I74,SUM($G71:H71)-SUM($G78:H78)+I71,IF(I66<I69-(SUM($G71:H71)-SUM($G78:H78)),0,I66-(I69-(SUM($G71:H71)-SUM($G78:H78))))) ->  | K78: =IF(K66>K74,SUM($G71:I71)-SUM($G78:I78)+K71,IF(K66<K69-(SUM($G71:I71)-SUM($G78:I78)),0,K66-(K69-(SUM($G71:I71)-SUM($G78:I78))))) ->  | M78: =IF(M66>M74,SUM($G71:K71)-SUM($G78:K78)+M71,IF(M66<M69-(SUM($G71:K71)-SUM($G78:K78)),0,M66-(M69-(SUM($G71:K71)-SUM($G78:K78))))) ->  | O78: =IF(O66>O74,SUM($G71:M71)-SUM($G78:M78)+O71,IF(O66<O69-(SUM($G71:M71)-SUM($G78:M78)),0,O66-(O69-(SUM($G71:M71)-SUM($G78:M78))))) -> 
F79: P2O5 Utilized from Manure | G79: =G78/$G$15 ->  | I79: =I78/$G$17 ->  | K79: =K78/$G$19 ->  | M79: =M78/$G$21 ->  | O79: =O78/$G$23 -> 
F81: Net Nutrient Value of P2O5 Utilized from Manure | G81: =G78*'Commercial Fertilizer'!$E$12 ->  | I81: =I78*'Commercial Fertilizer'!$E$12 ->  | K81: =K78*'Commercial Fertilizer'!$E$12 ->  | M81: =M78*'Commercial Fertilizer'!$E$12 ->  | O81: =O78*'Commercial Fertilizer'!$E$12 ->  | Q81: =SUM(G81,I81,K81,M81,O81) -> 
F83: Unutilized P2O5 (remaining in soil) | G83: =IF(G74-G66<0,0,G74-G66) ->  | I83: =IF(I74-I66<0,0,I74-I66) ->  | K83: =IF(K74-K66<0,0,K74-K66) ->  | M83: =IF(M74-M66<0,0,M74-M66) ->  | O83: =IF(O74-O66<0,0,O74-O66) -> 
F85: K2O Requirement | G85: =$AR$15*$G$15 ->  | I85: =$AR$17*$G$17 ->  | K85: =$AR$19*$G$19 ->  | M85: =$AR$21*$G$21 ->  | O85: =$AR$23*$G$23 -> 
F86: K2O Requirement | G86: =G85/$G$15 ->  | I86: =I85/$G$17 ->  | K86: =K85/$G$19 ->  | M86: =M85/$G$21 ->  | O86: =O85/$G$23 -> 
F88: K20 Available from Prior Year | I88: =G102 ->  | K88: =I102 ->  | M88: =K102 ->  | O88: =M102 -> 
F90: K2O Available from Manure | G90: =IF(H$57=1,G$45,G$46)*IF(ManureTypeSelection=2,Tables!$BG$80,Tables!$BG$79)*90% -> 
F91: K2O Available from Manure | G91: =G90/$G$15 -> 
F93: K2O Available from Manure | G93: =SUM(G90,G88) ->  | I93: =SUM(I90,I88) ->  | K93: =SUM(K90,K88) ->  | M93: =SUM(M90,M88) ->  | O93: =SUM(O90,O88) -> 
G94: =IF(G93<G85,ROUND(G85-G93,0)&" lbs Deficient","") ->  | I94: =IF(I93<I85,ROUND(I85-I93,0)&" lbs Deficient","") ->  | K94: =IF(K93<K85,ROUND(K85-K93,0)&" lbs Deficient","") ->  | M94: =IF(M93<M85,ROUND(M85-M93,0)&" lbs Deficient","") ->  | O94: =IF(O93<O85,ROUND(O85-O93,0)&" lbs Deficient","") -> 
F95: K2O Available from Manure | G95: =G93/$G$15 ->  | I95: =I93/$G$17 ->  | K95: =K93/$G$19 ->  | M95: =M93/$G$21 ->  | O95: =O93/$G$23 -> 
G96: =IF(G93<G85,ROUND((G85-G93)/$G$17,0) &" lbs/ac Deficient","") ->  | I96: =IF(I93<I85,ROUND((I85-I93)/$G$17,0) &" lbs/ac Deficient","") ->  | K96: =IF(K93<K85,ROUND((K85-K93)/$G$19,0) &" lbs/ac Deficient","") ->  | M96: =IF(M93<M85,ROUND((M85-M93)/$G$21,0) &" lbs/ac Deficient","") ->  | O96: =IF(O93<O85,ROUND((O85-O93)/$G$23,0) &" lbs/ac Deficient","") -> 
F97: K2O Utilized from Manure | G97: =IF(G85<G90,G85,G90) ->  | I97: =IF(I85>I93,SUM($G90:H90)-SUM($G97:H97)+I90,IF(I85<I88-(SUM($G90:H90)-SUM($G97:H97)),0,I85-(I88-(SUM($G90:H90)-SUM($G97:H97))))) ->  | K97: =IF(K85>K93,SUM($G90:I90)-SUM($G97:I97)+K90,IF(K85<K88-(SUM($G90:I90)-SUM($G97:I97)),0,K85-(K88-(SUM($G90:I90)-SUM($G97:I97))))) ->  | M97: =IF(M85>M93,SUM($G90:K90)-SUM($G97:K97)+M90,IF(M85<M88-(SUM($G90:K90)-SUM($G97:K97)),0,M85-(M88-(SUM($G90:K90)-SUM($G97:K97))))) ->  | O97: =IF(O85>O93,SUM($G90:M90)-SUM($G97:M97)+O90,IF(O85<O88-(SUM($G90:M90)-SUM($G97:M97)),0,O85-(O88-(SUM($G90:M90)-SUM($G97:M97))))) -> 
F98: K2O Utilized from Manure | G98: =G97/$G$15 ->  | I98: =I97/$G$17 ->  | K98: =K97/$G$19 ->  | M98: =M97/$G$21 ->  | O98: =O97/$G$23 -> 
F100: Net Nutrient Value of K2O Utilized from Manure | G100: =G97*'Commercial Fertilizer'!$E$13 ->  | I100: =I97*'Commercial Fertilizer'!$E$13 ->  | K100: =K97*'Commercial Fertilizer'!$E$13 ->  | M100: =M97*'Commercial Fertilizer'!$E$13 ->  | O100: =O97*'Commercial Fertilizer'!$E$13 ->  | Q100: =SUM(G100,I100,K100,M100,O100) -> 
F102: Unutilized K2O (remaining in soil) | G102: =IF(G93-G85<0,0,G93-G85) ->  | I102: =IF(I93-I85<0,0,I93-I85) ->  | K102: =IF(K93-K85<0,0,K93-K85) ->  | M102: =IF(M93-M85<0,0,M93-M85) ->  | O102: =IF(O93-O85<0,0,O93-O85) -> 
F104: S Requirement | G104: =$AT$15*$G$15 ->  | I104: =$AT$17*$G$17 ->  | K104: =$AT$19*$G$19 ->  | M104: =$AT$21*$G$21 ->  | O104: =$AT$23*$G$23 -> 
F105: S Requirement | G105: =G104/$G$15 ->  | I105: =I104/$G$17 ->  | K105: =K104/$G$19 ->  | M105: =M104/$G$21 ->  | O105: =O104/$G$23 -> 
F107: S Available from Prior Year | I107: =G121 ->  | K107: =I121 ->  | M107: =K121 ->  | O107: =M121 -> 
F109: S Available from Manure | G109: =IF(H$57=1,G$45,G$46)*IF(ManureTypeSelection=2,Tables!$BH$80,Tables!$BH$79)*90% -> 
F110: S Available from Manure | G110: =G109/$G$15 -> 
F112: S Available from Manure | G112: =SUM(G109,G107) ->  | I112: =SUM(I109,I107) ->  | K112: =SUM(K109,K107) ->  | M112: =SUM(M109,M107) ->  | O112: =SUM(O109,O107) -> 
G113: =IF(G112<G104,ROUND(G104-G112,0)&" lbs Deficient","") ->  | I113: =IF(I112<I104,ROUND(I104-I112,0)&" lbs Deficient","") ->  | K113: =IF(K112<K104,ROUND(K104-K112,0)&" lbs Deficient","") ->  | M113: =IF(M112<M104,ROUND(M104-M112,0)&" lbs Deficient","") ->  | O113: =IF(O112<O104,ROUND(O104-O112,0)&" lbs Deficient","") -> 
F114: S Available from Manure | G114: =G112/$G$15 ->  | I114: =I112/$G$17 ->  | K114: =K112/$G$19 ->  | M114: =M112/$G$21 ->  | O114: =O112/$G$23 -> 
G115: =IF(G112<G104,ROUND((G104-G112)/$G$15,0) &" lbs/ac Deficient","") ->  | I115: =IF(I112<I104,ROUND((I104-I112)/$G$17,0) &" lbs/ac Deficient","") ->  | K115: =IF(K112<K104,ROUND((K104-K112)/$G$19,0) &" lbs/ac Deficient","") ->  | M115: =IF(M112<M104,ROUND((M104-M112)/$G$21,0) &" lbs/ac Deficient","") ->  | O115: =IF(O112<O104,ROUND((O104-O112)/$G$23,0) &" lbs/ac Deficient","") -> 
F116: S Utilized from Manure | G116: =IF(G104<G109,G104,G109) ->  | I116: =IF(I104>I112,SUM($G109:H109)-SUM($G116:H116)+I109,IF(I104<I107-(SUM($G109:H109)-SUM($G116:H116)),0,I104-(I107-(SUM($G109:H109)-SUM($G116:H116))))) ->  | K116: =IF(K104>K112,SUM($G109:I109)-SUM($G116:I116)+K109,IF(K104<K107-(SUM($G109:I109)-SUM($G116:I116)),0,K104-(K107-(SUM($G109:I109)-SUM($G116:I116))))) ->  | M116: =IF(M104>M112,SUM($G109:K109)-SUM($G116:K116)+M109,IF(M104<M107-(SUM($G109:K109)-SUM($G116:K116)),0,M104-(M107-(SUM($G109:K109)-SUM($G116:K116))))) ->  | O116: =IF(O104>O112,SUM($G109:M109)-SUM($G116:M116)+O109,IF(O104<O107-(SUM($G109:M109)-SUM($G116:M116)),0,O104-(O107-(SUM($G109:M109)-SUM($G116:M116))))) -> 
F117: S Utilized from Manure | G117: =G116/$G$15 ->  | I117: =I116/$G$17 ->  | K117: =K116/$G$19 ->  | M117: =M116/$G$21 ->  | O117: =O116/$G$23 -> 
F119: Net Nutrient Value of S Utilized from Manure | G119: =G116*'Commercial Fertilizer'!$E$14 ->  | I119: =I116*'Commercial Fertilizer'!$E$14 ->  | K119: =K116*'Commercial Fertilizer'!$E$14 ->  | M119: =M116*'Commercial Fertilizer'!$E$14 ->  | O119: =O116*'Commercial Fertilizer'!$E$14 ->  | Q119: =SUM(G119,I119,K119,M119,O119) -> 
F121: Unutilized S (remaining in soil) | G121: =IF(G112-G104<0,0,G112-G104) ->  | I121: =IF(I112-I104<0,0,I112-I104) ->  | K121: =IF(K112-K104<0,0,K112-K104) ->  | M121: =IF(M112-M104<0,0,M112-M104) ->  | O121: =IF(O112-O104<0,0,O112-O104) -> 

Sheet Summary1
R8: Conversion Table
A9: 1 | R9: 1 ac = | S9: 0.4047 | T9: ha
R10: 1 lbs = | S10: =1/2.2046 -> 0.4535970244 | T10: kg
D11: Spreadable Size | E11: ='Analysis1 - 5 Year Cost'!I9*IF(Units=2,$S$9,1) -> 75 | F11: =IF(Units=2,"ha","acres") -> acres | R11: 1 mi = | S11: 1.6033 | T11: km
D12: Planned Crop (year 1) | E12: ='Analysis1 - 5 Year Cost'!G31 -> 0 | R12: 1 ton = | S12: =1/1.016 -> 0.9842519685 | T12: tonnes
D13: Target Yield | E13: ='Analysis1 - 5 Year Cost'!I15/IF(F13="bu/ha",$S$9,IF(F13="tonnes/ha",$S$9/$S$12,1)) -> 0 | F13: =IF(AND(Units=2,'Analysis1 - 5 Year Cost'!J15="bu/acre"),"bu/ha",IF(AND(Units=2,'Analysis1 - 5 Year Cost'!J15="tons/acre"),"tonnes/ha",'Analysis1 - 5 Year Cost'!J15)) ->  | R13: 1 gal = | S13: 4.546 | T13: litres
D15: Manure Application Rate - Currently Set At: | E15: ='Analysis1 - 5 Year Cost'!G53*IF(F15="litres/ha",S13/S9,IF(F15="tonnes/ha",S12/S9,1)) ->  | F15: =IF(Units=2,IF(ManureTypeSelection=2,"litres/ha","tonnes/ha"),IF(ManureTypeSelection=2," gal./ac"," tons/ac")) -> tons/ac | H15: =IF(AND(ManureTypeSelection=2,ManureToApply_Model<3000),IF(G56<3000,"Warning: A minimum practical application rate (3,000 ga/ac) cannot be met with the volume of liquid manure available.","Warning: A minimum practical application rate (3,000 ga/ac) cannot be acheived for this field without causing an over-application of Nitrogen."),"") -> 
D17: Do You Wish to Apply a Different Amount of Manure?
D19: =IF(ManureToApply_Question=1,"","…Enter the rate of Manure to Apply on Analysis Tab") ->  | E19: =IF(ManureToApply_Question=1,"","<Click Here>") -> 
G21: =IF('Analysis1 - 5 Year Cost'!H$57=1,"The MODEL recommends ","YOU have chosen ")&"to apply "&ROUND('Analysis1 - 5 Year Cost'!G$53,1)&IF(ManureTypeSelection=2," gal./ac"," tons/ac")&" to this field. Based on this, the following Nutrients are Available & Utilized:" -> 
E22: Nutrient Recommendation | G22: Nutrients Available from Manure | I22: Nutrients Utilized from Manure | K22: Nutrient Shortfall/Excess
E23: =IF(AND(ISBLANK('Analysis1 - 5 Year Cost'!$W$9),ISBLANK('Analysis1 - 5 Year Cost'!$Y$9),ISBLANK('Analysis1 - 5 Year Cost'!$AA$9),ISBLANK('Analysis1 - 5 Year Cost'!$AC$9),ISBLANK('Analysis1 - 5 Year Cost'!$AE$9)),"from Lab","User Override") -> from Lab | G23: (in Year 1 of Plan) | I23: (in Year 1 of Plan) | K23: (based on N optimization)
E24: (in Year 1 of Plan) | K24: (in Year 1 of Plan)
E25: =IF(Units=2,"kg/ha","lbs/ac") -> lbs/ac | G25: =IF(Units=2,"kg/ha","lbs/ac") -> lbs/ac | I25: =IF(Units=2,"kg/ha","lbs/ac") -> lbs/ac | K25: =IF(Units=2,"kg/ha","lbs/ac") -> lbs/ac
D26: N | E26: ='Analysis1 - 5 Year Cost'!$AN$15*IF(Units=2,$S$10/$S$9,1) ->  | G26: ='Analysis1 - 5 Year Cost'!$G$43*IF(Units=2,$S$10/$S$9,1) ->  | I26: ='Analysis1 - 5 Year Cost'!$G$48*IF(Units=2,$S$10,1) ->  | K26: =IF(G26>E26,G26-I26,I26-E26) ->  | M26: =IF(ROUND(K26,0)>0,"This nutrient is over-applied and it's value at risk of being lost","") -> 
D27: P2O5 | E27: ='Analysis1 - 5 Year Cost'!$AP$15*IF(Units=2,$S$10/$S$9,1) ->  | G27: ='Analysis1 - 5 Year Cost'!$G$72*IF(Units=2,$S$10/$S$9,1) ->  | I27: ='Analysis1 - 5 Year Cost'!$G$79*IF(Units=2,$S$10,1) ->  | K27: =IF(G27>E27,G27-I27,I27-E27) ->  | M27: =IF(ROUND(K27,0)>0,"This nutrient is over-applied and it's value at risk of being lost","") -> 
D28: K2O | E28: ='Analysis1 - 5 Year Cost'!$AR$15*IF(Units=2,$S$10/$S$9,1) ->  | G28: ='Analysis1 - 5 Year Cost'!$G$91*IF(Units=2,$S$10/$S$9,1) ->  | I28: ='Analysis1 - 5 Year Cost'!$G$98*IF(Units=2,$S$10,1) ->  | K28: =IF(G28>E28,G28-I28,I28-E28) ->  | M28: =IF(ROUND(K28,0)>0,"This nutrient is over-applied and it's value at risk of being lost","") -> 
D29: S | E29: ='Analysis1 - 5 Year Cost'!$AT$15*IF(Units=2,$S$10/$S$9,1) ->  | G29: ='Analysis1 - 5 Year Cost'!$G$110*IF(Units=2,$S$10/$S$9,1) ->  | I29: ='Analysis1 - 5 Year Cost'!$G$117*IF(Units=2,$S$10,1) ->  | K29: =IF(G29>E29,G29-I29,I29-E29) ->  | M29: =IF(ROUND(K29,0)>0,"This nutrient is over-applied and it's value at risk of being lost","") -> 
E32: Economic Cost/Benefit
E34: In Year 1 | I34: Over 5 Years
E35: Total $ | G35: =IF(Units=2,"$/ha","$/acre") -> $/acre | I35: Total $ | K35: =IF(Units=2,"$/ha","$/acre") -> $/acre
D36: Cost to Apply Manure | E36: =I36 ->  | G36: =K36 ->  | I36: ='Analysis1 - 5 Year Cost'!Q61 ->  | K36: ='Analysis1 - 5 Year Cost'!Q62/IF(Units=2,$S$9,1) -> 
D38: Value of Manure Nutrients Utilized: | E38: Total $ | G38: =IF(Units=2,"$/ha","$/acre") -> $/acre | I38: Total $ | K38: =IF(Units=2,"$/ha","$/acre") -> $/acre
D39: N | E39: ='Analysis1 - 5 Year Cost'!G64 ->  | G39: =$G$36/$E$36*E39 ->  | I39: ='Analysis1 - 5 Year Cost'!Q64 ->  | K39: =$K$36/$I$36*I39 -> 
D40: P2O5 | E40: ='Analysis1 - 5 Year Cost'!G81 ->  | G40: =$G$36/$E$36*E40 ->  | I40: ='Analysis1 - 5 Year Cost'!Q81 ->  | K40: =$K$36/$I$36*I40 -> 
D41: K2O | E41: ='Analysis1 - 5 Year Cost'!G100 ->  | G41: =$G$36/$E$36*E41 ->  | I41: ='Analysis1 - 5 Year Cost'!Q100 ->  | K41: =$K$36/$I$36*I41 -> 
D42: S | E42: ='Analysis1 - 5 Year Cost'!G119 ->  | G42: =$G$36/$E$36*E42 ->  | I42: ='Analysis1 - 5 Year Cost'!Q119 ->  | K42: =$K$36/$I$36*I42 -> 
D43: Total | E43: =SUM(E39:E42) ->  | G43: =SUM(G39:G42) ->  | I43: =SUM(I39:I42) ->  | K43: =SUM(K39:K42) -> 
D45: Net Economic Benefit | E45: =E43-E36 ->  | G45: =G43-G36 ->  | I45: =I43-I36 ->  | K45: =K43-K36 -> 
H63: 1

Sheet Analysis2 - Compare 2 Fields
G7: Distance from Manure (mi) | I7: Spreadable Size (acres)
M8: N | O8: P2O5 | Q8: K2O | S8: S | W8: N | Y8: P2O5 | AA8: K2O | AC8: S
C9: 1 | G9: =INDEX(FieldID,$J$14,9) -> 1 | I9: =INDEX(FieldID,$J$14,11) -> 75 | M9: =INDEX(LabNutrientRecommendations,$J$14,MATCH(M$8,$M$8:$S$8,0)) -> 0 | O9: =INDEX(LabNutrientRecommendations,$J$14,MATCH(O$8,$M$8:$S$8,0)) -> 0 | Q9: =INDEX(LabNutrientRecommendations,$J$14,MATCH(Q$8,$M$8:$S$8,0)) -> 0 | S9: =INDEX(LabNutrientRecommendations,$J$14,MATCH(S$8,$M$8:$S$8,0)) -> 0
C11: 2 | G11: =INDEX(FieldID,$J$28,9) -> 1 | I11: =INDEX(FieldID,$J$28,11) -> 75 | M11: =INDEX(LabNutrientRecommendations,$J$28,MATCH(M$8,$M$8:$S$8,0)) -> 0 | O11: =INDEX(LabNutrientRecommendations,$J$28,MATCH(O$8,$M$8:$S$8,0)) -> 0 | Q11: =INDEX(LabNutrientRecommendations,$J$28,MATCH(Q$8,$M$8:$S$8,0)) -> 0 | S11: =INDEX(LabNutrientRecommendations,$J$28,MATCH(S$8,$M$8:$S$8,0)) -> 0
I14: =INDEX([0]!FieldID,$J$14,2) -> 0 | J14: 1 | BB14: =I14 -> 0
E15: Crop Planned | F15: Moisture | G15: Acres | I15: Target Yield | M15: N | O15: P2O5 | Q15: K2O | S15: S | AV15: N | AX15: P2O5 | AZ15: K2O | BB15: S
D17: Year 1 | E17: =INDEX(INDIRECT("CropProdPlan"&$J$14),ROWS($D$17:$D17),2) -> 0 | F17: =IF(ISERROR(MATCH($E17,MoistureContentRequired,0)),"",INDEX(INDIRECT("CropProdPlan"&$J$14),ROWS($D$17:$D17),6)) ->  | G17: =INDEX(INDIRECT("CropProdPlan"&$J$14),ROWS($D$17:$D17),8) ->  | I17: =INDEX(INDIRECT("CropProdPlan"&$J$14),ROWS($D$17:$D17),10) -> 0 | J17: =INDEX(INDIRECT("CropProdPlan"&$J$14),ROWS($D$17:$D17),11) ->  | M17: =IF(ISBLANK($E17),"",INDEX(NutrientUptakeTable,MATCH($E17,CropList,0),MATCH(M$8,Tables!$D$6:$I$6,0)))*$I17*IF(ISERROR(MATCH($E17,MoistureContentRequired,0)),1,(1-$F17)/INDEX(Tables!$C$25:$C$40,MATCH($E17,MoistureContentRequired,0),1)) ->  | O17: =IF(ISBLANK($E17),"",INDEX(NutrientUptakeTable,MATCH($E17,CropList,0),MATCH(O$8,Tables!$D$6:$I$6,0)))*$I17*IF(ISERROR(MATCH($E17,MoistureContentRequired,0)),1,(1-$F17)/INDEX(Tables!$C$25:$C$40,MATCH($E17,MoistureContentRequired,0),1)) ->  | Q17: =IF(ISBLANK($E17),"",INDEX(NutrientUptakeTable,MATCH($E17,CropList,0),MATCH(Q$8,Tables!$D$6:$I$6,0)))*$I17*IF(ISERROR(MATCH($E17,MoistureContentRequired,0)),1,(1-$F17)/INDEX(Tables!$C$25:$C$40,MATCH($E17,MoistureContentRequired,0),1)) ->  | S17: =IF(ISBLANK($E17),"",INDEX(NutrientUptakeTable,MATCH($E17,CropList,0),MATCH(S$8,Tables!$D$6:$I$6,0)))*$I17*IF(ISERROR(MATCH($E17,MoistureContentRequired,0)),1,(1-$F17)/INDEX(Tables!$C$25:$C$40,MATCH($E17,MoistureContentRequired,0),1)) ->  | AT17: Year 1 | AV17: =IF(ISBLANK(W9),IF(M9=0,M17,M9),W9) ->  | AX17: =IF(ISBLANK(Y9),IF(O9=0,O17,O9),Y9) ->  | AZ17: =IF(ISBLANK(AA9),IF(Q9=0,Q17,Q9),AA9) ->  | BB17: =IF(ISBLANK(AC9),IF(S9=0,S17,S9),AC9) -> 
D19: Year 2 | E19: =INDEX(INDIRECT("CropProdPlan"&$J$14),ROWS($D$17:$D19),2) -> 0 | F19: =IF(ISERROR(MATCH($E19,MoistureContentRequired,0)),"",INDEX(INDIRECT("CropProdPlan"&$J$14),ROWS($D$17:$D19),6)) ->  | G19: =INDEX(INDIRECT("CropProdPlan"&$J$14),ROWS($D$17:$D19),8) ->  | I19: =INDEX(INDIRECT("CropProdPlan"&$J$14),ROWS($D$17:$D19),10) -> 0 | J19: =INDEX(INDIRECT("CropProdPlan"&$J$14),ROWS($D$17:$D19),11) ->  | M19: =IF(ISBLANK($E19),"",INDEX(NutrientUptakeTable,MATCH($E19,CropList,0),MATCH(M$8,Tables!$D$6:$I$6,0)))*$I19*IF(ISERROR(MATCH($E19,MoistureContentRequired,0)),1,(1-$F19)/INDEX(Tables!$C$25:$C$40,MATCH($E19,MoistureContentRequired,0),1)) ->  | O19: =IF(ISBLANK($E19),"",INDEX(NutrientUptakeTable,MATCH($E19,CropList,0),MATCH(O$8,Tables!$D$6:$I$6,0)))*$I19*IF(ISERROR(MATCH($E19,MoistureContentRequired,0)),1,(1-$F19)/INDEX(Tables!$C$25:$C$40,MATCH($E19,MoistureContentRequired,0),1)) ->  | Q19: =IF(ISBLANK($E19),"",INDEX(NutrientUptakeTable,MATCH($E19,CropList,0),MATCH(Q$8,Tables!$D$6:$I$6,0)))*$I19*IF(ISERROR(MATCH($E19,MoistureContentRequired,0)),1,(1-$F19)/INDEX(Tables!$C$25:$C$40,MATCH($E19,MoistureContentRequired,0),1)) ->  | S19: =IF(ISBLANK($E19),"",INDEX(NutrientUptakeTable,MATCH($E19,CropList,0),MATCH(S$8,Tables!$D$6:$I$6,0)))*$I19*IF(ISERROR(MATCH($E19,MoistureContentRequired,0)),1,(1-$F19)/INDEX(Tables!$C$25:$C$40,MATCH($E19,MoistureContentRequired,0),1)) ->  | AT19: Year 2 | AV19: =M19 ->  | AX19: =O19 ->  | AZ19: =Q19 ->  | BB19: =S19 -> 
D21: Year 3 | E21: =INDEX(INDIRECT("CropProdPlan"&$J$14),ROWS($D$17:$D21),2) -> 0 | F21: =IF(ISERROR(MATCH($E21,MoistureContentRequired,0)),"",INDEX(INDIRECT("CropProdPlan"&$J$14),ROWS($D$17:$D21),6)) ->  | G21: =INDEX(INDIRECT("CropProdPlan"&$J$14),ROWS($D$17:$D21),8) ->  | I21: =INDEX(INDIRECT("CropProdPlan"&$J$14),ROWS($D$17:$D21),10) -> 0 | J21: =INDEX(INDIRECT("CropProdPlan"&$J$14),ROWS($D$17:$D21),11) ->  | M21: =IF(ISBLANK($E21),"",INDEX(NutrientUptakeTable,MATCH($E21,CropList,0),MATCH(M$8,Tables!$D$6:$I$6,0)))*$I21*IF(ISERROR(MATCH($E21,MoistureContentRequired,0)),1,(1-$F21)/INDEX(Tables!$C$25:$C$40,MATCH($E21,MoistureContentRequired,0),1)) ->  | O21: =IF(ISBLANK($E21),"",INDEX(NutrientUptakeTable,MATCH($E21,CropList,0),MATCH(O$8,Tables!$D$6:$I$6,0)))*$I21*IF(ISERROR(MATCH($E21,MoistureContentRequired,0)),1,(1-$F21)/INDEX(Tables!$C$25:$C$40,MATCH($E21,MoistureContentRequired,0),1)) ->  | Q21: =IF(ISBLANK($E21),"",INDEX(NutrientUptakeTable,MATCH($E21,CropList,0),MATCH(Q$8,Tables!$D$6:$I$6,0)))*$I21*IF(ISERROR(MATCH($E21,MoistureContentRequired,0)),1,(1-$F21)/INDEX(Tables!$C$25:$C$40,MATCH($E21,MoistureContentRequired,0),1)) ->  | S21: =IF(ISBLANK($E21),"",INDEX(NutrientUptakeTable,MATCH($E21,CropList,0),MATCH(S$8,Tables!$D$6:$I$6,0)))*$I21*IF(ISERROR(MATCH($E21,MoistureContentRequired,0)),1,(1-$F21)/INDEX(Tables!$C$25:$C$40,MATCH($E21,MoistureContentRequired,0),1)) ->  | AT21: Year 3 | AV21: =M21 ->  | AX21: =O21 ->  | AZ21: =Q21 ->  | BB21: =S21 -> 
D23: Year 4 | E23: =INDEX(INDIRECT("CropProdPlan"&$J$14),ROWS($D$17:$D23),2) -> 0 | F23: =IF(ISERROR(MATCH($E23,MoistureContentRequired,0)),"",INDEX(INDIRECT("CropProdPlan"&$J$14),ROWS($D$17:$D23),6)) ->  | G23: =INDEX(INDIRECT("CropProdPlan"&$J$14),ROWS($D$17:$D23),8) ->  | I23: =INDEX(INDIRECT("CropProdPlan"&$J$14),ROWS($D$17:$D23),10) -> 0 | J23: =INDEX(INDIRECT("CropProdPlan"&$J$14),ROWS($D$17:$D23),11) ->  | M23: =IF(ISBLANK($E23),"",INDEX(NutrientUptakeTable,MATCH($E23,CropList,0),MATCH(M$8,Tables!$D$6:$I$6,0)))*$I23*IF(ISERROR(MATCH($E23,MoistureContentRequired,0)),1,(1-$F23)/INDEX(Tables!$C$25:$C$40,MATCH($E23,MoistureContentRequired,0),1)) ->  | O23: =IF(ISBLANK($E23),"",INDEX(NutrientUptakeTable,MATCH($E23,CropList,0),MATCH(O$8,Tables!$D$6:$I$6,0)))*$I23*IF(ISERROR(MATCH($E23,MoistureContentRequired,0)),1,(1-$F23)/INDEX(Tables!$C$25:$C$40,MATCH($E23,MoistureContentRequired,0),1)) ->  | Q23: =IF(ISBLANK($E23),"",INDEX(NutrientUptakeTable,MATCH($E23,CropList,0),MATCH(Q$8,Tables!$D$6:$I$6,0)))*$I23*IF(ISERROR(MATCH($E23,MoistureContentRequired,0)),1,(1-$F23)/INDEX(Tables!$C$25:$C$40,MATCH($E23,MoistureContentRequired,0),1)) ->  | S23: =IF(ISBLANK($E23),"",INDEX(NutrientUptakeTable,MATCH($E23,CropList,0),MATCH(S$8,Tables!$D$6:$I$6,0)))*$I23*IF(ISERROR(MATCH($E23,MoistureContentRequired,0)),1,(1-$F23)/INDEX(Tables!$C$25:$C$40,MATCH($E23,MoistureContentRequired,0),1)) ->  | AT23: Year 4 | AV23: =M23 ->  | AX23: =O23 ->  | AZ23: =Q23 ->  | BB23: =S23 -> 
D25: Year 5 | E25: =INDEX(INDIRECT("CropProdPlan"&$J$14),ROWS($D$17:$D25),2) -> 0 | F25: =IF(ISERROR(MATCH($E25,MoistureContentRequired,0)),"",INDEX(INDIRECT("CropProdPlan"&$J$14),ROWS($D$17:$D25),6)) ->  | G25: =INDEX(INDIRECT("CropProdPlan"&$J$14),ROWS($D$17:$D25),8) ->  | I25: =INDEX(INDIRECT("CropProdPlan"&$J$14),ROWS($D$17:$D25),10) -> 0 | J25: =INDEX(INDIRECT("CropProdPlan"&$J$14),ROWS($D$17:$D25),11) ->  | M25: =IF(ISBLANK($E25),"",INDEX(NutrientUptakeTable,MATCH($E25,CropList,0),MATCH(M$8,Tables!$D$6:$I$6,0)))*$I25*IF(ISERROR(MATCH($E25,MoistureContentRequired,0)),1,(1-$F25)/INDEX(Tables!$C$25:$C$40,MATCH($E25,MoistureContentRequired,0),1)) ->  | O25: =IF(ISBLANK($E25),"",INDEX(NutrientUptakeTable,MATCH($E25,CropList,0),MATCH(O$8,Tables!$D$6:$I$6,0)))*$I25*IF(ISERROR(MATCH($E25,MoistureContentRequired,0)),1,(1-$F25)/INDEX(Tables!$C$25:$C$40,MATCH($E25,MoistureContentRequired,0),1)) ->  | Q25: =IF(ISBLANK($E25),"",INDEX(NutrientUptakeTable,MATCH($E25,CropList,0),MATCH(Q$8,Tables!$D$6:$I$6,0)))*$I25*IF(ISERROR(MATCH($E25,MoistureContentRequired,0)),1,(1-$F25)/INDEX(Tables!$C$25:$C$40,MATCH($E25,MoistureContentRequired,0),1)) ->  | S25: =IF(ISBLANK($E25),"",INDEX(NutrientUptakeTable,MATCH($E25,CropList,0),MATCH(S$8,Tables!$D$6:$I$6,0)))*$I25*IF(ISERROR(MATCH($E25,MoistureContentRequired,0)),1,(1-$F25)/INDEX(Tables!$C$25:$C$40,MATCH($E25,MoistureContentRequired,0),1)) ->  | AT25: Year 5 | AV25: =M25 ->  | AX25: =O25 ->  | AZ25: =Q25 ->  | BB25: =S25 -> 
I28: =INDEX([0]!FieldID,$J$28,2) -> 0 | J28: 2 | BB28: =I28 -> 0
E29: Crop Planned | F29: Moisture | G29: Acres | I29: Target Yield | M29: N | O29: P2O5 | Q29: K2O | S29: S | AV29: N | AX29: P2O5 | AZ29: K2O | BB29: S
D31: Year 1 | E31: =INDEX(INDIRECT("CropProdPlan"&$J$28),ROWS($D$31:$D31),2) -> 0 | F31: =IF(ISERROR(MATCH($E31,MoistureContentRequired,0)),"",INDEX(INDIRECT("CropProdPlan"&$J$28),ROWS($D$31:$D31),6)) ->  | G31: =INDEX(INDIRECT("CropProdPlan"&$J$28),ROWS($D$31:$D31),8) ->  | I31: =INDEX(INDIRECT("CropProdPlan"&$J$28),ROWS($D$31:$D31),10) -> 0 | J31: =INDEX(INDIRECT("CropProdPlan"&$J$28),ROWS($D$31:$D31),11) ->  | M31: =IF(ISBLANK($E31),"",INDEX(NutrientUptakeTable,MATCH($E31,CropList,0),MATCH(M$8,Tables!$D$6:$I$6,0)))*$I31*IF(ISERROR(MATCH($E31,MoistureContentRequired,0)),1,(1-$F31)/INDEX(Tables!$C$25:$C$40,MATCH($E31,MoistureContentRequired,0),1)) ->  | O31: =IF(ISBLANK($E31),"",INDEX(NutrientUptakeTable,MATCH($E31,CropList,0),MATCH(O$8,Tables!$D$6:$I$6,0)))*$I31*IF(ISERROR(MATCH($E31,MoistureContentRequired,0)),1,(1-$F31)/INDEX(Tables!$C$25:$C$40,MATCH($E31,MoistureContentRequired,0),1)) ->  | Q31: =IF(ISBLANK($E31),"",INDEX(NutrientUptakeTable,MATCH($E31,CropList,0),MATCH(Q$8,Tables!$D$6:$I$6,0)))*$I31*IF(ISERROR(MATCH($E31,MoistureContentRequired,0)),1,(1-$F31)/INDEX(Tables!$C$25:$C$40,MATCH($E31,MoistureContentRequired,0),1)) ->  | S31: =IF(ISBLANK($E31),"",INDEX(NutrientUptakeTable,MATCH($E31,CropList,0),MATCH(S$8,Tables!$D$6:$I$6,0)))*$I31*IF(ISERROR(MATCH($E31,MoistureContentRequired,0)),1,(1-$F31)/INDEX(Tables!$C$25:$C$40,MATCH($E31,MoistureContentRequired,0),1)) ->  | AT31: Year 1 | AV31: =IF(ISBLANK(W11),IF(M11=0,M31,M11),W11) ->  | AX31: =IF(ISBLANK(Y11),IF(O11=0,O31,O11),Y11) ->  | AZ31: =IF(ISBLANK(AA11),IF(Q11=0,Q31,Q11),AA11) ->  | BB31: =IF(ISBLANK(AC11),IF(S11=0,S31,S11),AC11) -> 
D33: Year 2 | E33: =INDEX(INDIRECT("CropProdPlan"&$J$28),ROWS($D$31:$D33),2) -> 0 | F33: =IF(ISERROR(MATCH($E33,MoistureContentRequired,0)),"",INDEX(INDIRECT("CropProdPlan"&$J$28),ROWS($D$31:$D33),6)) ->  | G33: =INDEX(INDIRECT("CropProdPlan"&$J$28),ROWS($D$31:$D33),8) ->  | I33: =INDEX(INDIRECT("CropProdPlan"&$J$28),ROWS($D$31:$D33),10) -> 0 | J33: =INDEX(INDIRECT("CropProdPlan"&$J$28),ROWS($D$31:$D33),11) ->  | M33: =IF(ISBLANK($E33),"",INDEX(NutrientUptakeTable,MATCH($E33,CropList,0),MATCH(M$8,Tables!$D$6:$I$6,0)))*$I33*IF(ISERROR(MATCH($E33,MoistureContentRequired,0)),1,(1-$F33)/INDEX(Tables!$C$25:$C$40,MATCH($E33,MoistureContentRequired,0),1)) ->  | O33: =IF(ISBLANK($E33),"",INDEX(NutrientUptakeTable,MATCH($E33,CropList,0),MATCH(O$8,Tables!$D$6:$I$6,0)))*$I33*IF(ISERROR(MATCH($E33,MoistureContentRequired,0)),1,(1-$F33)/INDEX(Tables!$C$25:$C$40,MATCH($E33,MoistureContentRequired,0),1)) ->  | Q33: =IF(ISBLANK($E33),"",INDEX(NutrientUptakeTable,MATCH($E33,CropList,0),MATCH(Q$8,Tables!$D$6:$I$6,0)))*$I33*IF(ISERROR(MATCH($E33,MoistureContentRequired,0)),1,(1-$F33)/INDEX(Tables!$C$25:$C$40,MATCH($E33,MoistureContentRequired,0),1)) ->  | S33: =IF(ISBLANK($E33),"",INDEX(NutrientUptakeTable,MATCH($E33,CropList,0),MATCH(S$8,Tables!$D$6:$I$6,0)))*$I33*IF(ISERROR(MATCH($E33,MoistureContentRequired,0)),1,(1-$F33)/INDEX(Tables!$C$25:$C$40,MATCH($E33,MoistureContentRequired,0),1)) ->  | AT33: Year 2 | AV33: =M33 ->  | AX33: =O33 ->  | AZ33: =Q33 ->  | BB33: =S33 -> 
D35: Year 3 | E35: =INDEX(INDIRECT("CropProdPlan"&$J$28),ROWS($D$31:$D35),2) -> 0 | F35: =IF(ISERROR(MATCH($E35,MoistureContentRequired,0)),"",INDEX(INDIRECT("CropProdPlan"&$J$28),ROWS($D$31:$D35),6)) ->  | G35: =INDEX(INDIRECT("CropProdPlan"&$J$28),ROWS($D$31:$D35),8) ->  | I35: =INDEX(INDIRECT("CropProdPlan"&$J$28),ROWS($D$31:$D35),10) -> 0 | J35: =INDEX(INDIRECT("CropProdPlan"&$J$28),ROWS($D$31:$D35),11) ->  | M35: =IF(ISBLANK($E35),"",INDEX(NutrientUptakeTable,MATCH($E35,CropList,0),MATCH(M$8,Tables!$D$6:$I$6,0)))*$I35*IF(ISERROR(MATCH($E35,MoistureContentRequired,0)),1,(1-$F35)/INDEX(Tables!$C$25:$C$40,MATCH($E35,MoistureContentRequired,0),1)) ->  | O35: =IF(ISBLANK($E35),"",INDEX(NutrientUptakeTable,MATCH($E35,CropList,0),MATCH(O$8,Tables!$D$6:$I$6,0)))*$I35*IF(ISERROR(MATCH($E35,MoistureContentRequired,0)),1,(1-$F35)/INDEX(Tables!$C$25:$C$40,MATCH($E35,MoistureContentRequired,0),1)) ->  | Q35: =IF(ISBLANK($E35),"",INDEX(NutrientUptakeTable,MATCH($E35,CropList,0),MATCH(Q$8,Tables!$D$6:$I$6,0)))*$I35*IF(ISERROR(MATCH($E35,MoistureContentRequired,0)),1,(1-$F35)/INDEX(Tables!$C$25:$C$40,MATCH($E35,MoistureContentRequired,0),1)) ->  | S35: =IF(ISBLANK($E35),"",INDEX(NutrientUptakeTable,MATCH($E35,CropList,0),MATCH(S$8,Tables!$D$6:$I$6,0)))*$I35*IF(ISERROR(MATCH($E35,MoistureContentRequired,0)),1,(1-$F35)/INDEX(Tables!$C$25:$C$40,MATCH($E35,MoistureContentRequired,0),1)) ->  | AT35: Year 3 | AV35: =M35 ->  | AX35: =O35 ->  | AZ35: =Q35 ->  | BB35: =S35 -> 
D37: Year 4 | E37: =INDEX(INDIRECT("CropProdPlan"&$J$28),ROWS($D$31:$D37),2) -> 0 | F37: =IF(ISERROR(MATCH($E37,MoistureContentRequired,0)),"",INDEX(INDIRECT("CropProdPlan"&$J$28),ROWS($D$31:$D37),6)) ->  | G37: =INDEX(INDIRECT("CropProdPlan"&$J$28),ROWS($D$31:$D37),8) ->  | I37: =INDEX(INDIRECT("CropProdPlan"&$J$28),ROWS($D$31:$D37),10) -> 0 | J37: =INDEX(INDIRECT("CropProdPlan"&$J$28),ROWS($D$31:$D37),11) ->  | M37: =IF(ISBLANK($E37),"",INDEX(NutrientUptakeTable,MATCH($E37,CropList,0),MATCH(M$8,Tables!$D$6:$I$6,0)))*$I37*IF(ISERROR(MATCH($E37,MoistureContentRequired,0)),1,(1-$F37)/INDEX(Tables!$C$25:$C$40,MATCH($E37,MoistureContentRequired,0),1)) ->  | O37: =IF(ISBLANK($E37),"",INDEX(NutrientUptakeTable,MATCH($E37,CropList,0),MATCH(O$8,Tables!$D$6:$I$6,0)))*$I37*IF(ISERROR(MATCH($E37,MoistureContentRequired,0)),1,(1-$F37)/INDEX(Tables!$C$25:$C$40,MATCH($E37,MoistureContentRequired,0),1)) ->  | Q37: =IF(ISBLANK($E37),"",INDEX(NutrientUptakeTable,MATCH($E37,CropList,0),MATCH(Q$8,Tables!$D$6:$I$6,0)))*$I37*IF(ISERROR(MATCH($E37,MoistureContentRequired,0)),1,(1-$F37)/INDEX(Tables!$C$25:$C$40,MATCH($E37,MoistureContentRequired,0),1)) ->  | S37: =IF(ISBLANK($E37),"",INDEX(NutrientUptakeTable,MATCH($E37,CropList,0),MATCH(S$8,Tables!$D$6:$I$6,0)))*$I37*IF(ISERROR(MATCH($E37,MoistureContentRequired,0)),1,(1-$F37)/INDEX(Tables!$C$25:$C$40,MATCH($E37,MoistureContentRequired,0),1)) ->  | AT37: Year 4 | AV37: =M37 ->  | AX37: =O37 ->  | AZ37: =Q37 ->  | BB37: =S37 -> 
D39: Year 5 | E39: =INDEX(INDIRECT("CropProdPlan"&$J$28),ROWS($D$31:$D39),2) -> 0 | F39: =IF(ISERROR(MATCH($E39,MoistureContentRequired,0)),"",INDEX(INDIRECT("CropProdPlan"&$J$28),ROWS($D$31:$D39),6)) ->  | G39: =INDEX(INDIRECT("CropProdPlan"&$J$28),ROWS($D$31:$D39),8) ->  | I39: =INDEX(INDIRECT("CropProdPlan"&$J$28),ROWS($D$31:$D39),10) -> 0 | J39: =INDEX(INDIRECT("CropProdPlan"&$J$28),ROWS($D$31:$D39),11) ->  | M39: =IF(ISBLANK($E39),"",INDEX(NutrientUptakeTable,MATCH($E39,CropList,0),MATCH(M$8,Tables!$D$6:$I$6,0)))*$I39*IF(ISERROR(MATCH($E39,MoistureContentRequired,0)),1,(1-$F39)/INDEX(Tables!$C$25:$C$40,MATCH($E39,MoistureContentRequired,0),1)) ->  | O39: =IF(ISBLANK($E39),"",INDEX(NutrientUptakeTable,MATCH($E39,CropList,0),MATCH(O$8,Tables!$D$6:$I$6,0)))*$I39*IF(ISERROR(MATCH($E39,MoistureContentRequired,0)),1,(1-$F39)/INDEX(Tables!$C$25:$C$40,MATCH($E39,MoistureContentRequired,0),1)) ->  | Q39: =IF(ISBLANK($E39),"",INDEX(NutrientUptakeTable,MATCH($E39,CropList,0),MATCH(Q$8,Tables!$D$6:$I$6,0)))*$I39*IF(ISERROR(MATCH($E39,MoistureContentRequired,0)),1,(1-$F39)/INDEX(Tables!$C$25:$C$40,MATCH($E39,MoistureContentRequired,0),1)) ->  | S39: =IF(ISBLANK($E39),"",INDEX(NutrientUptakeTable,MATCH($E39,CropList,0),MATCH(S$8,Tables!$D$6:$I$6,0)))*$I39*IF(ISERROR(MATCH($E39,MoistureContentRequired,0)),1,(1-$F39)/INDEX(Tables!$C$25:$C$40,MATCH($E39,MoistureContentRequired,0),1)) ->  | AT39: Year 5 | AV39: =M39 ->  | AX39: =O39 ->  | AZ39: =Q39 ->  | BB39: =S39 -> 
G43: =INDEX(FieldID,$J$14,2) -> 0 | U43: =INDEX(FieldID,$J$28,2) -> 0
D45: SELECT Manure Type | F45: 1 | G45: Year 1 | I45: Year 2 | K45: Year 3 | M45: Year 4 | O45: Year 5 | R45: 5 Year Cost/Benefit Summary | U45: Year 1 | W45: Year 2 | Y45: Year 3 | AA45: Year 4 | AC45: Year 5 | AF45: 5 Year Cost/Benefit Summary
G46: =E17 -> 0 | I46: =E19 -> 0 | K46: =E21 -> 0 | M46: =E23 -> 0 | O46: =E25 -> 0 | U46: =E31 -> 0 | W46: =E33 -> 0 | Y46: =E35 -> 0 | AA46: =E37 -> 0 | AC46: =E39 -> 0
F48: N Requirement for this field, for this Crop | G48: =$AV$17*$G$17 ->  | I48: =$AV$19*$G$19 ->  | K48: =$AV$21*$G$21 ->  | M48: =$AV$23*$G$23 ->  | O48: =$AV$25*$G$25 ->  | U48: =$AV$31*$G$31 ->  | W48: =$AV$33*$G$33 ->  | Y48: =$AV$35*$G$35 ->  | AA48: =$AV$37*$G$37 ->  | AC48: =$AV$39*$G$39 -> 
F49: N Requirement | G49: =G48/$G$17 ->  | I49: =I48/$G$19 ->  | K49: =K48/$G$21 ->  | M49: =M48/$G$23 ->  | O49: =O48/$G$25 ->  | U49: =U48/$G$31 ->  | W49: =W48/$G$33 ->  | Y49: =Y48/$G$35 ->  | AA49: =AA48/$G$37 ->  | AC49: =AC48/$G$39 -> 
F51: N Available Immediately (NInorganic) | G51: =IF(ManureTypeSelection2=2,Tables!$BE$80,Tables!$BE$79) ->  | I51: =G65 ->  | K51: =I65 ->  | M51: =K65 ->  | O51: =M65 ->  | U51: =IF(ManureTypeSelection2=2,Tables!$BE$80,Tables!$BE$79) ->  | W51: =U65 ->  | Y51: =W65 ->  | AA51: =Y65 ->  | AC51: =AA65 -> 
F52: Loss from Incorporation | G52: =-G51*IF(ManureTypeSelection=2,Tables!$BV$29,Tables!$BV$6) ->  | U52: =-U51*IF(ManureTypeSelection=2,Tables!$BV$29,Tables!$BV$6) -> 
F53: N Released During Growing Season (NOrganic) | G53: =25%*IF(ManureTypeSelection2=2,Tables!$BD$80,Tables!$BD$79) ->  | I53: =$G$53/25%*12%*IF($H$72=1,$G$60,$G$61) ->  | K53: =$G$53/25%*6%*IF($H$72=1,$G$60,$G$61) ->  | M53: =$G$53/25%*3%*IF($H$72=1,$G$60,$G$61) ->  | O53: =$G$53/25%*1.5%*IF($H$72=1,$G$60,$G$61) ->  | U53: =25%*IF(ManureTypeSelection2=2,Tables!$BD$80,Tables!$BD$79) ->  | W53: =$U$53/25%*12%*IF($V$72=1,$U$60,$U$61) ->  | Y53: =$U$53/25%*6%*IF($V$72=1,$U$60,$U$61) ->  | AA53: =$U$53/25%*3%*IF($V$72=1,$U$60,$U$61) ->  | AC53: =$U$53/25%*1.5%*IF($V$72=1,$U$60,$U$61) -> 
F54: Total Available Nitrogen from Manure Supply | G54: =SUM(G51:G53) ->  | I54: =SUM(I53,I51) ->  | K54: =SUM(K53,K51) ->  | M54: =SUM(M53,M51) ->  | O54: =SUM(O53,O51) ->  | U54: =SUM(U51:U53) ->  | W54: =SUM(W53,W51) ->  | Y54: =SUM(Y53,Y51) ->  | AA54: =SUM(AA53,AA51) ->  | AC54: =SUM(AC53,AC51) -> 
F55: Total Available Nitrogen from Manure Supply | G55: =G54/$G$17 ->  | I55: =I54/$G$19 ->  | K55: =K54/$G$21 ->  | M55: =M54/$G$23 ->  | O55: =O54/$G$25 ->  | U55: =U54/$G$31 ->  | W55: =W54/$G$33 ->  | Y55: =Y54/$G$35 ->  | AA55: =AA54/$G$37 ->  | AC55: =AC54/$G$39 -> 
F57: Nitrogen Available from Applied Manure | G57: =G62+G65 ->  | I57: =I62+I65 ->  | K57: =K62+K65 ->  | M57: =M62+M65 ->  | O57: =O62+O65 ->  | U57: =U62+U65 ->  | W57: =W62+W65 ->  | Y57: =Y62+Y65 ->  | AA57: =AA62+AA65 ->  | AC57: =AC62+AC65 -> 
F58: N Available from Applied Manure | G58: =G57/$G$17 ->  | I58: =I57/$G$19 ->  | K58: =K57/$G$21 ->  | M58: =M57/$G$23 ->  | O58: =O57/$G$25 ->  | U58: =U57/$G$31 ->  | W58: =W57/$G$33 ->  | Y58: =Y57/$G$35 ->  | AA58: =AA57/$G$37 ->  | AC58: =AC57/$G$39 -> 
G59: =IF(G57<G48,ROUND(G49-G58,0)&" lbs/ac Deficient","") ->  | I59: =IF(I57<I48,ROUND(I49-I58,0)&" lbs/ac Deficient","") ->  | K59: =IF(K57<K48,ROUND(K49-K58,0)&" lbs/ac Deficient","") ->  | M59: =IF(M57<M48,ROUND(M49-M58,0)&" lbs/ac Deficient","") ->  | O59: =IF(O57<O48,ROUND(O49-O58,0)&" lbs/ac Deficient","") ->  | U59: =IF(U57<U48,ROUND(U49-U58,0)&" lbs/ac Deficient","") ->  | W59: =IF(W57<W48,ROUND(W49-W58,0)&" lbs/ac Deficient","") ->  | Y59: =IF(Y57<Y48,ROUND(Y49-Y58,0)&" lbs/ac Deficient","") ->  | AA59: =IF(AA57<AA48,ROUND(AA49-AA58,0)&" lbs/ac Deficient","") ->  | AC59: =IF(AC57<AC48,ROUND(AC49-AC58,0)&" lbs/ac Deficient","") -> 
F60: % of Available Manure Applied (to meet crop needs) | G60: =IF(G54<G$48,100%,G$48/G54) ->  | U60: =IF(U54<U$48,100%,U$48/U54) -> 
F61: User Input of Manure Rate (% of Available Manure) | G61: =G74/G71 ->  | U61: =U74/U71 -> 
F62: Net N Utilized from Manure in Current Year | G62: =IF(H72=1,IF(G$48<G60*G54,G$48,G54*G60),IF(G$48<G61*G54,G$48,G54*G61)) ->  | I62: =IF(I$48<I54,I$48,I54) ->  | K62: =IF(K$48<K54,K$48,K54) ->  | M62: =IF(M$48<M54,M$48,M54) ->  | O62: =IF(O$48<O54,O$48,O54) ->  | U62: =IF(V72=1,IF(U$48<U60*U54,U$48,U54*U60),IF(U$48<U61*U54,U$48,U54*U61)) ->  | W62: =IF(W$48<W54,W$48,W54) ->  | Y62: =IF(Y$48<Y54,Y$48,Y54) ->  | AA62: =IF(AA$48<AA54,AA$48,AA54) ->  | AC62: =IF(AC$48<AC54,AC$48,AC54) -> 
F63: N Utilized from Applied Manure | G63: =G62/$G$17 ->  | I63: =I62/$G$19 ->  | K63: =K62/$G$21 ->  | M63: =M62/$G$23 ->  | O63: =O62/$G$25 ->  | U63: =U62/$G$31 ->  | W63: =W62/$G$31 ->  | Y63: =Y62/$G$31 ->  | AA63: =AA62/$G$31 ->  | AC63: =AC62/$G$31 -> 
F65: Unutilized N (from Manure) | G65: =IF(H72=1,G60,G61)*G54-G62 ->  | I65: =I54-I62 ->  | K65: =K54-K62 ->  | M65: =M54-M62 ->  | O65: =O54-O62 ->  | U65: =IF(V72=1,U60,U61)*U54-U62 ->  | W65: =W54-W62 ->  | Y65: =Y54-Y62 ->  | AA65: =AA54-AA62 ->  | AC65: =AC54-AC62 -> 
F67: =IF(ManureTypeSelection2=2,"Rate of Liquid Manure Application (gal./ac)","Rate of Solid Manure Application (cu.ft./ac)") -> Rate of Solid Manure Application (cu.ft./ac) | G67: =IF(H72=1,G$60,G$61)*(IF(ManureTypeSelection2=2,Tables!$BB$80,Tables!$BB$84))/$G$17 ->  | U67: =IF(V72=1,U$60,U$61)*(IF(ManureTypeSelection2=2,Tables!$BB$80,Tables!$BB$84))/$G$31 -> 
F68: =IF(ManureTypeSelection2=2,"Rate of Manure Application (gal./ac)","Rate of Manure Application (tons/ac)") -> Rate of Manure Application (tons/ac) | G68: =IF($H$72=1,G$60,G$61)*(IF(ManureTypeSelection2=2,Tables!$BB$80,Tables!$BB$79/2000))/$G$17 ->  | U68: =IF($V$72=1,U$60,U$61)*(IF(ManureTypeSelection2=2,Tables!$BB$80,Tables!$BB$79/2000))/$G$31 -> 
F69: =IF(ManureTypeSelection2=2,"Recommended Rate of Manure Application (gal./ac)","Recommended Rate of Manure Application (tons/ac)") -> Recommended Rate of Manure Application (tons/ac) | G69: =G$60*IF(ManureTypeSelection2=2,Tables!$BB$80,Tables!$BB$79/2000)/$G$17 ->  | H69: =IF(AND(ManureTypeSelection2=2,ManureToApply2a_Model<3000),IF(G71<3000,"Warning: A minimum practical application rate (3,000 ga/ac) cannot be met with the volume of liquid manure available.","Warning: A minimum practical application rate (3,000 ga/ac) cannot be acheived for this field without causing an over-application of Nitrogen."),"") ->  | U69: =U$60*IF(ManureTypeSelection2=2,Tables!$BB$80,Tables!$BB$79/2000)/$G$31 ->  | V69: =IF(AND(ManureTypeSelection2=2,ManureToApply2b_Model<3000),IF(U71<3000,"Warning: A minimum practical application rate (3,000 ga/ac) cannot be met with the volume of liquid manure available.","Warning: A minimum practical application rate (3,000 ga/ac) cannot be acheived for this field without causing an over-application of Nitrogen."),"") -> 
F71: =IF(ManureTypeSelection2=2,"Max Rate of Manure Application (gal./ac)","Max Rate of Manure Application (tons/ac)") -> Max Rate of Manure Application (tons/ac) | G71: =IF(ManureTypeSelection2=2,Tables!$BB$80,Tables!$BB$79/2000)/$G$17 ->  | U71: =IF(ManureTypeSelection2=2,Tables!$BB$80,Tables!$BB$79/2000)/$G$31 -> 
F72: Do You Wish to Apply a Different Amount of Manure? | H72: 1 | V72: 1
F74: =IF(OR(H$72=2,V$72=2),"…Enter the rate of Manure to Apply","") ->  | G74: 3.591645958 | H74: =IF(H$72=1,"","Up to a Maximum Rate of "&ROUND(G$71,1)&IF(ManureTypeSelection2=2," gal./ac"," tons/ac")&" (given the available manure supply)") ->  | U74: 15.59842308 | V74: =IF(V$72=1,"","Up to a Maximum Rate of "&ROUND(U$71,1)&IF(ManureTypeSelection2=2," gal./ac"," tons/ac")&" (given the available manure supply)") -> 
Q75: Total Cost to Apply Manure | S75: Value of Manure Nutrients Utilized | AE75: Total Cost to Apply Manure | AG75: Value of Manure Nutrients Utilized
F76: Cost to Apply Manure to Field | G76: =IF(ManureTypeSelection2=2,G67*$G$17*Tables!$BT$46+IF(G67=0,0,$G$17*(Tables!$BU$46+Tables!$BU$47))+G67*$G$17*$G$9*Tables!$BV$46,G67*$G$17*Tables!$BT$23+IF(G67=0,0,$G$17*(Tables!$BU$23+Tables!$BU$24))+G67*$G$17*$G$9*Tables!$BV$23) ->  | Q76: =G76 ->  | S76: =SUM(Q79,Q97,Q116,Q135) ->  | U76: =IF(ManureTypeSelection2=2,U67*$G$31*Tables!$BT$46+IF(U67=0,0,$G$31*(Tables!$BU$46+Tables!$BU$47))+U67*$G$31*$G$11*Tables!$BV$46,U67*$G$31*Tables!$BT$23+IF(U67=0,0,$G$31*(Tables!$BU$23+Tables!$BU$24))+U67*$G$31*$G$11*Tables!$BV$23) ->  | AE76: =U76 ->  | AG76: =SUM(AE79,AE97,AE116,AE135) -> 
F77: Cost to Apply Manure to Field | G77: =G76/$G$17 ->  | Q77: =Q76/(AVERAGE($G$17,$G$19,$G$21,$G$23,$G$25)) ->  | S77: =S76/(AVERAGE($G$17,$G$19,$G$21,$G$23,$G$25)) ->  | U77: =U76/$G$31 ->  | AE77: =AE76/(AVERAGE($G$31,$G$33,$G$35,$G$37,$G$39)) ->  | AG77: =AG76/(AVERAGE($G$31,$G$33,$G$35,$G$37,$G$39)) -> 
F79: Net Nutrient Value of N Utilized from Manure | G79: =G62*'Commercial Fertilizer'!$E$11 ->  | I79: =IF($H$72=1,I53,SUM(G65,I53)-I65)*'Commercial Fertilizer'!$E$11 ->  | K79: =IF($H$72=1,K53,SUM(I65,K53)-K65)*'Commercial Fertilizer'!$E$11 ->  | M79: =IF($H$72=1,M53,SUM(K65,M53)-M65)*'Commercial Fertilizer'!$E$11 ->  | O79: =IF($H$72=1,O53,SUM(M65,O53)-O65)*'Commercial Fertilizer'!$E$11 ->  | Q79: =SUM(G79,I79,K79,M79,O79) ->  | U79: =U62*'Commercial Fertilizer'!$E$11 ->  | W79: =IF($V$72=1,W53,SUM(U65,W53)-W65)*'Commercial Fertilizer'!$E$11 ->  | Y79: =IF($V$72=1,Y53,SUM(W65,Y53)-Y65)*'Commercial Fertilizer'!$E$11 ->  | AA79: =IF($V$72=1,AA53,SUM(Y65,AA53)-AA65)*'Commercial Fertilizer'!$E$11 ->  | AC79: =IF($V$72=1,AC53,SUM(AA65,AC53)-AC65)*'Commercial Fertilizer'!$E$11 ->  | AE79: =SUM(U79,W79,Y79,AA79,AC79) -> 
F82: P2O5 Required | G82: =$AX$17*$G$17 ->  | I82: =$AX$19*$G$19 ->  | K82: =$AX$21*$G$21 ->  | M82: =$AX$23*$G$23 ->  | O82: =$AX$25*$G$25 ->  | U82: =$AX$31*$G$31 ->  | W82: =$AX$33*$G$33 ->  | Y82: =$AX$35*$G$35 ->  | AA82: =$AX$37*$G$37 ->  | AC82: =$AX$39*$G$39 -> 
F83: P2O5 Requirement | G83: =G82/$G$17 ->  | I83: =I82/$G$19 ->  | K83: =K82/$G$21 ->  | M83: =M82/$G$23 ->  | O83: =O82/$G$25 ->  | U83: =U82/$G$31 ->  | W83: =W82/$G$33 ->  | Y83: =Y82/$G$35 ->  | AA83: =AA82/$G$37 ->  | AC83: =AC82/$G$39 -> 
F85: P205 Available from Prior Year | I85: =G99 ->  | K85: =I99 ->  | M85: =K99 ->  | O85: =M99 ->  | W85: =U99 ->  | Y85: =W99 ->  | AA85: =Y99 ->  | AC85: =AA99 -> 
F87: P2O5 Available from Manure | G87: =IF($H$72=1,$G$60,$G$61)*IF(ManureTypeSelection2=2,Tables!$BF$80,Tables!$BF$79)*70% ->  | I87: =IF($H$72=1,$G$60,$G$61)*IF(ManureTypeSelection2=2,Tables!$BF$80,Tables!$BF$79)*20% ->  | K87: =IF($H$72=1,$G$60,$G$61)*IF(ManureTypeSelection2=2,Tables!$BF$80,Tables!$BF$79)*16% ->  | U87: =IF($V$72=1,$U$60,$U$61)*IF(ManureTypeSelection2=2,Tables!$BF$80,Tables!$BF$79)*70% ->  | W87: =IF($V$72=1,$U$60,$U$61)*IF(ManureTypeSelection2=2,Tables!$BF$80,Tables!$BF$79)*20% ->  | Y87: =IF($V$72=1,$U$60,$U$61)*IF(ManureTypeSelection2=2,Tables!$BF$80,Tables!$BF$79)*16% -> 
F88: P2O5 Available from Manure | G88: =G87/$G$17 ->  | I88: =I87/$G$17 ->  | K88: =K87/$G$17 ->  | U88: =U87/$G$31 ->  | W88: =W87/$G$31 ->  | Y88: =Y87/$G$31 -> 
F90: P2O5 Available from Manure | G90: =SUM(G87,G85) ->  | I90: =SUM(I87,I85) ->  | K90: =SUM(K87,K85) ->  | M90: =SUM(M87,M85) ->  | O90: =SUM(O87,O85) ->  | U90: =SUM(U87,U85) ->  | W90: =SUM(W87,W85) ->  | Y90: =SUM(Y87,Y85) ->  | AA90: =SUM(AA87,AA85) ->  | AC90: =SUM(AC87,AC85) -> 
G91: =IF(G90<G82,ROUND(G82-G90,0)&" lbs Deficient","") ->  | I91: =IF(I90<I82,ROUND(I82-I90,0)&" lbs Deficient","") ->  | K91: =IF(K90<K82,ROUND(K82-K90,0)&" lbs Deficient","") ->  | M91: =IF(M90<M82,ROUND(M82-M90,0)&" lbs Deficient","") ->  | O91: =IF(O90<O82,ROUND(O82-O90,0)&" lbs Deficient","") ->  | U91: =IF(U90<U82,ROUND(U82-U90,0)&" lbs Deficient","") ->  | W91: =IF(W90<W82,ROUND(W82-W90,0)&" lbs Deficient","") ->  | Y91: =IF(Y90<Y82,ROUND(Y82-Y90,0)&" lbs Deficient","") ->  | AA91: =IF(AA90<AA82,ROUND(AA82-AA90,0)&" lbs Deficient","") ->  | AC91: =IF(AC90<AC82,ROUND(AC82-AC90,0)&" lbs Deficient","") -> 
F92: P2O5 Available from Manure | G92: =G90/$G$17 ->  | I92: =I90/$G$19 ->  | K92: =K90/$G$21 ->  | M92: =M90/$G$23 ->  | O92: =O90/$G$25 ->  | U92: =U90/$G$31 ->  | W92: =W90/$G$33 ->  | Y92: =Y90/$G$35 ->  | AA92: =AA90/$G$35 ->  | AC92: =AC90/$G$35 -> 
G93: =IF(G90<G82,ROUND((G82-G90)/$G$17,0)&" lbs/ac Deficient","") ->  | I93: =IF(I90<I82,ROUND((I82-I90)/$G$19,0)&" lbs/ac Deficient","") ->  | K93: =IF(K90<K82,ROUND((K82-K90)/$G$21,0)&" lbs/ac Deficient","") ->  | M93: =IF(M90<M82,ROUND((M82-M90)/$G$23,0)&" lbs/ac Deficient","") ->  | O93: =IF(O90<O82,ROUND((O82-O90)/$G$25,0)&" lbs/ac Deficient","") ->  | U93: =IF(U90<U82,ROUND((U82-U90)/$G$31,0)&" lbs/ac Deficient","") ->  | W93: =IF(W90<W82,ROUND((W82-W90)/$G$33,0)&" lbs/ac Deficient","") ->  | Y93: =IF(Y90<Y82,ROUND((Y82-Y90)/$G$35,0)&" lbs/ac Deficient","") ->  | AA93: =IF(AA90<AA82,ROUND((AA82-AA90)/$G$37,0)&" lbs/ac Deficient","") ->  | AC93: =IF(AC90<AC82,ROUND((AC82-AC90)/$G$39,0)&" lbs/ac Deficient","") -> 
F94: P2O5 Utilized from Manure | G94: =IF(G82>G90,G87,G82) ->  | I94: =IF(I82>I90,I90,I82) ->  | K94: =IF(K82>K90,K90,K82) ->  | M94: =IF(M82>M90,M90,M82) ->  | O94: =IF(O82>O90,O90,O82) ->  | U94: =IF(U82>U90,U87,U82) ->  | W94: =IF(W82>W90,W90,W82) ->  | Y94: =IF(Y82>Y90,Y90,Y82) ->  | AA94: =IF(AA82>AA90,AA90,AA82) ->  | AC94: =IF(AC82>AC90,AC90,AC82) -> 
F95: P2O5 Utilized from Manure | G95: =G94/$G$17 ->  | I95: =I94/$G$19 ->  | K95: =K94/$G$21 ->  | M95: =M94/$G$23 ->  | O95: =O94/$G$25 ->  | U95: =U94/$G$31 ->  | W95: =W94/$G$33 ->  | Y95: =Y94/$G$35 ->  | AA95: =AA94/$G$37 ->  | AC95: =AC94/$G$39 -> 
F97: Net Nutrient Value of P2O5 Utilized from Manure | G97: =G94*'Commercial Fertilizer'!$E$12 ->  | I97: =I94*'Commercial Fertilizer'!$E$12 ->  | K97: =K94*'Commercial Fertilizer'!$E$12 ->  | M97: =M94*'Commercial Fertilizer'!$E$12 ->  | O97: =O94*'Commercial Fertilizer'!$E$12 ->  | Q97: =SUM(G97,I97,K97,M97,O97) ->  | U97: =U94*'Commercial Fertilizer'!$E$12 ->  | W97: =W94*'Commercial Fertilizer'!$E$12 ->  | Y97: =Y94*'Commercial Fertilizer'!$E$12 ->  | AA97: =AA94*'Commercial Fertilizer'!$E$12 ->  | AC97: =AC94*'Commercial Fertilizer'!$E$12 ->  | AE97: =SUM(U97,W97,Y97,AA97,AC97) -> 
F99: Unutilized P2O5 (remaining in soil) | G99: =IF(G90-G82<0,0,G90-G82) ->  | I99: =IF(I90-I82<0,0,I90-I82) ->  | K99: =IF(K90-K82<0,0,K90-K82) ->  | M99: =IF(M90-M82<0,0,M90-M82) ->  | O99: =IF(O90-O82<0,0,O90-O82) ->  | U99: =IF(U90-U82<0,0,U90-U82) ->  | W99: =IF(W90-W82<0,0,W90-W82) ->  | Y99: =IF(Y90-Y82<0,0,Y90-Y82) ->  | AA99: =IF(AA90-AA82<0,0,AA90-AA82) ->  | AC99: =IF(AC90-AC82<0,0,AC90-AC82) -> 
F101: K2O Requirement | G101: =$AZ$17*$G$17 ->  | I101: =$AZ$19*$G$19 ->  | K101: =$AZ$21*$G$21 ->  | M101: =$AZ$23*$G$23 ->  | O101: =$AZ$25*$G$25 ->  | U101: =$AZ$31*$G$31 ->  | W101: =$AZ$33*$G$33 ->  | Y101: =$AZ$35*$G$35 ->  | AA101: =$AZ$37*$G$37 ->  | AC101: =$AZ$39*$G$39 -> 
F102: K2O Requirement | G102: =G101/$G$17 ->  | I102: =I101/$G$19 ->  | K102: =K101/$G$21 ->  | M102: =M101/$G$23 ->  | O102: =O101/$G$25 ->  | U102: =U101/$G$31 ->  | W102: =W101/$G$33 ->  | Y102: =Y101/$G$35 ->  | AA102: =AA101/$G$37 ->  | AC102: =AC101/$G$39 -> 
F104: K20 Available from Prior Year | I104: =G118 ->  | K104: =I118 ->  | M104: =K118 ->  | O104: =M118 ->  | W104: =U118 ->  | Y104: =W118 ->  | AA104: =Y118 ->  | AC104: =AA118 -> 
F106: K2O Available from Manure | G106: =IF(H$72=1,G$60,G$61)*IF(ManureTypeSelection2=2,Tables!$BG$80,Tables!$BG$79)*90% ->  | U106: =IF(V$72=1,U$60,U$61)*IF(ManureTypeSelection2=2,Tables!$BG$80,Tables!$BG$79)*90% -> 
F107: K2O Available from Manure | G107: =G106/$G$17 ->  | U107: =U106/$G$31 -> 
F109: K2O Available from Manure | G109: =SUM(G106,G104) ->  | I109: =SUM(I106,I104) ->  | K109: =SUM(K106,K104) ->  | M109: =SUM(M106,M104) ->  | O109: =SUM(O106,O104) ->  | U109: =SUM(U106,U104) ->  | W109: =SUM(W106,W104) ->  | Y109: =SUM(Y106,Y104) ->  | AA109: =SUM(AA106,AA104) ->  | AC109: =SUM(AC106,AC104) -> 
G110: =IF(G109<G101,ROUND(G101-G109,0)&" lbs Deficient","") ->  | I110: =IF(I109<I101,ROUND(I101-I109,0)&" lbs Deficient","") ->  | K110: =IF(K109<K101,ROUND(K101-K109,0)&" lbs Deficient","") ->  | M110: =IF(M109<M101,ROUND(M101-M109,0)&" lbs Deficient","") ->  | O110: =IF(O109<O101,ROUND(O101-O109,0)&" lbs Deficient","") ->  | U110: =IF(U109<U101,ROUND(U101-U109,0)&" lbs Deficient","") ->  | W110: =IF(W109<W101,ROUND(W101-W109,0)&" lbs Deficient","") ->  | Y110: =IF(Y109<Y101,ROUND(Y101-Y109,0)&" lbs Deficient","") ->  | AA110: =IF(AA109<AA101,ROUND(AA101-AA109,0)&" lbs Deficient","") ->  | AC110: =IF(AC109<AC101,ROUND(AC101-AC109,0)&" lbs Deficient","") -> 
F111: K2O Available from Manure | G111: =G109/$G$17 ->  | I111: =I109/$G$19 ->  | K111: =K109/$G$21 ->  | M111: =M109/$G$23 ->  | O111: =O109/$G$25 ->  | U111: =U109/$G$31 ->  | W111: =W109/$G$33 ->  | Y111: =Y109/$G$35 ->  | AA111: =AA109/$G$35 ->  | AC111: =AC109/$G$35 -> 
G112: =IF(G109<G101,ROUND((G101-G109)/$G$17,0)&" lbs/ac Deficient","") ->  | I112: =IF(I109<I101,ROUND((I101-I109)/$G$19,0)&" lbs/ac Deficient","") ->  | K112: =IF(K109<K101,ROUND((K101-K109)/$G$21,0)&" lbs/ac Deficient","") ->  | M112: =IF(M109<M101,ROUND((M101-M109)/$G$23,0)&" lbs/ac Deficient","") ->  | O112: =IF(O109<O101,ROUND((O101-O109)/$G$25,0)&" lbs/ac Deficient","") ->  | U112: =IF(U109<U101,ROUND((U101-U109)/$G$31,0)&" lbs/ac Deficient","") ->  | W112: =IF(W109<W101,ROUND((W101-W109)/$G$33,0)&" lbs/ac Deficient","") ->  | Y112: =IF(Y109<Y101,ROUND((Y101-Y109)/$G$35,0)&" lbs/ac Deficient","") ->  | AA112: =IF(AA109<AA101,ROUND((AA101-AA109)/$G$37,0)&" lbs/ac Deficient","") ->  | AC112: =IF(AC109<AC101,ROUND((AC101-AC109)/$G$39,0)&" lbs/ac Deficient","") -> 
F113: K2O Utilized from Manure | G113: =IF(G101>G109,G106,G101) ->  | I113: =IF(I101>I109,I109,I101) ->  | K113: =IF(K101>K109,K109,K101) ->  | M113: =IF(M101>M109,M109,M101) ->  | O113: =IF(O101>O109,O109,O101) ->  | U113: =IF(U101>U109,U106,U101) ->  | W113: =IF(W101>W109,W109,W101) ->  | Y113: =IF(Y101>Y109,Y109,Y101) ->  | AA113: =IF(AA101>AA109,AA109,AA101) ->  | AC113: =IF(AC101>AC109,AC109,AC101) -> 
F114: K2O Utilized from Manure | G114: =G113/$G$17 ->  | I114: =I113/$G$19 ->  | K114: =K113/$G$21 ->  | M114: =M113/$G$23 ->  | O114: =O113/$G$25 ->  | U114: =U113/$G$31 ->  | W114: =W113/$G$33 ->  | Y114: =Y113/$G$35 ->  | AA114: =AA113/$G$37 ->  | AC114: =AC113/$G$39 -> 
F116: Net Nutrient Value of K2O Utilized from Manure | G116: =G113*'Commercial Fertilizer'!$E$13 ->  | I116: =I113*'Commercial Fertilizer'!$E$13 ->  | K116: =K113*'Commercial Fertilizer'!$E$13 ->  | M116: =M113*'Commercial Fertilizer'!$E$13 ->  | O116: =O113*'Commercial Fertilizer'!$E$13 ->  | Q116: =SUM(G116,I116,K116,M116,O116) ->  | U116: =U113*'Commercial Fertilizer'!$E$13 ->  | W116: =W113*'Commercial Fertilizer'!$E$13 ->  | Y116: =Y113*'Commercial Fertilizer'!$E$13 ->  | AA116: =AA113*'Commercial Fertilizer'!$E$13 ->  | AC116: =AC113*'Commercial Fertilizer'!$E$13 ->  | AE116: =SUM(U116,W116,Y116,AA116,AC116) -> 
F118: Unutilized K2O (remaining in soil) | G118: =IF(G109-G101<0,0,G109-G101) ->  | I118: =IF(I109-I101<0,0,I109-I101) ->  | K118: =IF(K109-K101<0,0,K109-K101) ->  | M118: =IF(M109-M101<0,0,M109-M101) ->  | O118: =IF(O109-O101<0,0,O109-O101) ->  | U118: =IF(U109-U101<0,0,U109-U101) ->  | W118: =IF(W109-W101<0,0,W109-W101) ->  | Y118: =IF(Y109-Y101<0,0,Y109-Y101) ->  | AA118: =IF(AA109-AA101<0,0,AA109-AA101) ->  | AC118: =IF(AC109-AC101<0,0,AC109-AC101) -> 
F120: S Requirement | G120: =$BB$17*$G$17 ->  | I120: =$BB$19*$G$19 ->  | K120: =$BB$21*$G$21 ->  | M120: =$BB$23*$G$23 ->  | O120: =$BB$25*$G$25 ->  | U120: =$BB$31*$G$31 ->  | W120: =$BB$33*$G$33 ->  | Y120: =$BB$35*$G$35 ->  | AA120: =$BB$37*$G$37 ->  | AC120: =$BB$39*$G$39 -> 
F121: S Requirement | G121: =G120/$G$17 ->  | I121: =I120/$G$19 ->  | K121: =K120/$G$21 ->  | M121: =M120/$G$23 ->  | O121: =O120/$G$25 ->  | U121: =U120/$G$31 ->  | W121: =W120/$G$33 ->  | Y121: =Y120/$G$35 ->  | AA121: =AA120/$G$35 ->  | AC121: =AC120/$G$35 -> 
F123: S Available from Prior Year | I123: =G137 ->  | K123: =I137 ->  | M123: =K137 ->  | O123: =M137 ->  | W123: =U137 ->  | Y123: =W137 ->  | AA123: =Y137 ->  | AC123: =AA137 -> 
F125: S Available from Manure | G125: =IF(H$72=1,G$60,G$61)*IF(ManureTypeSelection2=2,Tables!$BH$80,Tables!$BH$79)*90% ->  | U125: =IF(V$72=1,U$60,U$61)*IF(ManureTypeSelection2=2,Tables!$BH$80,Tables!$BH$79)*90% -> 
F126: S Available from Manure | G126: =G125/$G$17 ->  | U126: =U125/$G$31 -> 
F128: S Available from Manure | G128: =SUM(G125,G123) ->  | I128: =SUM(I125,I123) ->  | K128: =SUM(K125,K123) ->  | M128: =SUM(M125,M123) ->  | O128: =SUM(O125,O123) ->  | U128: =SUM(U125,U123) ->  | W128: =SUM(W125,W123) ->  | Y128: =SUM(Y125,Y123) ->  | AA128: =SUM(AA125,AA123) ->  | AC128: =SUM(AC125,AC123) -> 
G129: =IF(G128<G120,ROUND(G120-G128,0)&" lbs Deficient","") ->  | I129: =IF(I128<I120,ROUND(I120-I128,0)&" lbs Deficient","") ->  | K129: =IF(K128<K120,ROUND(K120-K128,0)&" lbs Deficient","") ->  | M129: =IF(M128<M120,ROUND(M120-M128,0)&" lbs Deficient","") ->  | O129: =IF(O128<O120,ROUND(O120-O128,0)&" lbs Deficient","") ->  | U129: =IF(U128<U120,ROUND(U120-U128,0)&" lbs Deficient","") ->  | W129: =IF(W128<W120,ROUND(W120-W128,0)&" lbs Deficient","") ->  | Y129: =IF(Y128<Y120,ROUND(Y120-Y128,0)&" lbs Deficient","") ->  | AA129: =IF(AA128<AA120,ROUND(AA120-AA128,0)&" lbs Deficient","") ->  | AC129: =IF(AC128<AC120,ROUND(AC120-AC128,0)&" lbs Deficient","") -> 
F130: S Available from Manure | G130: =G128/$G$17 ->  | I130: =I128/$G$19 ->  | K130: =K128/$G$21 ->  | M130: =M128/$G$23 ->  | O130: =O128/$G$25 ->  | U130: =U128/$G$31 ->  | W130: =W128/$G$33 ->  | Y130: =Y128/$G$35 ->  | AA130: =AA128/$G$35 ->  | AC130: =AC128/$G$35 -> 
G131: =IF(G128<G120,ROUND((G120-G128)/$G$17,0)&" lbs/ac Deficient","") ->  | I131: =IF(I128<I120,ROUND((I120-I128)/$G$19,0)&" lbs/ac Deficient","") ->  | K131: =IF(K128<K120,ROUND((K120-K128)/$G$21,0)&" lbs/ac Deficient","") ->  | M131: =IF(M128<M120,ROUND((M120-M128)/$G$23,0)&" lbs/ac Deficient","") ->  | O131: =IF(O128<O120,ROUND((O120-O128)/$G$25,0)&" lbs/ac Deficient","") ->  | U131: =IF(U128<U120,ROUND((U120-U128)/$G$31,0)&" lbs/ac Deficient","") ->  | W131: =IF(W128<W120,ROUND((W120-W128)/$G$33,0)&" lbs/ac Deficient","") ->  | Y131: =IF(Y128<Y120,ROUND((Y120-Y128)/$G$35,0)&" lbs/ac Deficient","") ->  | AA131: =IF(AA128<AA120,ROUND((AA120-AA128)/$G$37,0)&" lbs/ac Deficient","") ->  | AC131: =IF(AC128<AC120,ROUND((AC120-AC128)/$G$39,0)&" lbs/ac Deficient","") -> 
F132: S Utilized from Manure | G132: =IF(G120>G128,G125,G120) ->  | I132: =IF(I120>I128,I128,I120) ->  | K132: =IF(K120>K128,K128,K120) ->  | M132: =IF(M120>M128,M128,M120) ->  | O132: =IF(O120>O128,O128,O120) ->  | U132: =IF(U120>U128,U125,U120) ->  | W132: =IF(W120>W128,W128,W120) ->  | Y132: =IF(Y120>Y128,Y128,Y120) ->  | AA132: =IF(AA120>AA128,AA128,AA120) ->  | AC132: =IF(AC120>AC128,AC128,AC120) -> 
F133: S Utilized from Manure | G133: =G132/$G$17 ->  | I133: =I132/$G$19 ->  | K133: =K132/$G$21 ->  | M133: =M132/$G$23 ->  | O133: =O132/$G$25 ->  | U133: =U132/$G$31 ->  | W133: =W132/$G$33 ->  | Y133: =Y132/$G$35 ->  | AA133: =AA132/$G$37 ->  | AC133: =AC132/$G$39 -> 
F135: Net Nutrient Value of S Utilized from Manure | G135: =G132*'Commercial Fertilizer'!$E$14 ->  | I135: =I132*'Commercial Fertilizer'!$E$14 ->  | K135: =K132*'Commercial Fertilizer'!$E$14 ->  | M135: =M132*'Commercial Fertilizer'!$E$14 ->  | O135: =O132*'Commercial Fertilizer'!$E$14 ->  | Q135: =SUM(G135,I135,K135,M135,O135) ->  | U135: =U132*'Commercial Fertilizer'!$E$14 ->  | W135: =W132*'Commercial Fertilizer'!$E$14 ->  | Y135: =Y132*'Commercial Fertilizer'!$E$14 ->  | AA135: =AA132*'Commercial Fertilizer'!$E$14 ->  | AC135: =AC132*'Commercial Fertilizer'!$E$14 ->  | AE135: =SUM(U135,W135,Y135,AA135,AC135) -> 
F137: Unutilized S (remaining in soil) | G137: =IF(G128-G120<0,0,G128-G120) ->  | I137: =IF(I128-I120<0,0,I128-I120) ->  | K137: =IF(K128-K120<0,0,K128-K120) ->  | M137: =IF(M128-M120<0,0,M128-M120) ->  | O137: =IF(O128-O120<0,0,O128-O120) ->  | U137: =IF(U128-U120<0,0,U128-U120) ->  | W137: =IF(W128-W120<0,0,W128-W120) ->  | Y137: =IF(Y128-Y120<0,0,Y128-Y120) ->  | AA137: =IF(AA128-AA120<0,0,AA128-AA120) ->  | AC137: =IF(AC128-AC120<0,0,AC128-AC120) -> 

Sheet Summary2
AC8: Conversion Table
A9: 1 | AC9: 1 ac = | AD9: 0.4047 | AE9: ha
AC10: 1 lbs = | AD10: =1/2.2046 -> 0.4535970244 | AE10: kg
D11: Spreadable Size | E11: ='Analysis2 - Compare 2 Fields'!$I$9*IF(Units=2,$AD$9,1) -> 75 | F11: =IF(Units=2,"ha","acres") -> acres | O11: ='Analysis2 - Compare 2 Fields'!$I$11*IF(Units=2,$AD$9,1) -> 75 | P11: =IF(Units=2,"ha","acres") -> acres | AC11: 1 mi = | AD11: 1.6033 | AE11: km
D12: Planned Crop (year 1) | E12: ='Analysis2 - Compare 2 Fields'!$E$17 -> 0 | O12: ='Analysis2 - Compare 2 Fields'!E31 -> 0 | AC12: 1 ton = | AD12: =1/1.016 -> 0.9842519685 | AE12: tonnes
D13: Target Yield | E13: ='Analysis2 - Compare 2 Fields'!$I$17/IF(F13="bu/ha",$AD$9,IF(F13="tonnes/ha",$AD$9/$AD$12,1)) -> 0 | F13: =IF(AND(Units=2,'Analysis2 - Compare 2 Fields'!$J$17="bu/acre"),"bu/ha",IF(AND(Units=2,'Analysis2 - Compare 2 Fields'!$J$17="tons/acre"),"tonnes/ha",'Analysis2 - Compare 2 Fields'!$J$17)) ->  | O13: ='Analysis2 - Compare 2 Fields'!I31/IF(P13="bu/ha",$AD$9,IF(P13="tonnes/ha",$AD$9/$AD$12,1)) -> 0 | P13: =IF(AND(Units=2,'Analysis2 - Compare 2 Fields'!$J$31="bu/acre"),"bu/ha",IF(AND(Units=2,'Analysis2 - Compare 2 Fields'!$J$31="tons/acre"),"tonnes/ha",'Analysis2 - Compare 2 Fields'!$J$31)) ->  | AC13: 1 gal = | AD13: 4.546 | AE13: litres
D15: Manure Application Rate - Currently Set At: | E15: ='Analysis2 - Compare 2 Fields'!$G$68*IF(F15="litres/ha",$AD$13/$AD$9,IF(F15="tonnes/ha",$AD$12/$AD$9,1)) ->  | F15: =IF(Units=2,IF(ManureTypeSelection2=2,"litres/ha","tonnes/ha"),IF(ManureTypeSelection2=2," gal./ac"," tons/ac")) -> tons/ac | H15: =IF(AND(ManureTypeSelection2=2,ManureToApply2a_Model<3000),IF(F71<3000,"Warning: A minimum practical application rate (3,000 ga/ac) cannot be met with the volume of liquid manure available.","Warning: A minimum practical application rate (3,000 ga/ac) cannot be acheived for this field without causing an over-application of Nitrogen."),"") ->  | O15: ='Analysis2 - Compare 2 Fields'!$U$68*IF(P15="litres/ha",$AD$13/$AD$9,IF(P15="tonnes/ha",$AD$12/$AD$9,1)) ->  | P15: =IF(Units=2,IF(ManureTypeSelection2=2,"litres/ha","tonnes/ha"),IF(ManureTypeSelection2=2," gal./ac"," tons/ac")) -> tons/ac | R15: =IF(AND(ManureTypeSelection2=2,ManureToApply2b_Model<3000),IF(U71<3000,"Warning: A minimum practical application rate (3,000 ga/ac) cannot be met with the volume of liquid manure available.","Warning: A minimum practical application rate (3,000 ga/ac) cannot be acheived for this field without causing an over-application of Nitrogen."),"") -> 
D17: Do You Wish to Apply a Different Amount of Manure?
D19: =IF(OR('Analysis2 - Compare 2 Fields'!$H$72=2,'Analysis2 - Compare 2 Fields'!$V$72=2),"…Enter the rate of Manure to Apply on Analysis Tab","") ->  | E19: =IF('Analysis2 - Compare 2 Fields'!$H$72=1,"","<Click Here>") ->  | O19: =IF('Analysis2 - Compare 2 Fields'!$V$72=1,"","<Click Here>") -> 
G21: =IF('Analysis2 - Compare 2 Fields'!$H$72=1,"The MODEL recommends ","YOU have chosen ")&"to apply "&ROUND('Analysis2 - Compare 2 Fields'!$G$68,1)&IF(ManureTypeSelection=2," gal./ac"," tons/ac")&" to this field. Based on this, the following Nutrients are Available & Utilized:" ->  | Q21: =IF('Analysis2 - Compare 2 Fields'!$V$72=1,"The MODEL recommends ","YOU have chosen ")&"to apply "&ROUND('Analysis2 - Compare 2 Fields'!$U$68,1)&IF(ManureTypeSelection=2," gal./ac"," tons/ac")&" to this field. Based on this, the following Nutrients are Available & Utilized:" -> 
E22: Nutrient Recommendation | G22: Nutrients Available from Manure | I22: Nutrients Utilized from Manure | K22: Nutrient Shortfall/Excess | O22: Nutrient Recommendation | Q22: Nutrients Available from Manure | S22: Nutrients Utilized from Manure | U22: Nutrient Shortfall/Excess
E23: =IF(AND(ISBLANK('Analysis2 - Compare 2 Fields'!W9),ISBLANK('Analysis2 - Compare 2 Fields'!Y9),ISBLANK('Analysis2 - Compare 2 Fields'!AA9),ISBLANK('Analysis2 - Compare 2 Fields'!AC9)),"from Lab","User Override") -> from Lab | G23: (in Year 1 of Plan) | I23: (in Year 1 of Plan) | K23: (based on N optimization) | O23: =IF(AND(ISBLANK('Analysis2 - Compare 2 Fields'!AF9),ISBLANK('Analysis2 - Compare 2 Fields'!AH9),ISBLANK('Analysis2 - Compare 2 Fields'!AJ9),ISBLANK('Analysis2 - Compare 2 Fields'!AL9)),"from Lab","User Override") -> from Lab | Q23: (in Year 1 of Plan) | S23: (in Year 1 of Plan) | U23: (based on N optimization)
E24: (in Year 1 of Plan) | K24: (in Year 1 of Plan) | O24: (in Year 1 of Plan) | U24: (in Year 1 of Plan)
E25: =IF(Units=2,"kg/ha","lbs/ac") -> lbs/ac | G25: =IF(Units=2,"kg/ha","lbs/ac") -> lbs/ac | I25: =IF(Units=2,"kg/ha","lbs/ac") -> lbs/ac | K25: =IF(Units=2,"kg/ha","lbs/ac") -> lbs/ac | O25: =IF(Units=2,"kg/ha","lbs/ac") -> lbs/ac | Q25: =IF(Units=2,"kg/ha","lbs/ac") -> lbs/ac | S25: =IF(Units=2,"kg/ha","lbs/ac") -> lbs/ac | U25: =IF(Units=2,"kg/ha","lbs/ac") -> lbs/ac
D26: N | E26: ='Analysis2 - Compare 2 Fields'!$AV$17*IF(Units=2,$AD$10/$AD$9,1) ->  | G26: ='Analysis2 - Compare 2 Fields'!$G$58*IF(Units=2,$AD$10/$AD$9,1) ->  | I26: ='Analysis2 - Compare 2 Fields'!$G$63*IF(Units=2,$AD$10,1) ->  | K26: =IF(G26>E26,G26-I26,I26-E26) ->  | O26: ='Analysis2 - Compare 2 Fields'!$AV$31*IF(Units=2,$AD$10/$AD$9,1) ->  | Q26: ='Analysis2 - Compare 2 Fields'!$U$58*IF(Units=2,$AD$10/$AD$9,1) ->  | S26: ='Analysis2 - Compare 2 Fields'!$U$63*IF(Units=2,$AD$10,1) ->  | U26: =IF(Q26>O26,Q26-S26,S26-O26) -> 
D27: P2O5 | E27: ='Analysis2 - Compare 2 Fields'!$AX$17*IF(Units=2,$AD$10/$AD$9,1) ->  | G27: ='Analysis2 - Compare 2 Fields'!$G$92*IF(Units=2,$AD$10/$AD$9,1) ->  | I27: ='Analysis2 - Compare 2 Fields'!$G$95*IF(Units=2,$AD$10,1) ->  | K27: =IF(G27>E27,G27-I27,I27-E27) ->  | O27: ='Analysis2 - Compare 2 Fields'!$AX$31*IF(Units=2,$AD$10/$AD$9,1) ->  | Q27: ='Analysis2 - Compare 2 Fields'!$U$92*IF(Units=2,$AD$10/$AD$9,1) ->  | S27: ='Analysis2 - Compare 2 Fields'!$U$95*IF(Units=2,$AD$10,1) ->  | U27: =IF(Q27>O27,Q27-S27,S27-O27) -> 
D28: K2O | E28: ='Analysis2 - Compare 2 Fields'!$AZ$17*IF(Units=2,$AD$10/$AD$9,1) ->  | G28: ='Analysis2 - Compare 2 Fields'!$G$111*IF(Units=2,$AD$10/$AD$9,1) ->  | I28: ='Analysis2 - Compare 2 Fields'!$G$114*IF(Units=2,$AD$10,1) ->  | K28: =IF(G28>E28,G28-I28,I28-E28) ->  | O28: ='Analysis2 - Compare 2 Fields'!$AZ$31*IF(Units=2,$AD$10/$AD$9,1) ->  | Q28: ='Analysis2 - Compare 2 Fields'!$U$111*IF(Units=2,$AD$10/$AD$9,1) ->  | S28: ='Analysis2 - Compare 2 Fields'!$U$114*IF(Units=2,$AD$10,1) ->  | U28: =IF(Q28>O28,Q28-S28,S28-O28) -> 
D29: S | E29: ='Analysis2 - Compare 2 Fields'!$BB$17*IF(Units=2,$AD$10/$AD$9,1) ->  | G29: ='Analysis2 - Compare 2 Fields'!$G$130*IF(Units=2,$AD$10/$AD$9,1) ->  | I29: ='Analysis2 - Compare 2 Fields'!$G$133*IF(Units=2,$AD$10,1) ->  | K29: =IF(G29>E29,G29-I29,I29-E29) ->  | O29: ='Analysis2 - Compare 2 Fields'!$BB$31*IF(Units=2,$AD$10/$AD$9,1) ->  | Q29: ='Analysis2 - Compare 2 Fields'!$U$130*IF(Units=2,$AD$10/$AD$9,1) ->  | S29: ='Analysis2 - Compare 2 Fields'!$U$133*IF(Units=2,$AD$10,1) ->  | U29: =IF(Q29>O29,Q29-S29,S29-O29) -> 
J31: =IF(OR(ROUND(K26,0)>0,ROUND(K26,0)>0),"Over-applied nutrients at risk of being lost","") ->  | T31: =IF(OR(ROUND(U26,0)>0,ROUND(U26,0)>0),"Over-applied nutrients at risk of being lost","") -> 
E32: ="Economic Cost/Benefit for "&'Analysis2 - Compare 2 Fields'!$G$43 -> Economic Cost/Benefit for 0 | O32: ="Economic Cost/Benefit for "&'Analysis2 - Compare 2 Fields'!$U$43 -> Economic Cost/Benefit for 0
E34: In Year 1 | I34: Over 5 Years | O34: In Year 1 | S34: Over 5 Years
E35: Total $ | G35: =IF(Units=2,"$/ha","$/acre") -> $/acre | I35: Total $ | K35: =IF(Units=2,"$/ha","$/acre") -> $/acre | O35: Total $ | Q35: =IF(Units=2,"$/ha","$/acre") -> $/acre | S35: Total $ | U35: =IF(Units=2,"$/ha","$/acre") -> $/acre
D36: Cost to Apply Manure | E36: =I36 ->  | G36: =K36 ->  | I36: ='Analysis2 - Compare 2 Fields'!$Q$76 ->  | K36: ='Analysis2 - Compare 2 Fields'!$Q$77/IF(Units=2,$AD$9,1) ->  | O36: =S36 ->  | Q36: =U36 ->  | S36: ='Analysis2 - Compare 2 Fields'!$AE$76 ->  | U36: ='Analysis2 - Compare 2 Fields'!AE77/IF(Units=2,$AD$9,1) -> 
D38: Value of Manure Nutrients Utilized: | E38: Total $ | G38: =IF(Units=2,"$/ha","$/acre") -> $/acre | I38: Total $ | K38: =IF(Units=2,"$/ha","$/acre") -> $/acre | O38: Total $ | Q38: =IF(Units=2,"$/ha","$/acre") -> $/acre | S38: Total $ | U38: =IF(Units=2,"$/ha","$/acre") -> $/acre
D39: N | E39: ='Analysis2 - Compare 2 Fields'!$G$79 ->  | G39: =$G$36/$E$36*E39 ->  | I39: ='Analysis2 - Compare 2 Fields'!$Q$79 ->  | K39: =$K$36/$I$36*I39 ->  | O39: ='Analysis2 - Compare 2 Fields'!$U$79 ->  | Q39: =$G$36/$E$36*O39 ->  | S39: ='Analysis2 - Compare 2 Fields'!$AE$79 ->  | U39: =$K$36/$I$36*S39 -> 
D40: P2O5 | E40: ='Analysis2 - Compare 2 Fields'!$G$97 ->  | G40: =$G$36/$E$36*E40 ->  | I40: ='Analysis2 - Compare 2 Fields'!$Q$97 ->  | K40: =$K$36/$I$36*I40 ->  | O40: ='Analysis2 - Compare 2 Fields'!$U$97 ->  | Q40: =$G$36/$E$36*O40 ->  | S40: ='Analysis2 - Compare 2 Fields'!$AE$97 ->  | U40: =$K$36/$I$36*S40 -> 
D41: K2O | E41: ='Analysis2 - Compare 2 Fields'!$G$116 ->  | G41: =$G$36/$E$36*E41 ->  | I41: ='Analysis2 - Compare 2 Fields'!$Q$116 ->  | K41: =$K$36/$I$36*I41 ->  | O41: ='Analysis2 - Compare 2 Fields'!$U$116 ->  | Q41: =$G$36/$E$36*O41 ->  | S41: ='Analysis2 - Compare 2 Fields'!$AE$116 ->  | U41: =$K$36/$I$36*S41 -> 
D42: S | E42: ='Analysis2 - Compare 2 Fields'!$G$135 ->  | G42: =$G$36/$E$36*E42 ->  | I42: ='Analysis2 - Compare 2 Fields'!$Q$135 ->  | K42: =$K$36/$I$36*I42 ->  | O42: ='Analysis2 - Compare 2 Fields'!$U$135 ->  | Q42: =$G$36/$E$36*O42 ->  | S42: ='Analysis2 - Compare 2 Fields'!$AE$135 ->  | U42: =$K$36/$I$36*S42 -> 
D43: Total | E43: =SUM(E39:E42) ->  | G43: =SUM(G39:G42) ->  | I43: =SUM(I39:I42) ->  | K43: =SUM(K39:K42) ->  | O43: =SUM(O39:O42) ->  | Q43: =SUM(Q39:Q42) ->  | S43: =SUM(S39:S42) ->  | U43: =SUM(U39:U42) -> 
D45: Net Economic Benefit | E45: =E43-E36 ->  | G45: =G43-G36 ->  | I45: =I43-I36 ->  | K45: =K43-K36 ->  | O45: =O43-O36 ->  | Q45: =Q43-Q36 ->  | S45: =S43-S36 ->  | U45: =U43-U36 -> 

Sheet Tables (hidden)
B1: TABLES - DEMAND | U1: TABLES - MANURE PRODUCTION & COMPOSITION | AX1: Manure Supply Calculations | BN1: TABLES - APPLICATION CONSIDERATIONS | CD1: Commercial Fertilizer Calculations
AX3: Year 1
D4: Nutrient Uptake by Crop | K4: Soil N Mineralization | Z4: Daily Production Volume - Solid Manure | AD4: Daily Production Volume - Liquid Manure | AH4: CompositionSolid | AP4: CompositionLiquid | AX4: Livestock Species from 1st Input Selector | BS4: Solid Manure Application Method and Incorporation Inputs | BY4: Cost Tables - Solid Manure Application & Incorporation | CD4: For Use in Solid Manure Calculations:
F5: Uptake (lbs/yield unit) | L5: Organic Matter (%) | N5: Soil N Mineralization | U5: Species | W5: Species | X5: Class | Z5: Species&Class | AA5: lbs | AB5: cu ft | AD5: Species&Class | AE5: gal | AF5: cu ft | AH5: Species&Class | AI5: NTotal | AJ5: NOrg | AK5: NInorg | AL5: PTotal | AM5: KTotal | AN5: STotal | AP5: Species&Class | AQ5: NTotal | AR5: NOrg | AS5: NInorg | AT5: PTotal | AU5: KTotal | AV5: STotal | AY5: Selected Species | AZ5: Selected Class | BA5: Manure Type | BB5: Production | BC5: NTotal | BD5: NOrg | BE5: NInorg | BF5: P2O5 | BG5: K2O | BH5: S | BN5: Solid Manure Equipment | BO5: Selected? | BP5: SumProduct | BS5: Selected Application | BT5: Selected Incorporation | BU5: Selected Incorp. Lag | BV5: NH3 Loss% | BW5: Manure Source | BY5: Table Range Name: "CostSpreaderVar"
B6: Soil Texture List: | D6: Crop | E6: Yield Unit | F6: N | G6: P2O5 | H6: K2O | I6: S | L6: Mean | M6: Range | N6: Mean | O6: Range | P6: Mean | Q6: Range | Z6: =$W7&$X7 -> BeefFeeders | AA6: 8.4 | AB6: 0.21 | AH6: =$W7&$X7 -> BeefFeeders | AI6: 0.01 | AJ6: =AI6-AK6 -> 0.00745 | AK6: 0.00255 | AL6: 0.0024 | AM6: 0.00665 | AN6: =1.7/2000 -> 0.00085 | AY6: 3 | AZ6: 1 | BA6: 2 | BB6: =IF(BB7=0,IF(ISERROR(VLOOKUP(AY7&AZ7,ProductionSolidManure,2,FALSE)),0,VLOOKUP(AY7&AZ7,ProductionSolidManure,2,FALSE)),0) -> 0 | BC6: =IF(ISERROR(VLOOKUP($AY7&$AZ7,CompositionSolid,1,FALSE)),0,VLOOKUP($AY7&$AZ7,CompositionSolid,2,FALSE)) -> 0.004 | BD6: =IF(ISERROR(VLOOKUP($AY7&$AZ7,CompositionSolid,1,FALSE)),0,VLOOKUP($AY7&$AZ7,CompositionSolid,3,FALSE)) -> 0.0022 | BE6: =IF(ISERROR(VLOOKUP($AY7&$AZ7,CompositionSolid,1,FALSE)),0,VLOOKUP($AY7&$AZ7,CompositionSolid,4,FALSE)) -> 0.0018 | BF6: =IF(ISERROR(VLOOKUP($AY7&$AZ7,CompositionSolid,1,FALSE)),0,VLOOKUP($AY7&$AZ7,CompositionSolid,5,FALSE)*2.29) -> 0.0019465 | BG6: =IF(ISERROR(VLOOKUP($AY7&$AZ7,CompositionSolid,1,FALSE)),0,VLOOKUP($AY7&$AZ7,CompositionSolid,6,FALSE)*1.2) -> 0.00498 | BH6: =IF(ISERROR(VLOOKUP($AY7&$AZ7,CompositionSolid,1,FALSE)),0,VLOOKUP($AY7&$AZ7,CompositionSolid,7,FALSE)) -> 0.00075 | BN6: Truck Mounted Manure Spreader | BO6: FALSE | BP6: =IF(BO6=TRUE,1,0) -> 0 | BS6: 1 | BT6: 2 | BU6: 1 | BV6: =IF(BT6=1,$BO$35,INDEX($BN$36:$BO$40,BU6,2)) -> 0.25 | BW6: 1 | BY6: Solid Manure Spreader (variable costs) | CD6: Commercial Fertilizer Blend Cost | CH6: Year 1 | CJ6: =IF(ISERROR('Analysis1 - 5 Year Cost'!#REF!/CF8),0,'Analysis1 - 5 Year Cost'!#REF!/CF8) -> 0
B7: Coarse | D7: Spring Wheat | E7: bu | F7: 2.1125 | G7: 0.8 | H7: 1.8125 | I7: 0.225 | K7: Soil Zone List: | L7: % | M7: % | N7: lb/ac | O7: lb/ac | P7: kg/ha | Q7: kg/ha | U7: Beef | W7: Beef | X7: Feeders | Z7: =$W8&$X8 -> BeefFinishers – Open Lot | AA7: 13.1 | AB7: 0.32 | AH7: =$W8&$X8 -> BeefFinishers – Open Lot | AI7: =20/2000 -> 0.01 | AJ7: =AI7-AK7 -> 0.00745 | AK7: 0.00255 | AL7: 0.0024 | AM7: 0.00665 | AN7: 0.00085 | AY7: =INDEX(LivestockSpecies,AY6) -> Dairy | AZ7: =INDEX(Class1,AZ6) -> Loose Stall | BA7: =INDEX(ManureType1,BA6) -> Liquid | BB7: =IF(ISERROR(VLOOKUP(AY7&AZ7,ProductionLiquidManure,2,FALSE)),0,IF(BA7="Liquid",VLOOKUP(AY7&AZ7,ProductionLiquidManure,2,FALSE),0)) -> 25.7 | BC7: =IF(ISERROR(VLOOKUP($AY7&$AZ7,CompositionLiquid,1,FALSE)),0,VLOOKUP($AY7&$AZ7,CompositionLiquid,2,FALSE)) -> 0.004 | BD7: =IF(ISERROR(VLOOKUP($AY7&$AZ7,CompositionLiquid,1,FALSE)),0,VLOOKUP($AY7&$AZ7,CompositionLiquid,3,FALSE)) -> 0.0022 | BE7: =IF(ISERROR(VLOOKUP($AY7&$AZ7,CompositionLiquid,1,FALSE)),0,VLOOKUP($AY7&$AZ7,CompositionLiquid,4,FALSE)) -> 0.0018 | BF7: =IF(ISERROR(VLOOKUP($AY7&$AZ7,CompositionLiquid,1,FALSE)),0,VLOOKUP($AY7&$AZ7,CompositionLiquid,5,FALSE)*2.29) -> 0.0019465 | BG7: =IF(ISERROR(VLOOKUP($AY7&$AZ7,CompositionLiquid,1,FALSE)),0,VLOOKUP($AY7&$AZ7,CompositionLiquid,6,FALSE)*1.2) -> 0.00498 | BH7: =IF(ISERROR(VLOOKUP($AY7&$AZ7,CompositionLiquid,1,FALSE)),0,VLOOKUP($AY7&$AZ7,CompositionLiquid,7,FALSE)) -> 0.0002058823529 | BN7: Tractor and Pull Type Manure Spreader | BO7: TRUE | BP7: 1 | BS7: =INDEX(BN47,BS6) -> Solid Manure Spreader | BT7: =INDEX(BS10:BS13,BT6) -> H.D. Cultivator - Once Over | BU7: =INDEX(BS16:BS20,BU6) -> Incorporated within 1 day | BW7: =INDEX(BN85:BN86,BW6) -> Source in Yard - Travel to Source | BZ7: In Yard | CA7: In Field | CE7: Blend % | CF7: lbs/tonne | CG7: $/lb | CH7: Cost/tonne
B8: Medium | D8: Winter Wheat | E8: bu | F8: 1.35 | G8: 0.61 | H8: 1.42 | I8: 0.2 | K8: Brown | L8: 2.4 | M8: 1.9 - 2.9 | N8: 28 | O8: 27 - 29 | P8: =N8*1.12 -> 31.36 | Q8: 30 - 32 | U8: Dairy | W8: Beef | X8: Finishers – Open Lot | Z8: BeefFinishers – Paved Lot | AA8: 19.8 | AB8: 0.43 | AH8: BeefFinishers – Paved Lot | AI8: =14/2000 -> 0.007 | AJ8: 0.0043 | AK8: 0.0027 | AL8: 0.00085 | AM8: 0.00375 | AN8: 0.00085 | BN8: Tandem Truck | BO8: TRUE | BP8: 1 | BY8: Spreader Hopper Size | BZ8: =IF(ISBLANK(SolidEquipVarUser1),SolidEquipVarDefault1,SolidEquipVarUser1) -> 250 | CA8: =BZ8 -> 250 | CB8: cu.ft. | CD8: N | CE8: =VLOOKUP(CI$6,FertilizerBlend,2,FALSE) ->  | CF8: =CE8*2205 ->  | CG8: =IF($CI6='Commercial Fertilizer'!$J$10,'Commercial Fertilizer'!$E$10,'Commercial Fertilizer'!$E$11) -> 0.5028098196 | CH8: =CG8*CF8 -> 
B9: Fine | D9: Barley | E9: bu | F9: 1.3875 | G9: 0.55625 | H9: 1.33125 | I9: 0.1625 | K9: Brown Irrigated | L9: 2.4 | M9: 1.9 - 2.9 | N9: 70 | P9: 78.4 | U9: Swine | W9: Beef | X9: Finishers – Paved Lot | Z9: BeefFeeder Calves <550 lbs | AA9: 3.3 | AB9: 0.08 | AH9: BeefFeeder Calves <550 lbs | AI9: 0.01 | AJ9: 0.00745 | AK9: 0.00255 | AL9: 0.0024 | AM9: 0.00665 | AN9: 0.00085 | AY9: Class Options | BB9: Total Production | BC9: NTotal | BD9: NOrg | BE9: NInorg | BF9: P2O5 | BG9: K2O | BH9: S | BN9: Single Axle Truck | BO9: TRUE | BP9: 1 | BS9: Incorporation Options | BT9: Starts on Row | BY9: Hopper Fill Time | BZ9: =IF(ISBLANK(SolidEquipVarUser2),SolidEquipVarDefault2,SolidEquipVarUser2) -> 5 | CA9: =BZ9 -> 5 | CB9: min | CD9: P2O5 | CE9: =VLOOKUP(CI$6,FertilizerBlend,3,FALSE) ->  | CF9: =CE9*2205 ->  | CG9: ='Commercial Fertilizer'!$E$12 -> 0.3863975914 | CH9: =CG9*CF9 -> 
D10: Triticale | E10: bu | F10: 1.672727273 | G10: 0.8363636364 | H10: 2.372727273 | I10: 0.2818181818 | K10: Dark Brown | L10: 4.6 | M10: 3.3 - 6.0 | N10: 34 | O10: 30 - 42 | P10: 38.08 | Q10: 34 - 47 | U10: Poultry | W10: Beef | X10: Feeder Calves <550 lbs | Z10: BeefCow w/Calf | AA10: 17.8 | AB10: 0.44 | AH10: BeefCow w/Calf | AI10: 0.01 | AJ10: 0.00745 | AK10: 0.00255 | AL10: 0.0024 | AM10: 0.00665 | AN10: 0.00085 | AY10: Starts on Row | BB10: =BB6*'Manure Supply'!$H$10*'Manure Supply'!$L$10 -> 0 | BC10: =$BB10*BC6 -> 0 | BD10: 0 | BE10: 0 | BF10: 0 | BG10: 0 | BH10: 0 | BN10: Tractor with FEL | BO10: FALSE | BP10: 0 | BR10: 1 | BS10: =IF(BR10>COUNTIF($BN$58:$BN$64,$BS$7),"",INDEX($BO$58:$BO$64,($BT$10+BR10-1),1)) -> None | BT10: =MATCH(BS7,$BN$58:$BN$64,0) -> 4 | BY10: Road Speed | BZ10: =IF(ISBLANK(SolidEquipVarUser3),SolidEquipVarDefault3,SolidEquipVarUser3) -> 15 | CA10: =BZ10 -> 15 | CB10: mph | CD10: K2O | CE10: =VLOOKUP(CI$6,FertilizerBlend,4,FALSE) ->  | CF10: =CE10*2205 ->  | CG10: ='Commercial Fertilizer'!$E$13 -> 0.3779289494 | CH10: =CG10*CF10 -> 
D11: Oats | E11: bu | F11: 1.065 | G11: 0.405 | H11: 1.455 | I11: 0.13 | K11: Dark Brown Irrigated | L11: 4.6 | M11: 3.3 - 6.0 | N11: 90 | P11: 100.8 | U11: Turkey | W11: Beef | X11: Cow w/Calf | Z11: BeefCows/Bulls | AA11: 16.5 | AB11: 0.4 | AH11: BeefCows/Bulls | AI11: 0.01 | AJ11: 0.00745 | AK11: 0.00255 | AL11: 0.0024 | AM11: 0.00665 | AN11: 0.00085 | AY11: =MATCH($AY7,$W$6:$W$46,0) -> 8 | AZ11: Manure Type Option | BB11: =BB7*'Manure Supply'!$H$10*'Manure Supply'!$L$10 -> 0 | BC11: 0 | BD11: 0 | BE11: 0 | BF11: 0 | BG11: 0 | BH11: 0 | BN11: Tractor with Cultivator/Disc | BO11: TRUE | BP11: 1 | BR11: 2 | BS11: =IF(BR11>COUNTIF($BN$58:$BN$64,$BS$7),"",INDEX($BO$58:$BO$64,($BT$10+BR11-1),1)) -> H.D. Cultivator - Once Over | BY11: Field Speed | BZ11: =IF(ISBLANK(SolidEquipVarUser4),SolidEquipVarDefault4,SolidEquipVarUser4) -> 4 | CA11: =BZ11 -> 4 | CB11: mph | CD11: S | CE11: =VLOOKUP(CI$6,FertilizerBlend,5,FALSE) ->  | CF11: =CE11*2205 ->  | CG11: ='Commercial Fertilizer'!$E$14 -> 0.2047115142 | CH11: =CG11*CF11 -> 
B12: Enter Manure to Apply? | D12: Rye | E12: bu | F12: 1.672727273 | G12: 0.8363636364 | H12: 2.372727273 | I12: 0.2818181818 | K12: Black | L12: 7.2 | M12: 4.8 - 9.6 | N12: 50 | O12: 35 - 72 | P12: 56 | Q12: 39 - 81 | U12: Horses | W12: Beef | X12: Cows/Bulls | Z12: DairyLoose Stall | AA12: 139.7 | AB12: 2.66 | AD12: =$W13&$X13 -> DairyLoose Stall | AE12: 25.7 | AF12: 4.11 | AH12: DairyLoose Stall | AI12: =8/2000 -> 0.004 | AJ12: 0.0022 | AK12: 0.0018 | AL12: 0.00085 | AM12: 0.00415 | AN12: =1.5/2000 -> 0.00075 | AP12: =$W13&$X13 -> DairyLoose Stall | AQ12: =8/2000 -> 0.004 | AR12: =AQ12-AS12 -> 0.0022 | AS12: 0.0018 | AT12: 0.00085 | AU12: 0.00415 | AV12: =3.5/(1000*17) -> 0.0002058823529 | AX12: 1 | AY12: =IF(AX12>COUNTIF($W$6:$W$46,$AY$7),"",INDEX($X$6:$X$46,($AY$11+AX12-1),1)) -> Loose Stall | AZ12: Solid | BR12: 3 | BS12: =IF(BR12>COUNTIF($BN$58:$BN$64,$BS$7),"",INDEX($BO$58:$BO$64,($BT$10+BR12-1),1)) -> H.D. Cultivator - Twice Over | BX12: ? | BY12: Unload Time | BZ12: =ROUND(BZ8/(690/BZ13),0) -> 8 | CA12: =ROUND(CA8/(690/CA13),0) -> 8 | CB12: minutes/load (Hopper Size in cuft at a rate of 690cuft/ac) | CH12: =IF(VLOOKUP(CI6,FertilizerBlend,6,FALSE)=0,SUM(CH8:CH11),VLOOKUP(CI6,FertilizerBlend,6,FALSE)) -> 
B13: No | D13: Corn | E13: bu | F13: 1.53 | G13: 0.63 | H13: 1.285 | I13: 0.145 | K13: Gray | L13: 5.7 | M13: 5.3 - 6.0 | N13: 40 | O13: 38 - 42 | P13: 44.8 | Q13: 43 - 47 | U13: Cervid | W13: Dairy | X13: Loose Stall | Z13: DairyTie Stall | AA13: 139.7 | AB13: 2.66 | AD13: =$W14&$X14 -> DairyTie Stall | AE13: 25.7 | AF13: 4.11 | AH13: DairyTie Stall | AI13: =10/2000 -> 0.005 | AJ13: 0.0029 | AK13: 0.0021 | AL13: 0.00085 | AM13: 0.00415 | AN13: =1.5/2000 -> 0.00075 | AP13: =$W14&$X14 -> DairyTie Stall | AQ13: =8/2000 -> 0.004 | AR13: =AQ13-AS13 -> 0.0022 | AS13: 0.0018 | AT13: 0.00085 | AU13: 0.00415 | AV13: =3.5/(1000*17) -> 0.0002058823529 | AX13: 2 | AY13: Tie Stall | AZ13: =IF(ISERROR(MATCH(AY7&AZ7,$AP$6:$AP$45,0)),"","Liquid") -> Liquid | BR13: 4 | BS13: =IF(BR13>COUNTIF($BN$58:$BN$64,$BS$7),"",INDEX($BO$58:$BO$64,($BT$10+BR13-1),1)) -> Tandem Disc Once Over | BY13: Field Time | BZ13: =(200/6*200/(5280*BZ11/60))*110% -> 20.83333333 | CA13: =(200/6*200/(5280*CA11/60))*110% -> 20.83333333 | CB13: minutes/ac
B14: Yes | D14: Canola | E14: bu | F14: 3.185714286 | G14: 1.471428571 | H14: 2.314285714 | I14: 0.5428571429 | K14: Gray (Peace Region) | L14: 5.2 | M14: 3.4 - 6.9 | N14: 37 | O14: 30 - 48 | P14: 41.44 | Q14: 34 - 54 | U14: Sheep | W14: Dairy | X14: Tie Stall | Z14: =$W15&$X15 -> DairyLoose Housing | AA14: 146.3 | AB14: 2.78 | AH14: =$W15&$X15 -> DairyLoose Housing | AI14: =10/2000 -> 0.005 | AJ14: 0.0029 | AK14: 0.0021 | AL14: 0.00085 | AM14: 0.00415 | AN14: =1.5/2000 -> 0.00075 | AX14: 3 | AY14: Loose Housing | BN14: Liquid Manure Equipment | BY14: Equip/Labour Rate | BZ14: =IF(ISBLANK(SolidEquipVarUser5),SolidEquipVarDefault5,SolidEquipVarUser5) -> 50.77 | CA14: =BZ14 -> 50.77 | CB14: $/hr
D15: Flax | E15: bu | F15: 2.875 | G15: 0.8333333333 | H15: 1.8125 | I15: 0.5625 | U15: Goats | W15: Dairy | X15: Loose Housing | Z15: DairyReplacements | AA15: 42.9 | AB15: 0.82 | AH15: DairyReplacements | AI15: =10/2000 -> 0.005 | AJ15: 0.0029 | AK15: 0.0021 | AL15: 0.00085 | AM15: 0.00415 | AN15: =1.5/2000 -> 0.00075 | AX15: 4 | AY15: Replacements | BN15: Truck Mounted Tank (Spray) | BO15: FALSE | BP15: =IF(BO15=TRUE,1,0) -> 0 | BS15: Incorporation Lag Options | BT15: Starts on Row | BY15: Load Coefficient | BZ15: =BZ9/60*BZ14/BZ8 -> 0.01692333333 | CA15: =CA9/60*CA14/CA8 -> 0.01692333333 | CB15: multiply by Appl Rate & Acres
D16: Sunflower | E16: bu | F16: 1.49 | G16: 0.51 | H16: 0.77 | I16: 0.17 | W16: Dairy | X16: Replacements | Z16: DairyCalves | AA16: 2.9 | AB16: 0.07 | AH16: DairyCalves | AI16: =10/2000 -> 0.005 | AJ16: 0.0029 | AK16: 0.0021 | AL16: 0.00085 | AM16: 0.00415 | AN16: =1.5/2000 -> 0.00075 | AX16: 5 | AY16: Calves | BN16: Truck Mounted Tank with Injector Unit | BO16: TRUE | BP16: 1 | BR16: 1 | BS16: =IF(BR16>COUNTIF($BN$68:$BN$82,$BT$7),"",INDEX($BO$68:$BO$82,($BT$16+BR16-1),1)) -> Incorporated within 1 day | BT16: =MATCH(BT7,$BN$68:$BN$82,0) -> 1 | BY16: Spread Coefficient | BZ16: =BZ13/60*BZ14 -> 17.62847222 | CA16: =CA13/60*CA14 -> 17.62847222 | CB16: multiply by Acres
D17: Peas | E17: bu | F17: 3.06 | G17: 0.84 | H17: 2.73 | I17: 0.25 | W17: Dairy | X17: Calves | Z17: SwineFarrow to Finish | AA17: 86.4 | AB17: 1.74 | AD17: =$W18&$X18 -> SwineFarrow to Finish | AE17: 14.4 | AF17: 2.31 | AH17: SwineFarrow to Finish | AI17: =16/2000 -> 0.008 | AJ17: 0.0048 | AK17: 0.0032 | AL17: 0.0015 | AM17: 0.0023 | AN17: =2.7/2000 -> 0.00135 | AP17: =$W18&$X18 -> SwineFarrow to Finish | AQ17: =7/2000 -> 0.0035 | AR17: =AQ17-AS17 -> 0.0019 | AS17: 0.0016 | AT17: 0.0011 | AU17: 0.00165 | AV17: =4/(1000*17) -> 0.0002352941176 | AX17: 6 | BN17: Tractor with Honey Wagon (Spray) | BO17: TRUE | BP17: 1 | BR17: 2 | BS17: =IF(BR17>COUNTIF($BN$68:$BN$82,$BT$7),"",INDEX($BO$68:$BO$82,($BT$16+BR17-1),1)) -> Incorporated 1-2 days | BY17: Travel Coefficient | BZ17: =2/BZ10/BZ8*BZ14 -> 0.02707733333 | CA17: =(2/CA10/CA8*CA14)/3 -> 0.009025777778 | CB17: multiply by Appl Rate, Acres, Distance
D18: Lentils | E18: bu | F18: 3.05 | G18: 0.8166666667 | H18: 2.55 | I18: 0.3 | W18: Swine | X18: Farrow to Finish | Z18: SwineFarrow to Wean | AA18: 26.6 | AB18: 0.54 | AD18: =$W19&$X19 -> SwineFarrow to Wean | AE18: 4.4 | AF18: 0.71 | AH18: SwineFarrow to Wean | AI18: =16/2000 -> 0.008 | AJ18: 0.0048 | AK18: 0.0032 | AL18: 0.0015 | AM18: 0.0023 | AN18: =2.7/2000 -> 0.00135 | AP18: =$W19&$X19 -> SwineFarrow to Wean | AQ18: =7/2000 -> 0.0035 | AR18: =AQ18-AS18 -> 0.0019 | AS18: 0.0016 | AT18: 0.0011 | AU18: 0.00165 | AV18: =4/(1000*17) -> 0.0002352941176 | BN18: Tractor with Honey Wagon with Injector Unit | BO18: TRUE | BP18: 1 | BR18: 3 | BS18: =IF(BR18>COUNTIF($BN$68:$BN$82,$BT$7),"",INDEX($BO$68:$BO$82,($BT$16+BR18-1),1)) -> Incorporated 2-3 days
D19: Fababeans | E19: bu | F19: 5.71 | G19: 1.97 | H19: 5.09 | I19: 0.27 | W19: Swine | X19: Farrow to Wean | Z19: =$W20&$X20 -> SwineFarrowing | AA19: 21.3 | AB19: 0.43 | AH19: =$W20&$X20 -> SwineFarrowing | AI19: =16/2000 -> 0.008 | AJ19: 0.0048 | AK19: 0.0032 | AL19: 0.0015 | AM19: 0.0023 | AN19: =2.7/2000 -> 0.00135 | BN19: Tractor or Truck with Nurse Tank | BO19: FALSE | BP19: 0 | BR19: 4 | BS19: =IF(BR19>COUNTIF($BN$68:$BN$82,$BT$7),"",INDEX($BO$68:$BO$82,($BT$16+BR19-1),1)) -> Incorporated 3-4 days | BY19: Table Range Name: "CostSolidIncorpVar" | CB19: =250/(690/CA13) -> 7.548309179
D20: Sugarbeets | E20: tons | F20: 9.590909091 | G20: 3.090909091 | H20: 17.52272727 | I20: 1.5 | W20: Swine | X20: Farrowing | Z20: SwineWeaner | AA20: 2.8 | AB20: 0.06 | AD20: =$W21&$X21 -> SwineWeaner | AE20: 0.5 | AF20: 0.08 | AH20: SwineWeaner | AI20: =16/2000 -> 0.008 | AJ20: 0.0048 | AK20: 0.0032 | AL20: 0.0015 | AM20: 0.0023 | AN20: =2.7/2000 -> 0.00135 | AP20: =$W21&$X21 -> SwineWeaner | AQ20: =7/2000 -> 0.0035 | AR20: =AQ20-AS20 -> 0.0019 | AS20: 0.0016 | AT20: 0.0011 | AU20: 0.00165 | AV20: =4/(1000*17) -> 0.0002352941176 | AX20: Livestock Species from 2nd Input Selector | BN20: Tractor with Cultivator/Disc | BO20: FALSE | BP20: 0 | BR20: 5 | BS20: =IF(BR20>COUNTIF($BN$68:$BN$82,$BT$7),"",INDEX($BO$68:$BO$82,($BT$16+BR20-1),1)) -> Incorporated 4-5 days | BY20: Solid Manure Incorporate (variable costs)
D21: Potatoes | E21: tons | F21: 11.4 | G21: 3.325 | H21: 14.875 | I21: 0.9 | W21: Swine | X21: Weaner | Z21: SwineFeeder | AA21: 8.2 | AB21: 0.17 | AD21: =$W22&$X22 -> SwineFeeder | AE21: 1.6 | AF21: 0.25 | AH21: SwineFeeder | AI21: =16/2000 -> 0.008 | AJ21: 0.0048 | AK21: 0.0032 | AL21: 0.0015 | AM21: 0.0023 | AN21: =2.7/2000 -> 0.00135 | AP21: =$W22&$X22 -> SwineFeeder | AQ21: =7/2000 -> 0.0035 | AR21: =AQ21-AS21 -> 0.0019 | AS21: 0.0016 | AT21: 0.0011 | AU21: 0.00165 | AV21: =4/(1000*17) -> 0.0002352941176 | AY21: Selected Species | AZ21: Selected Class | BA21: Manure Type | BB21: Production (lbs/Day) | BC21: NTotal | BD21: NOrg | BE21: NInorg | BF21: P2O5 | BG21: K2O | BH21: S | BY21: Impliment | BZ21: Cost/Ac
D22: Alfalfa | E22: tons | F22: 58 | G22: 13.8 | H22: 60 | I22: 6 | W22: Swine | X22: Feeder | Z22: PoultryLayers – Belt Cage | AA22: 9.9 | AB22: 0.41 | AD22: =$W23&$X23 -> PoultryLayers – Belt Cage | AE22: 6 | AF22: 0.95 | AH22: PoultryLayers – Belt Cage | AI22: =60/2000 -> 0.03 | AJ22: 0.01 | AK22: 0.02 | AL22: 0.0154 | AM22: 0.01 | AN22: =3.2/2000 -> 0.0016 | AP22: =$W23&$X23 -> PoultryLayers – Belt Cage | AQ22: =12/2000 -> 0.006 | AR22: =AQ22-AS22 -> 0.002 | AS22: 0.004 | AT22: 0.0025 | AU22: 0.002 | AV22: =7.5/(1000*17) -> 0.0004411764706 | AY22: 3 | AZ22: 4 | BA22: 1 | BB22: =IF(BB23=0,IF(ISERROR(VLOOKUP(AY23&AZ23,ProductionSolidManure,2,FALSE)),0,VLOOKUP(AY23&AZ23,ProductionSolidManure,2,FALSE)),0) -> 42.9 | BC22: =IF(ISERROR(VLOOKUP($AY23&$AZ23,CompositionSolid,1,FALSE)),0,VLOOKUP($AY23&$AZ23,CompositionSolid,2,FALSE)) -> 0.005 | BD22: =IF(ISERROR(VLOOKUP($AY23&$AZ23,CompositionSolid,1,FALSE)),0,VLOOKUP($AY23&$AZ23,CompositionSolid,3,FALSE)) -> 0.0029 | BE22: =IF(ISERROR(VLOOKUP($AY23&$AZ23,CompositionSolid,1,FALSE)),0,VLOOKUP($AY23&$AZ23,CompositionSolid,4,FALSE)) -> 0.0021 | BF22: =IF(ISERROR(VLOOKUP($AY23&$AZ23,CompositionSolid,1,FALSE)),0,VLOOKUP($AY23&$AZ23,CompositionSolid,5,FALSE)*2.29) -> 0.0019465 | BG22: =IF(ISERROR(VLOOKUP($AY23&$AZ23,CompositionSolid,1,FALSE)),0,VLOOKUP($AY23&$AZ23,CompositionSolid,6,FALSE)*1.2) -> 0.00498 | BH22: =IF(ISERROR(VLOOKUP($AY23&$AZ23,CompositionSolid,1,FALSE)),0,VLOOKUP($AY23&$AZ23,CompositionSolid,7,FALSE)) -> 0.00075 | BS22: Cost Tables to Use | BT22: Load Coefficient | BU22: Spread Coefficient | BV22: Travel Coefficient | BY22: H.D. Cultivator - Once Over | BZ22: =BZ81 -> 2.41 | CA22: multiply by Acres
D23: Clover | E23: tons | F23: 53.875 | G23: 13.875 | H23: 50.375 | I23: 2.75 | W23: Poultry | X23: Layers – Belt Cage | Z23: PoultryLayers – Deep Pit | AA23: 13 | AB23: 0.31 | AD23: =$W24&$X24 -> PoultryLayers – Deep Pit | AE23: 6 | AF23: 0.95 | AH23: PoultryLayers – Deep Pit | AI23: =48/2000 -> 0.024 | AJ23: 0.008 | AK23: 0.016 | AL23: 0.0123 | AM23: 0.0083 | AN23: 0.0016 | AP23: =$W24&$X24 -> PoultryLayers – Deep Pit | AQ23: =12/2000 -> 0.006 | AR23: =AQ23-AS23 -> 0.002 | AS23: 0.004 | AT23: 0.0025 | AU23: 0.002 | AV23: =7.5/(1000*17) -> 0.0004411764706 | AY23: =INDEX(LivestockSpecies,AY22) -> Dairy | AZ23: =INDEX(Class2,AZ22) -> Replacements | BA23: =INDEX(ManureType2,BA22) -> Solid | BB23: =IF(ISERROR(VLOOKUP(AY23&AZ23,ProductionLiquidManure,2,FALSE)),0,IF(BA23="Liquid",VLOOKUP(AY23&AZ23,ProductionLiquidManure,2,FALSE),0)) -> 0 | BC23: =IF(ISERROR(VLOOKUP($AY23&$AZ23,CompositionLiquid,1,FALSE)),0,VLOOKUP($AY23&$AZ23,CompositionLiquid,2,FALSE)) -> 0 | BD23: =IF(ISERROR(VLOOKUP($AY23&$AZ23,CompositionLiquid,1,FALSE)),0,VLOOKUP($AY23&$AZ23,CompositionLiquid,3,FALSE)) -> 0 | BE23: =IF(ISERROR(VLOOKUP($AY23&$AZ23,CompositionLiquid,1,FALSE)),0,VLOOKUP($AY23&$AZ23,CompositionLiquid,4,FALSE)) -> 0 | BF23: =IF(ISERROR(VLOOKUP($AY23&$AZ23,CompositionLiquid,1,FALSE)),0,VLOOKUP($AY23&$AZ23,CompositionLiquid,5,FALSE)*2.29) -> 0 | BG23: =IF(ISERROR(VLOOKUP($AY23&$AZ23,CompositionLiquid,1,FALSE)),0,VLOOKUP($AY23&$AZ23,CompositionLiquid,6,FALSE)*1.2) -> 0 | BH23: =IF(ISERROR(VLOOKUP($AY23&$AZ23,CompositionLiquid,1,FALSE)),0,VLOOKUP($AY23&$AZ23,CompositionLiquid,7,FALSE)) -> 0 | BN23: Granular, Liquid, or NH3 Equipment | BS23: CostSpreaderVar | BT23: =INDEX(INDIRECT($BS$23),10,$BW$6+1) -> 0.01692333333 | BU23: =INDEX(INDIRECT($BS$23),11,$BW$6+1) -> 17.62847222 | BV23: =INDEX(INDIRECT($BS$23),12,$BW$6+1) -> 0.02707733333 | BY23: H.D. Cultivator - Twice Over | BZ23: =BZ82 -> 4.82 | CA23: multiply by Acres | CE23: Commercial Fertilizer Application | CF23: Cost ($/ac)
C24: Default Moisture Values | D24: Grass | E24: tons | F24: 34.16666667 | G24: 10 | H24: 43.33333333 | I24: 4.166666667 | W24: Poultry | X24: Layers – Deep Pit | Z24: PoultryBroilers | AA24: 6 | AB24: 0.3 | AH24: PoultryBroilers | AI24: =68/2000 -> 0.034 | AJ24: 0.01455 | AK24: 0.01945 | AL24: 0.0095 | AM24: 0.01 | AN24: 0.0016 | BN24: Tractor with Pull Type, Spin Spreader | BO24: TRUE | BP24: =IF(BO24=TRUE,1,0) -> 1 | BS24: CostSolidIncorpVar | BU24: =IF(ISERROR(INDEX(INDIRECT(BS24),MATCH(BT7,$BY$20:$BY$24,0),2)),0,INDEX(INDIRECT(BS24),MATCH(BT7,$BY$20:$BY$24,0),2)) -> 2.41 | BY24: Tandem Disc Once Over | BZ24: =BZ83 -> 4.5 | CA24: multiply by Acres | CE24: Liquid Application | CF24: 4.23
C25: 0.5 | D25: Alfalfa Silage | E25: tons | F25: 29 | G25: 6.9 | H25: 30 | I25: 3 | W25: Poultry | X25: Broilers | Z25: PoultryBroiler Breeders | AA25: 15.8 | AB25: 0.59 | AH25: PoultryBroiler Breeders | AI25: =60/2000 -> 0.03 | AJ25: 0.01285 | AK25: 0.01715 | AL25: 0.0095 | AM25: 0.01 | AN25: 0.0016 | AY25: Class Options | BB25: Total Production | BC25: NTotal | BD25: NOrg | BE25: NInorg | BF25: P2O5 | BG25: K2O | BH25: S | BN25: Truck Mounted Spin Spreader | BO25: TRUE | BP25: 1 | CE25: Granular-Spreader, No Incorp. | CF25: 1.78
C26: 0.5 | D26: Clover Silage | E26: tons | F26: 26.9375 | G26: 6.9375 | H26: 25.1875 | I26: 1.375 | W26: Poultry | X26: Broiler Breeders | Z26: PoultryLayer Breeders | AA26: 11.7 | AB26: 0.53 | AH26: PoultryLayer Breeders | AI26: =60/2000 -> 0.03 | AJ26: 0.01285 | AK26: 0.01715 | AL26: 0.0095 | AM26: 0.01 | AN26: 0.0016 | AY26: Starts on Row | BB26: =BB22*'Manure Supply'!$H$12*'Manure Supply'!$L$12 -> 0 | BC26: =$BB26*BC22 -> 0 | BD26: 0 | BE26: 0 | BF26: 0 | BG26: 0 | BH26: 0 | BN26: Tractor with Tank and Air Drill/Seeder | BO26: TRUE | BP26: 1 | CE26: Granular-Spreader, Cultivator Once | CF26: =1.78+2.41 -> 4.19
C27: 0.5 | D27: Grass Silage | E27: tons | F27: 17.08333333 | G27: 5 | H27: 21.66666667 | I27: 2.083333333 | W27: Poultry | X27: Layer Breeders | Z27: PoultryPullets | AA27: 6 | AB27: 0.15 | AH27: PoultryPullets | AI27: =68/2000 -> 0.034 | AJ27: 0.01455 | AK27: 0.01945 | AL27: 0.0095 | AM27: 0.01 | AN27: 0.0016 | AY27: =MATCH($AY23,$W$6:$W$46,0) -> 8 | AZ27: Manure Type Option | BB27: =BB23*'Manure Supply'!$H$12*'Manure Supply'!$L$12 -> 0 | BC27: 0 | BD27: 0 | BE27: 0 | BF27: 0 | BG27: 0 | BH27: 0 | BN27: Tractor NH3 Tank and Applicator | BO27: TRUE | BP27: 1 | BS27: Liquid Manure Application Method and Incorporation Inputs | BY27: Cost Tables - Liquid Manure Application & Incorporation | CE27: Granular-AirSeeder | CF27: 3.93
C28: =50%*75% -> 0.375 | D28: Grass 25% Legume 75% Silage | E28: tons | F28: 26.02083333 | G28: 6.425 | H28: 27.91666667 | I28: 2.770833333 | W28: Poultry | X28: Pullets | Z28: Turkey Turkey Hens (Light) | AA28: 13.6 | AB28: 0.85 | AH28: Turkey Turkey Hens (Light) | AI28: =35/2000 -> 0.0175 | AJ28: 0.0075 | AK28: 0.01 | AL28: 0.0059 | AM28: 0.00625 | AN28: 0.0016 | AX28: 1 | AY28: =IF(AX28>COUNTIF($W$6:$W$46,$AY$23),"",INDEX($X$6:$X$46,($AY$27+AX28-1),1)) -> Loose Stall | AZ28: Solid | BN28: Nurse Truck or Tank | BO28: TRUE | BP28: 1 | BS28: Selected Application | BT28: Selected Incorporation | BU28: Selected Incorp. Lag | BV28: NH3 Loss% | BW28: Manure Source | BY28: Table Range Name: "CostInjectionVar" | CE28: Custom Applicator | CF28: =IF(ISBLANK(VLOOKUP($CI$6,FertilizerBlend,8,FALSE)),"",(VLOOKUP($CI$6,FertilizerBlend,8,FALSE)-$CH$12)*$CJ$6/'Analysis1 - 5 Year Cost'!$G$15) ->  | CG28: Backed out cost of Fertilizer (this is captured elsewhere)
C29: 0.25 | D29: Grass 50% Legume 50% Silage | E29: tons | F29: 23.04166667 | G29: 5.95 | H29: 25.83333333 | I29: 2.541666667 | W29: Turkey | X29: Turkey Hens (Light) | Z29: Turkey Turkey Toms (Heavy) | AA29: 19.8 | AB29: 1.28 | AH29: Turkey Turkey Toms (Heavy) | AI29: =35/2000 -> 0.0175 | AJ29: 0.0075 | AK29: 0.01 | AL29: 0.0059 | AM29: 0.00625 | AN29: 0.0016 | AX29: 2 | AY29: Tie Stall | AZ29: =IF(ISERROR(MATCH(AY23&AZ23,$AP$6:$AP$45,0)),"","Liquid") ->  | BN29: Tractor with Cultivator/Disc | BO29: TRUE | BP29: 1 | BS29: 2 | BT29: 3 | BU29: 1 | BV29: =IF(BS29=1,$BO$41,IF(BT29=1,$BO$35,INDEX($BN$36:$BO$40,BU29,2))) -> 0.25 | BW29: N/A | BY29: Liquid Manure Injection (variable costs)
C30: =50%*25% -> 0.125 | D30: Grass 75% Legume 25% Silage | E30: tons | F30: 20.0625 | G30: 5.475 | H30: 23.75 | I30: 2.3125 | W30: Turkey | X30: Turkey Toms (Heavy) | Z30: Turkey Turkey Broilers | AA30: 11 | AB30: 0.51 | AH30: Turkey Turkey Broilers | AI30: =35/2000 -> 0.0175 | AJ30: 0.0075 | AK30: 0.01 | AL30: 0.0059 | AM30: 0.00625 | AN30: 0.0016 | AX30: 3 | AY30: Loose Housing | BS30: =INDEX(BN45:BN46,BS29) -> Liquid Manure Broadcast | BT30: =INDEX(BS33:BS36,BT29) -> Tandem Disc Once Over | BU30: =INDEX(BS39:BS43,BU29) -> Incorporated within 1 day | BY30: Tank Size | BZ30: =IF(ISBLANK(EquipmentVarUser1),EquipmentVarDefault1,EquipmentVarUser1) -> 3300 | CA30: gal
C31: 0.5 | D31: Barley Silage | E31: tons | F31: 17.22222222 | G31: 5.888888889 | H31: 13.66666667 | I31: 1.944444444 | W31: Turkey | X31: Turkey Broilers | Z31: HorsesPMU | AA31: 45.8 | AB31: 0.92 | AH31: HorsesPMU | AI31: =12/2000 -> 0.006 | AJ31: 0.003 | AK31: 0.003 | AL31: 0.0013 | AM31: 0.005 | AN31: =1.7/2000 -> 0.00085 | AX31: 4 | AY31: Replacements | BY31: Tank Fill Time | BZ31: =IF(ISBLANK(EquipmentVarUser2),EquipmentVarDefault2,EquipmentVarUser2) -> 6 | CA31: min
C32: 0.5 | D32: Corn Silage | E32: tons | F32: 15.6 | G32: 6.35 | H32: 20.15 | I32: 1.3 | W32: Horses | X32: PMU | Z32: HorsesFeedlot | AA32: 15.2 | AB32: 0.46 | AH32: HorsesFeedlot | AI32: =30/2000 -> 0.015 | AJ32: 0.0075 | AK32: 0.0075 | AL32: 0.0023 | AM32: 0.0104 | AN32: 0.00085 | AX32: 5 | AY32: Calves | BS32: Incorporation Options | BT32: Starts on Row | BY32: Road Speed | BZ32: =IF(ISBLANK(EquipmentVarUser3),EquipmentVarDefault3,EquipmentVarUser3) -> 15 | CA32: mph
C33: 0.2 | D33: Alfalfa Hay | E33: tons | F33: 46.4 | G33: 11.04 | H33: 48 | I33: 4.8 | W33: Horses | X33: Feedlot | Z33: HorsesDonkeys | AA33: 7.6 | AB33: 0.23 | AH33: HorsesDonkeys | AI33: =20/2000 -> 0.01 | AJ33: 0.005 | AK33: 0.005 | AL33: 0.0023 | AM33: 0.0104 | AN33: 0.00085 | AX33: 6 | BN33: Expected NH3 Loss from Manure | BR33: 1 | BS33: =IF(BR33>COUNTIF($BN$58:$BN$64,$BS$30),"",INDEX($BO$58:$BO$64,($BT$33+BR33-1),1)) -> None | BT33: =MATCH(BS30,$BN$58:$BN$64,0) -> 1 | BY33: Field Speed | BZ33: =IF(ISBLANK(EquipmentVarUser4),EquipmentVarDefault4,EquipmentVarUser4) -> 4 | CA33: mph
C34: 0.2 | D34: Clover Hay | E34: tons | F34: 43.1 | G34: 11.1 | H34: 40.3 | I34: 2.2 | W34: Horses | X34: Donkeys | Z34: HorsesMules | AA34: 11.4 | AB34: 0.35 | AH34: HorsesMules | AI34: =20/2000 -> 0.01 | AJ34: 0.005 | AK34: 0.005 | AL34: 0.0023 | AM34: 0.0104 | AN34: 0.00085 | BN34: Manure Appliation and Incorporation | BO34: Loss% | BR34: 2 | BS34: =IF(BR34>COUNTIF($BN$58:$BN$64,$BS$30),"",INDEX($BO$58:$BO$64,($BT$33+BR34-1),1)) -> H.D. Cultivator - Once Over | BY34: Field Time | BZ34: =(200/12*200/(5280*BZ33/60))*110% -> 10.41666667 | CA34: minutes/ac
C35: 0.2 | D35: Grass Hay | E35: tons | F35: 27.33333333 | G35: 8 | H35: 34.66666667 | I35: 3.333333333 | W35: Horses | X35: Mules | Z35: CervidElk | AA35: 5.8 | AB35: 0.14 | AH35: CervidElk | AI35: =13/2000 -> 0.0065 | AJ35: 0.00455 | AK35: 0.00195 | AL35: 0.00215 | AM35: 0.005 | AN35: 0.00085 | BN35: No Incorporation | BO35: 0.66 | BR35: 3 | BS35: =IF(BR35>COUNTIF($BN$58:$BN$64,$BS$30),"",INDEX($BO$58:$BO$64,($BT$33+BR35-1),1)) -> Tandem Disc Once Over | BY35: Equip/Labour Rate | BZ35: =IF(ISBLANK(EquipmentVarUser5),EquipmentVarDefault5,EquipmentVarUser5) -> 50.77 | CA35: $/hr
C36: =50%*75% -> 0.375 | D36: Grass 25% Legume 75% Hay | E36: tons | F36: 41.63333333 | G36: 10.28 | H36: 44.66666667 | I36: 4.433333333 | W36: Cervid | X36: Elk | Z36: CervidDeer | AA36: 2.9 | AB36: 0.07 | AH36: CervidDeer | AI36: =13/2000 -> 0.0065 | AJ36: 0.00455 | AK36: 0.00195 | AL36: 0.00215 | AM36: 0.005 | AN36: 0.00085 | AX36: Livestock Species from 3rd Input Selector | BN36: Incorporated within 1 day | BO36: 0.25 | BR36: 4 | BS36: =IF(BR36>COUNTIF($BN$58:$BN$64,$BS$30),"",INDEX($BO$58:$BO$64,($BT$33+BR36-1),1)) ->  | BY36: Load Coefficient | BZ36: =BZ31/60*BZ35/BZ30 -> 0.001538484848 | CA36: multiply by Appl Rate & Acres
C37: 0.25 | D37: Grass 50% Legume 50% Hay | E37: tons | F37: 36.86666667 | G37: 9.52 | H37: 41.33333333 | I37: 4.066666667 | W37: Cervid | X37: Deer | Z37: SheepBison | AA37: 7.3 | AB37: 0.18 | AH37: SheepBison | AI37: =13/2000 -> 0.0065 | AJ37: 0.00455 | AK37: 0.00195 | AL37: 0.00215 | AM37: 0.005 | AN37: 0.00085 | AY37: Selected Species | AZ37: Selected Class | BA37: Manure Type | BB37: Production (lbs/Day) | BC37: NTotal | BD37: NOrg | BE37: NInorg | BF37: P2O5 | BG37: K2O | BH37: S | BN37: Incorporated 1-2 days | BO37: 0.3 | BY37: Spread Coefficient | BZ37: =BZ34/60*BZ35 -> 8.814236111 | CA37: multiply by Acres
C38: =50%*25% -> 0.125 | D38: Grass 75% Legume 25% Hay | E38: tons | F38: 32.1 | G38: 8.76 | H38: 38 | I38: 3.7 | W38: Sheep | X38: Bison | Z38: SheepAlpaca/Llama | AA38: 4.6 | AB38: 0.15 | AH38: SheepAlpaca/Llama | AI38: =20/2000 -> 0.01 | AJ38: 0.006 | AK38: 0.004 | AL38: 0.00195 | AM38: 0.0104 | AN38: 0.00085 | AY38: 2 | AZ38: 5 | BA38: 1 | BB38: =IF(BB39=0,IF(ISERROR(VLOOKUP(AY39&AZ39,ProductionSolidManure,2,FALSE)),0,VLOOKUP(AY39&AZ39,ProductionSolidManure,2,FALSE)),0) -> 17.8 | BC38: =IF(ISERROR(VLOOKUP($AY39&$AZ39,CompositionSolid,1,FALSE)),0,VLOOKUP($AY39&$AZ39,CompositionSolid,2,FALSE)) -> 0.01 | BD38: =IF(ISERROR(VLOOKUP($AY39&$AZ39,CompositionSolid,1,FALSE)),0,VLOOKUP($AY39&$AZ39,CompositionSolid,3,FALSE)) -> 0.00745 | BE38: =IF(ISERROR(VLOOKUP($AY39&$AZ39,CompositionSolid,1,FALSE)),0,VLOOKUP($AY39&$AZ39,CompositionSolid,4,FALSE)) -> 0.00255 | BF38: =IF(ISERROR(VLOOKUP($AY39&$AZ39,CompositionSolid,1,FALSE)),0,VLOOKUP($AY39&$AZ39,CompositionSolid,5,FALSE)*2.29) -> 0.005496 | BG38: =IF(ISERROR(VLOOKUP($AY39&$AZ39,CompositionSolid,1,FALSE)),0,VLOOKUP($AY39&$AZ39,CompositionSolid,6,FALSE)*1.2) -> 0.00798 | BH38: =IF(ISERROR(VLOOKUP($AY39&$AZ39,CompositionSolid,1,FALSE)),0,VLOOKUP($AY39&$AZ39,CompositionSolid,7,FALSE)) -> 0.00085 | BN38: Incorporated 2-3 days | BO38: 0.35 | BS38: Incorporation Lag Options | BT38: Starts on Row | BY38: Travel Coefficient | BZ38: =2/BZ32/BZ30*BZ35 -> 0.002051313131 | CA38: multiply by Appl Rate, Acres, Distance
C39: 0.2 | D39: Barley Greenfeed | E39: tons | F39: 27.55555556 | G39: 9.422222222 | H39: 21.86666667 | I39: 3.111111111 | W39: Sheep | X39: Alpaca/Llama | Z39: SheepEwes w/Lambs | AA39: 3.9 | AB39: 0.13 | AH39: SheepEwes w/Lambs | AI39: =20/2000 -> 0.01 | AJ39: 0.006 | AK39: 0.004 | AL39: 0.00195 | AM39: 0.0104 | AN39: 0.00085 | AY39: =INDEX(LivestockSpecies,AY38) -> Beef | AZ39: =INDEX(Class3,AZ38) -> Cow w/Calf | BA39: =INDEX(ManureType3,BA38) -> Solid | BB39: =IF(ISERROR(VLOOKUP(AY39&AZ39,ProductionLiquidManure,2,FALSE)),0,IF(BA39="Liquid",VLOOKUP(AY39&AZ39,ProductionLiquidManure,2,FALSE),0)) -> 0 | BC39: =IF(ISERROR(VLOOKUP($AY39&$AZ39,CompositionLiquid,1,FALSE)),0,VLOOKUP($AY39&$AZ39,CompositionLiquid,2,FALSE)) -> 0 | BD39: =IF(ISERROR(VLOOKUP($AY39&$AZ39,CompositionLiquid,1,FALSE)),0,VLOOKUP($AY39&$AZ39,CompositionLiquid,3,FALSE)) -> 0 | BE39: =IF(ISERROR(VLOOKUP($AY39&$AZ39,CompositionLiquid,1,FALSE)),0,VLOOKUP($AY39&$AZ39,CompositionLiquid,4,FALSE)) -> 0 | BF39: =IF(ISERROR(VLOOKUP($AY39&$AZ39,CompositionLiquid,1,FALSE)),0,VLOOKUP($AY39&$AZ39,CompositionLiquid,5,FALSE)*2.29) -> 0 | BG39: =IF(ISERROR(VLOOKUP($AY39&$AZ39,CompositionLiquid,1,FALSE)),0,VLOOKUP($AY39&$AZ39,CompositionLiquid,6,FALSE)*1.2) -> 0 | BH39: =IF(ISERROR(VLOOKUP($AY39&$AZ39,CompositionLiquid,1,FALSE)),0,VLOOKUP($AY39&$AZ39,CompositionLiquid,7,FALSE)) -> 0 | BN39: Incorporated 3-4 days | BO39: 0.4 | BR39: 1 | BS39: =IF(BR39>COUNTIF($BN$68:$BN$82,$BT$30),"",INDEX($BO$68:$BO$82,($BT$39+BR39-1),1)) -> Incorporated within 1 day | BT39: =MATCH(BT30,$BN$68:$BN$82,0) -> 11
C40: 0.2 | D40: Corn Greenfeed | E40: tons | F40: 24.96 | G40: 10.16 | H40: 32.24 | I40: 2.08 | W40: Sheep | X40: Ewes w/Lambs | Z40: SheepEwes/Rams | AA40: 3.1 | AB40: 0.1 | AH40: SheepEwes/Rams | AI40: =20/2000 -> 0.01 | AJ40: 0.006 | AK40: 0.004 | AL40: 0.00195 | AM40: 0.0104 | AN40: 0.00085 | BN40: Incorporated 4-5 days | BO40: 0.45 | BR40: 2 | BS40: =IF(BR40>COUNTIF($BN$68:$BN$82,$BT$30),"",INDEX($BO$68:$BO$82,($BT$39+BR40-1),1)) -> Incorporated 1-2 days | BY40: Table Range Name: "CostBroadcastVar"
W41: Sheep | X41: Ewes/Rams | Z41: SheepFeeders | AA41: 1.5 | AB41: 0.05 | AH41: SheepFeeders | AI41: 0.004 | AJ41: 0 | AK41: 0.004 | AL41: 0.00195 | AM41: 0.0104 | AN41: 0.00085 | AY41: Class Options | BB41: Total Production | BC41: NTotal | BD41: NOrg | BE41: NInorg | BF41: P2O5 | BG41: K2O | BH41: S | BN41: Injected | BO41: 0.05 | BR41: 3 | BS41: =IF(BR41>COUNTIF($BN$68:$BN$82,$BT$30),"",INDEX($BO$68:$BO$82,($BT$39+BR41-1),1)) -> Incorporated 2-3 days | BY41: Liquid Manure Broadcast (variable costs)
D42: Moisture Content - User Input Required | W42: Sheep | X42: Feeders | Z42: SheepLambs | AA42: 0.8 | AB42: 0.02 | AH42: SheepLambs | AI42: =14/2000 -> 0.007 | AJ42: 0.0042 | AK42: 0.0028 | AL42: 0.00195 | AM42: 0.0104 | AN42: 0.00085 | AY42: Starts on Row | BB42: =BB38*'Manure Supply'!$H$14*'Manure Supply'!$L$14 -> 0 | BC42: =$BB42*BC38 -> 0 | BD42: 0 | BE42: 0 | BF42: 0 | BG42: 0 | BH42: 0 | BR42: 4 | BS42: =IF(BR42>COUNTIF($BN$68:$BN$82,$BT$30),"",INDEX($BO$68:$BO$82,($BT$39+BR42-1),1)) -> Incorporated 3-4 days | BY42: Tank Size | BZ42: =IF(ISBLANK(EquipmentVarUser1),EquipmentVarDefault1,EquipmentVarUser1) -> 3300 | CA42: gal
D43: Alfalfa Silage | W43: Sheep | X43: Lambs | Z43: GoatsMeat/Milk (per Ewe) | AA43: 5.9 | AB43: 0.19 | AH43: GoatsMeat/Milk (per Ewe) | AI43: =12.6/2000 -> 0.0063 | AJ43: 0.0038 | AK43: 0.0025 | AL43: 0.0023 | AM43: 0.0104 | AN43: 0.00085 | AY43: =MATCH($AY39,$W$6:$W$46,0) -> 2 | AZ43: Manure Type Option | BB43: =BB39*'Manure Supply'!$H$14*'Manure Supply'!$L$14 -> 0 | BC43: 0 | BD43: 0 | BE43: 0 | BF43: 0 | BG43: 0 | BH43: 0 | BR43: 5 | BS43: =IF(BR43>COUNTIF($BN$68:$BN$82,$BT$30),"",INDEX($BO$68:$BO$82,($BT$39+BR43-1),1)) -> Incorporated 4-5 days | BY43: Tank Fill Time | BZ43: =IF(ISBLANK(EquipmentVarUser2),EquipmentVarDefault2,EquipmentVarUser2) -> 6 | CA43: min
D44: Clover Silage | W44: Goats | X44: Meat/Milk (per Ewe) | Z44: GoatsFeeders | AA44: 0.6 | AB44: 0.02 | AH44: GoatsFeeders | AI44: =12.6/2000 -> 0.0063 | AJ44: 0.0038 | AK44: 0.0025 | AL44: 0.0023 | AM44: 0.0104 | AN44: 0.00085 | AX44: 1 | AY44: =IF(AX44>COUNTIF($W$6:$W$46,$AY$39),"",INDEX($X$6:$X$46,($AY$43+AX44-1),1)) -> Feeders | AZ44: Solid | BN44: Application Methods | BY44: Road Speed | BZ44: =IF(ISBLANK(EquipmentVarUser3),EquipmentVarDefault3,EquipmentVarUser3) -> 15 | CA44: mph
D45: Grass Silage | W45: Goats | X45: Feeders | Z45: GoatsNannies/Billies | AA45: 3.1 | AB45: 0.1 | AH45: GoatsNannies/Billies | AI45: =12.6/2000 -> 0.0063 | AJ45: 0.0038 | AK45: 0.0025 | AL45: 0.0023 | AM45: 0.0104 | AN45: 0.00085 | AX45: 2 | AY45: Finishers – Open Lot | AZ45: =IF(ISERROR(MATCH(AY39&AZ39,$AP$6:$AP$45,0)),"","Liquid") ->  | BN45: Liquid Manure Injection | BS45: Cost Tables to Use | BT45: Load Coefficient | BU45: Spread Coefficient | BV45: Travel Coefficient | BY45: Field Speed | BZ45: =IF(ISBLANK(EquipmentVarUser4),EquipmentVarDefault4,EquipmentVarUser4) -> 4 | CA45: mph
D46: Grass 25% Legume 75% Silage | W46: Goats | X46: Nannies/Billies | AX46: 3 | AY46: Finishers – Paved Lot | BN46: Liquid Manure Broadcast | BS46: =IF(BS30="Liquid Manure Injection","CostInjectionVar","CostBroadcastVar") -> CostBroadcastVar | BT46: =INDEX(INDIRECT($BS$46),8,2) -> 0.001538484848 | BU46: =INDEX(INDIRECT($BS$46),9,2) -> 2.350462963 | BV46: =INDEX(INDIRECT($BS$46),10,2) -> 0.002051313131 | BY46: Field Time | BZ46: =(200/45*200/(5280*BZ45/60))*110% -> 2.777777778 | CA46: minutes/ac
D47: Grass 50% Legume 50% Silage | AX47: 4 | AY47: Feeder Calves <550 lbs | BN47: Solid Manure Spreader | BS47: CostLiquidIncorpVar | BU47: =IF(ISERROR(INDEX(INDIRECT(BS47),MATCH(BT30,$BY$53:$BY$56,0),2)),0,INDEX(INDIRECT(BS47),MATCH(BT30,$BY$53:$BY$56,0),2)) -> 4.5 | BY47: Equip/Labour Rate | BZ47: =IF(ISBLANK(EquipmentVarUser5),EquipmentVarDefault5,EquipmentVarUser5) -> 50.77 | CA47: $/hr
D48: Grass 75% Legume 25% Silage | AX48: 5 | AY48: Cow w/Calf | BY48: Load Coefficient | BZ48: =BZ43/60*BZ47/BZ42 -> 0.001538484848 | CA48: multiply by Appl Rate & Acres
D49: Barley Silage | AX49: 6 | AY49: Cows/Bulls | BN49: Incorporation | BY49: Spread Coefficient | BZ49: =BZ46/60*BZ47 -> 2.350462963 | CA49: multiply by Acres
D50: Corn Silage | BN50: None | BY50: Travel Coefficient | BZ50: =2/BZ44/BZ42*BZ47 -> 0.002051313131 | CA50: multiply by Appl Rate, Acres, Distance
D51: Alfalfa Hay | BB51: Calculated Solid & Liquid NPK in lbs | BN51: H.D. Cultivator - Once Over
D52: Clover Hay | BB52: Grand Total Production | BC52: NTotal | BD52: NOrg | BE52: NInorg | BF52: P2O5 | BG52: K2O | BH52: S | BN52: H.D. Cultivator - Twice Over | BY52: Table Range Name: "CostLiquidIncorpVar"
D53: Grass Hay | BB53: =SUM(BB10,BB26,BB42) -> 0 | BC53: =SUM(BC10,BC26,BC42) -> 0 | BD53: 0 | BE53: 0 | BF53: 0 | BG53: 0 | BH53: 0 | BN53: Tandem Disc Once Over | BY53: Liquid Manure Incorporate (variable costs)
D54: Grass 25% Legume 75% Hay | BB54: =SUM(BB11,BB27,BB43) -> 0 | BC54: =SUM(BC11,BC27,BC43)*$BC$57 -> 0 | BD54: 0 | BE54: 0 | BF54: 0 | BG54: 0 | BH54: 0 | BY54: Impliment | BZ54: Cost/Ac
D55: Grass 50% Legume 50% Hay | BY55: H.D. Cultivator - Once Over | BZ55: =BZ114 -> 2.41 | CA55: multiply by Acres
D56: Grass 75% Legume 25% Hay | BB56: Convert Solid to cu.ft. | BC56: Convert Liquid to lbs | BN56: Application Method | BO56: Incorporation | BY56: Tandem Disc Once Over | BZ56: =BZ115 -> 4.5 | CA56: multiply by Acres
D57: Barley Greenfeed | BB57: 43 | BC57: 17 | BN57: Liquid Manure Injection | BO57: N/A
D58: Corn Greenfeed | BB58: =BB53/BB57 -> 0 | BN58: Liquid Manure Broadcast | BO58: None
BN59: Liquid Manure Broadcast | BO59: H.D. Cultivator - Once Over
D60: Original Table Nutrient Uptake Requirements (based on stated moisture content) | BB60: % Composition | BC60: NTotal | BD60: NOrg | BE60: NInorg | BF60: P2O5 | BG60: K2O | BH60: S | BN60: Liquid Manure Broadcast | BO60: Tandem Disc Once Over
D61: Alfalfa Silage (50% Moisture) | E61: tons | F61: 29 | G61: 6.9 | H61: 30 | I61: 3 | BB61: Solid | BC61: =IF(ISERROR(BC53/$BB53),0,BC53/$BB53) -> 0 | BD61: 0 | BE61: 0 | BF61: 0 | BG61: 0 | BH61: 0 | BN61: Solid Manure Spreader | BO61: None | BY61: Defaults
D62: Clover Silage (50% Moisture) | E62: tons | F62: 26.9375 | G62: 6.9375 | H62: 25.1875 | I62: 1.375 | BB62: Liquid | BC62: =IF(ISERROR(BC54/($BB54*$BC$83)),0,BC54/($BB54*$BC$83)) -> 0 | BD62: 0 | BE62: 0 | BF62: 0 | BG62: 0 | BH62: 0 | BN62: Solid Manure Spreader | BO62: H.D. Cultivator - Once Over
D63: Grass Silage (50% Moisture) | E63: tons | F63: 17.08333333 | G63: 5 | H63: 21.66666667 | I63: 2.083333333 | BN63: Solid Manure Spreader | BO63: H.D. Cultivator - Twice Over | BY63: Cost Tables - Solid Manure Application & Incorporation
D64: Grass 25% Legume 75% Silage | E64: tons | F64: 26.02083333 | G64: 6.425 | H64: 27.91666667 | I64: 2.770833333 | BB64: Actual (User Inputted) Solid & Liquid NPK in lbs | BN64: Solid Manure Spreader | BO64: Tandem Disc Once Over | BY64: Table Range Name: "CostSpreaderVar"
D65: Grass 50% Legume 50% Silage | E65: tons | F65: 23.04166667 | G65: 5.95 | H65: 25.83333333 | I65: 2.541666667 | BB65: Grand Total Production | BC65: NTotal | BD65: NOrg | BE65: NInorg | BF65: P2O5 | BG65: K2O | BH65: S | BY65: Solid Manure Spreader (variable costs)
D66: Grass 75% Legume 25% Silage | E66: tons | F66: 20.0625 | G66: 5.475 | H66: 23.75 | I66: 2.3125 | BB66: ='Manure Supply'!F21 -> 0 | BC66: =$BB66*BC74 -> 0 | BF66: 0 | BG66: 0 | BH66: 0 | BZ66: In Yard | CA66: In Field
D67: Barley Silage (50% Moisture) | E67: tons | F67: 17.22222222 | G67: 5.888888889 | H67: 13.66666667 | I67: 1.944444444 | BB67: ='Manure Supply'!F23 -> 0 | BC67: =$BB67*BC75*$BC$70 -> 0 | BF67: 0 | BG67: 0 | BH67: 0 | BN67: Incorporation | BO67: Incorporation Lag | BY67: Spreader Hopper Size | BZ67: 250 | CA67: 250
D68: Corn Silage (50% Moisture) | E68: tons | F68: 15.6 | G68: 6.35 | H68: 20.15 | I68: 1.3 | BN68: H.D. Cultivator - Once Over | BO68: Incorporated within 1 day | BY68: Hopper Fill Time | BZ68: 5 | CA68: 5
D69: Alfalfa Hay (20% Moisture) | E69: tons | F69: 46.4 | G69: 11.04 | H69: 48 | I69: 4.8 | BB69: Convert Solid to cu.ft. | BC69: Convert Liquid to lbs | BN69: H.D. Cultivator - Once Over | BO69: Incorporated 1-2 days | BY69: Road Speed | BZ69: 15 | CA69: 15
D70: Clover Hay (20% Moisture) | E70: tons | F70: 43.1 | G70: 11.1 | H70: 40.3 | I70: 2.2 | BB70: 43 | BC70: 17 | BN70: H.D. Cultivator - Once Over | BO70: Incorporated 2-3 days | BY70: Field Speed | BZ70: 4 | CA70: 4
D71: Grass Hay (20% Moisture) | E71: tons | F71: 27.33333333 | G71: 8 | H71: 34.66666667 | I71: 3.333333333 | BB71: =BB66/BB70 -> 0 | BN71: H.D. Cultivator - Once Over | BO71: Incorporated 3-4 days | BY71: Unload Time | BZ71: 8 | CA71: 8
D72: Grass 25% Legume 75% Hay | E72: tons | F72: 41.63333333 | G72: 10.28 | H72: 44.66666667 | I72: 4.433333333 | BN72: H.D. Cultivator - Once Over | BO72: Incorporated 4-5 days | BY72: Field Time | BZ72: =(200/6*200/(5280*BZ70/60))*110% -> 20.83333333 | CA72: =(200/6*200/(5280*CA70/60))*110% -> 20.83333333
D73: Grass 50% Legume 50% Hay | E73: tons | F73: 36.86666667 | G73: 9.52 | H73: 41.33333333 | I73: 4.066666667 | BB73: % Composition | BC73: NTotal | BD73: NOrg | BE73: NInorg | BF73: P2O5 | BG73: K2O | BH73: S | BN73: H.D. Cultivator - Twice Over | BO73: Incorporated within 1 day | BY73: Equip/Labour Rate | BZ73: 50.77 | CA73: 50.77
D74: Grass 75% Legume 25% Hay | E74: tons | F74: 32.1 | G74: 8.76 | H74: 38 | I74: 3.7 | BB74: Solid | BC74: ='Manure Supply'!T21 -> 0 | BD74: =BD61/$BC$61*$BC$74 ->  | BE74: =BE61/$BC$61*$BC$74 ->  | BF74: ='Manure Supply'!V21*2.29 -> 0 | BG74: ='Manure Supply'!X21 -> 0 | BH74: ='Manure Supply'!Z21 -> 0 | BN74: H.D. Cultivator - Twice Over | BO74: Incorporated 1-2 days | BY74: Load Coefficient | BZ74: =BZ68/60*BZ73/BZ67 -> 0.01692333333 | CA74: =CA68/60*CA73/CA67 -> 0.01692333333
D75: Barley Greenfeed (20% Moisture) | E75: tons | F75: 27.55555556 | G75: 9.422222222 | H75: 21.86666667 | I75: 3.111111111 | BB75: Liquid | BC75: ='Manure Supply'!T23 -> 0 | BD75: =BD62/$BC$62*$BC$75 ->  | BE75: =BE62/$BC$62*$BC$75 ->  | BF75: ='Manure Supply'!V23*2.29 -> 0 | BG75: ='Manure Supply'!X23 -> 0 | BH75: ='Manure Supply'!Z23 -> 0 | BN75: H.D. Cultivator - Twice Over | BO75: Incorporated 2-3 days | BY75: Spread Coefficient | BZ75: =BZ72/60*BZ73 -> 17.62847222 | CA75: =CA72/60*CA73 -> 17.62847222
D76: Corn Greenfeed (20% Moisture) | E76: tons | F76: 24.96 | G76: 10.16 | H76: 32.24 | I76: 2.08 | BN76: H.D. Cultivator - Twice Over | BO76: Incorporated 3-4 days | BY76: Travel Coefficient | BZ76: =2/BZ69/BZ67*BZ73 -> 0.02707733333 | CA76: =(2/CA69/CA67*CA73)/3 -> 0.009025777778
BB77: Solid & Liquid NPK in lbs Used in Analysis Calcs (if no Actuals use Calculated) | BN77: H.D. Cultivator - Twice Over | BO77: Incorporated 4-5 days
BB78: Grand Total Production | BC78: NTotal | BD78: NOrg | BE78: NInorg | BF78: P2O5 | BG78: K2O | BH78: S | BN78: Tandem Disc Once Over | BO78: Incorporated within 1 day | BY78: Table Range Name: "CostSolidIncorpVar"
BB79: =IF(BB66>0,BB66,BB53) -> 0 | BC79: =$BB79*BC87 -> 0 | BF79: 0 | BG79: 0 | BH79: 0 | BN79: Tandem Disc Once Over | BO79: Incorporated 1-2 days | BY79: Solid Manure Incorporate (variable costs)
BB80: =IF(BB67>0,BB67,BB54) -> 0 | BC80: =$BB80*BC88*$BC$83 -> 0 | BF80: 0 | BG80: 0 | BH80: 0 | BN80: Tandem Disc Once Over | BO80: Incorporated 2-3 days | BY80: Impliment | BZ80: Cost/Ac
BN81: Tandem Disc Once Over | BO81: Incorporated 3-4 days | BY81: H.D. Cultivator - Once Over | BZ81: 2.41 | CA81: multiply by Acres
BB82: Convert Solid to cu.ft. | BC82: Convert Liquid to lbs | BN82: Tandem Disc Once Over | BO82: Incorporated 4-5 days | BY82: H.D. Cultivator - Twice Over | BZ82: =2*BZ81 -> 4.82 | CA82: multiply by Acres
BB83: 43 | BC83: 17 | BY83: Tandem Disc Once Over | BZ83: 4.5 | CA83: multiply by Acres
BB84: =BB79/BB83 -> 0 | BN84: Manure Source
BN85: Source in Yard - Travel to Source
BB86: % Composition | BC86: NTotal | BD86: NOrg | BE86: NInorg | BF86: P2O5 | BG86: K2O | BH86: S | BN86: Stack in Field - Spread | BY86: Cost Tables - Liquid Manure Application & Incorporation
BB87: Solid | BC87: =IF(BC74>0,BC74,BC61) -> 0 | BD87: =IF(BD74>0,BD74,BD61) ->  | BF87: 0 | BG87: 0 | BH87: 0 | BY87: Table Range Name: "CostInjectionVar"
BB88: Liquid | BC88: =IF(BC75>0,BC75,BC62) -> 0 | BF88: 0 | BG88: 0 | BH88: 0 | BY88: Liquid Manure Injection (variable costs)
BY89: Tank Size | BZ89: 3300 | CA89: gal
BY90: Tank Fill Time | BZ90: 6 | CA90: min
BY91: Road Speed | BZ91: 15 | CA91: mph
BY92: Field Speed | BZ92: 5 | CA92: mph
BY93: Field Time | BZ93: =(200/12*200/(5280*BZ92/60))*110% -> 8.333333333 | CA93: minutes/ac
BY94: Equip/Labour Rate | BZ94: 54.17 | CA94: $/hr
BY95: Load Coefficient | BZ95: =BZ90/60*BZ94/BZ89 -> 0.001641515152 | CA95: multiply by Appl Rate & Acres
BY96: Spread Coefficient | BZ96: =BZ93/60*BZ94 -> 7.523611111 | CA96: multiply by Acres
BY97: Travel Coefficient | BZ97: =2/BZ91/BZ89*BZ94 -> 0.002188686869 | CA97: multiply by Appl Rate, Acres, Distance
BY99: Table Range Name: "CostBroadcastVar"
BY100: Liquid Manure Broadcast (variable costs)
BY101: Tank Size | BZ101: 3300 | CA101: gal
BY102: Tank Fill Time | BZ102: 6 | CA102: min
BY103: Road Speed | BZ103: 15 | CA103: mph
BY104: Field Speed | BZ104: 4 | CA104: mph
BY105: Field Time | BZ105: =(200/45*200/(5280*BZ104/60))*110% -> 2.777777778 | CA105: minutes/ac
BY106: Equip/Labour Rate | BZ106: 50.77 | CA106: $/hr
BY107: Load Coefficient | BZ107: =BZ102/60*BZ106/BZ101 -> 0.001538484848 | CA107: multiply by Appl Rate & Acres
BY108: Spread Coefficient | BZ108: =BZ105/60*BZ106 -> 2.350462963 | CA108: multiply by Acres
BY109: Travel Coefficient | BZ109: =2/BZ103/BZ101*BZ106 -> 0.002051313131 | CA109: multiply by Appl Rate, Acres, Distance
BY111: Table Range Name: "CostLiquidIncorpVar"
BY112: Liquid Manure Incorporate (variable costs)
BY113: Impliment | BZ113: Cost/Ac
BY114: H.D. Cultivator - Once Over | BZ114: 2.41 | CA114: multiply by Acres
BY115: Tandem Disc Once Over | BZ115: 4.5 | CA115: multiply by Acres

Sheet Composition 1 (hidden)
C2: NPK composition of manure
E4: Total N % Range | F4: Total N –Typical | H4: Available N | J4: Crop N | L4: Total P | N4: Total K
B5: Type of Livestock | D5: Moisture
D6: % | F6: lbs/ton | G6: kg/tonne | H6: lbs/ton | I6: kg/tonne | J6: lbs/ton | K6: kg/tonne | N6: lbs/ton | O6: kg/tonne
C7: Feeders
C8: Finishers | D8: 30 – 70 | E8: 0.65 – 1.25 | F8: 20 | G8: 10 | H8: 5.1 | I8: 2.6 | J8: 6.5 | K8: 3.2 | L8: 4.8 | M8: 2.4 | N8: 13.3 | O8: 6.7
B9: Beef | C9: Feeder Calves | D9: -50
C10: Cow w/calf
C11: Cow/bulls
C12: Paved | D12: 50 – 75 | E12: 0.45 –0.80 | F12: 14 | G12: 7 | H12: 5.4 | I12: 2.7 | J12: 5 | K12: 2.5 | L12: 1.7 | M12: 0.9 | N12: 7.5 | O12: 3.8
C13: Feedlot | D13: -65
C14: Free Stall | D14: 85 – 95 | E14: 0.35 – 0.60 | F14: 8 | G14: 4 | H14: 3.6 | I14: 1.8 | J14: 3.3 | K14: 1.7 | L14: 1.7 | M14: 0.9
D15: -92
B16: Dairy | C16: Tie Stall
C17: Loose Housing | D17: 70 –85 | E17: 0.45 – 0.65 | F17: 10 | G17: 5 | H17: 4.2 | I17: 2.1 | J17: 3.8 | K17: 1.9 | L17: 1.7 | M17: 0.9 | N17: 8.3 | O17: 4.2
C18: Replacements | D18: -80
C19: Calves
C20: Liquid | D20: 90 – 99 | E20: 0.20 – 0.55 | F20: 7 | G20: 3.5 | H20: 3.2 | I20: 1.6 | J20: 3.1 | K20: 1.6 | L20: 2.2 | M20: 1.1 | N20: 3.3 | O20: 1.7
B21: Swine | D21: -96
C22: Solid | D22: 40 – 70 | E22: 0.60 – 0.90 | F22: 16 | G22: 8 | H22: 6.4 | I22: 3.2 | J22: 6.2 | K22: 3.1 | L22: 3 | M22: 1.5 | N22: 4.6 | O22: 2.3
D23: -50
C24: Layers (solid) | D24: 30 – 60 | E24: 2.50 – 3.50 | F24: 60 | G24: 30.1 | H24: 40 | I24: 20.1 | J24: 37.7 | K24: 18.9 | L24: 30.8 | M24: 15.4 | N24: 20 | O24: 10
C25: Belt Cage | D25: -40
C28: Layers (solid) | D28: 30 – 60 (50) | E28: 2.00 – 3.00 | F28: 48 | G28: 24.1 | H28: 32 | I28: 16 | J28: 30.1 | K28: 15.1 | L28: 24.6 | M28: 12.3 | N28: 16.6 | O28: 8.3
B29: Poultry | C29: Deep Pit
C30: Layers (liquid) | D30: 85 – 95 | E30: 0.50 – 1.00 | F30: 12 | G30: 6 | H30: 8 | I30: 4 | J30: 7.5 | K30: 3.8 | L30: 5 | M30: 2.5 | N30: 4 | O30: 2
D31: -90
C32: Broilers | D32: 30 – 50 (35) | E32: 3.50 – 4.00 | F32: 68 | G32: 34.1 | H32: 38.9 | I32: 19.5 | J32: 36.8 | K32: 18.4 | L32: 19 | M32: 9.5 | N32: 20 | O32: 10
C33: Pullets
C34: Breeders | D34: 30 – 50 (35) | E34: 1.60 – 2.10 | F34: 60 | G34: 30.1 | H34: 34.3 | I34: 17.2 | J34: 32.4 | K34: 16.3 | L34: 19 | M34: 9.5 | N34: 20 | O34: 10
D35: 30 – 50 (35) | E35: 1.50 – 2.00 | F35: 35 | G35: 17.5 | H35: 20 | I35: 10 | J35: 18.9 | K35: 9.5 | L35: 11.8 | M35: 5.9 | N35: 12.5 | O35: 6.3
B36: Turkey Breeders
C37: Feedlot | D37: 30 – 60 (50) | E37: 1.00 – 2.00 | F37: 30 | G37: 15 | H37: 15 | I37: 7.5 | J37: 14.3 | K37: 7.1 | L37: 4.6 | M37: 2.3 | N37: 20.8 | O37: 10.4
B39: Horses | C39: PMU | D39: 50 – 80 (75) | E39: 0.50 – 0.70 | F39: 12 | G39: 6 | H39: 6 | I39: 3 | J39: 5.7 | K39: 2.9 | L39: 2.6 | M39: 1.3 | N39: 10 | O39: 5
C41: Donkeys | D41: 30 – 70 (50) | E41: 0.80 – 1.10 | F41: 20 | G41: 10 | H41: 10 | I41: 5 | J41: 9.5 | K41: 4.8 | L41: 4.6 | M41: 2.3 | N41: 20.8 | O41: 10.4
C42: Mules
D43: ----- | E43: 1.50 – 2.00 | F43: 36 | G43: 18 | H43: 18 | I43: 9 | J43: 17.1 | K43: 8.6 | L43: 21.7 | M43: 10.9 | N43: 33.3 | O43: 16.7
B44: Fur Farms | C44: Mink
D45: ----- | E45: 0.20 – 0.60 | F45: 8 | G45: 4 | H45: 4 | I45: 2 | J45: 3.8 | K45: 1.9 | L45: 1.7 | M45: 0.9 | N45: 1.7 | O45: 0.8
C46: Fox
D47: ----- | E47: 0.30 – 0.60 | F47: 10 | G47: 5 | H47: 4.2 | I47: 2.1 | J47: 4.6 | K47: 2.3 | L47: 10.4 | M47: 5.2 | N47: 8.3 | O47: 4.2
B48: Rabbits
C49: Elk/Deer | D49: 25 – 50 (35) | E49: 0.50 – .75 | F49: 13 | G49: 6.5 | H49: 3.9 | I49: 2 | J49: 4.5 | K49: 2.2 | L49: 4.3 | M49: 2.2 | N49: 10 | O49: 5
B50: Cervid
B51: Bison | D51: 25 – 50 (35) | E51: 0.50 – .75 | F51: 13 | G51: 6.5 | H51: 3.9 | I51: 2 | J51: 4.5 | K51: 2.2 | L51: 4.3 | M51: 2.2 | N51: 10 | O51: 5
B52: Alpaca/Llama | D52: 25 – 50 (35) | E52: 0.80 – .20 | F52: 20 | G52: 10 | H52: 8 | I52: 4 | J52: 7.2 | K52: 3.6 | L52: 3.9 | M52: 2 | N52: 20.8 | O52: 10.4
C53: Ewes w/lambs | D53: 30 – 65 (50) | E53: 0.65 – 1.25 | F53: 20 | G53: 10 | H53: 8 | I53: 4 | J53: 7.2 | K53: 3.6 | L53: 3.9 | M53: 2 | N53: 20.8 | O53: 10.4
C54: Ewes/Rams
B55: Sheep | C55: Feeders
C56: Lambs | D56: 30 – 65 | E56: 0.50 – | F56: 14 | G56: 70 | H56: 5.6 | I56: 2.8 | J56: 5 | K56: 2.5 | L56: 3.9 | M56: 2 | N56: 20.8 | O56: 10.4
D57: -50 | E57: 1
D58: 30 – 65 (50) | E58: 0.50 – | F58: 12.6 | G58: 6.3 | H58: 5 | I58: 2.5 | J58: 4.5 | K58: 2.3 | L58: 4.6 | M58: 2.3 | N58: 20.8 | O58: 10.4
B59: Goats | E59: 0.75
D60: 25 – 50 (35) | E60: 1.50 – 2.00 | F60: 35 | G60: 17.5 | H60: 20 | I60: 10 | J60: 18.9 | K60: 9.5 | L60: 11.8 | M60: 5.9 | N60: 12.5 | O60: 6.3
B61: Ratite

Sheet NPK Composition Wet & Dry Basis (hidden)
H1: Manure Composition (Moisture, Nitrogen, Phosphorus and Potassum) Wet and Dry Basis
C2: % Moisture | G2: Total N % | K2: Total N –Typical | M2: Total N –Typical | O2: Available N | Q2: Available N | S2: Crop N | U2: Crop N | W2: Total P % | X2: Total P | Z2: Total P | AB2: Total P2O5 | AD2: Available P2O5 | AF2: Total P2O5 | AH2: Available P2O5 | AJ2: Total K % | AK2: Total K | AM2: Total K | AO2: Total K2O | AQ2: Available K2O | AS2: Total K2O | AU2: Available K2O
A3: Type of Livestock | G3: Wet Basis | K3: Wet Basis | M3: Dry Basis | O3: Wet Basis | Q3: Dry Basis | S3: Wet Basis | U3: Dry Basis | W3: Wet Basis | X3: Wet Basis | Z3: Dry Basis | AB3: Wet Basis | AD3: Wet Basis | AF3: Dry Basis | AH3: Dry Basis | AJ3: Wet Basis | AK3: Wet Basis | AM3: Dry Basis | AO3: Wet Basis | AQ3: Wet Basis | AS3: Dry Basis | AU3: Dry Basis
C4: Range | D4: Min | E4: Max | F4: Mean | G4: Range | H4: Min | I4: Max | J4: Mean | K4: lbs/ton | L4: kg/tonne | M4: lbs/ton | N4: kg/tonne | O4: lbs/ton | P4: kg/tonne | Q4: lbs/ton | R4: kg/tonne | S4: lbs/ton | T4: kg/tonne | U4: lbs/ton | V4: kg/tonne | W4: Mean | X4: lbs/ton | Y4: kg/tonne | Z4: lbs/ton | AA4: kg/tonne | AB4: lbs/ton | AC4: kg/tonne | AD4: lbs/ton | AE4: kg/tonne | AF4: lbs/ton | AG4: kg/tonne | AH4: lbs/ton | AI4: kg/tonne | AJ4: Mean | AK4: lbs/ton | AL4: kg/tonne | AM4: lbs/ton | AN4: kg/tonne | AO4: lbs/ton | AP4: kg/tonne | AQ4: lbs/ton | AR4: kg/tonne | AS4: lbs/ton | AT4: kg/tonne | AU4: lbs/ton | AV4: kg/tonne
K5: =K6/2000 -> 0.0095 | M5: =M6/2000 -> 0.019 | O5: =O6/2000 -> 0.00255 | Q5: =Q6/2000 -> 0.0051 | S5: =S6/2000 -> 0.00325 | U5: =U6/2000 -> 0.0065 | X5: =X6/2000 -> 0.0024 | Z5: =Z6/2000 -> 0.0048 | AB5: =AB6/2000 -> 0.005496 | AD5: =AD6/2000 -> 0.002748 | AF5: =AF6/2000 -> 0.010992 | AH5: =AH6/2000 -> 0.005496 | AK5: =AK6/2000 -> 0.0067 | AM5: =AM6/2000 -> 0.0134 | AO5: =AO6/2000 -> 0.00804 | AQ5: =AQ6/2000 -> 0.007236 | AS5: =AS6/2000 -> 0.01608 | AU5: =AU6/2000 -> 0.014472
B6: Feeders | C6: 30 – 70 | D6: 30 | E6: 70 | F6: =AVERAGE(D6:E6) -> 50 | G6: 0.65 – 1.25 | H6: 0.65 | I6: 1.25 | J6: =AVERAGE(H6:I6) -> 0.95 | K6: =($J6/100)*2000 -> 19 | L6: =($J6/100)*1000 -> 9.5 | M6: =($K6)*(100/$F6) -> 38 | N6: =($L6)*(100/$F6) -> 19 | O6: 5.1 | P6: 2.6 | Q6: =($O6)*(100/$F6) -> 10.2 | R6: =($P6)*(100/$F6) -> 5.2 | S6: 6.5 | T6: 3.2 | U6: =($S6)*(100/$F6) -> 13 | V6: =($T6)*(100/$F6) -> 6.4 | W6: 0.24 | X6: =($W6/100)*2000 -> 4.8 | Y6: =($W6/100)*1000 -> 2.4 | Z6: =($W6/100)*2000*(100/$F6) -> 9.6 | AA6: =($W6/100)*1000*(100/$F6) -> 4.8 | AB6: =($W6/100)*2000*2.29 -> 10.992 | AC6: =($W6/100)*1000*2.29 -> 5.496 | AD6: =($W6/100)*2000*2.29*0.5 -> 5.496 | AE6: =($W6/100)*1000*2.29*0.5 -> 2.748 | AF6: =($Z6)*2.29 -> 21.984 | AG6: =($AA6)*2.29 -> 10.992 | AH6: =($AF6)*0.5 -> 10.992 | AI6: =($AG6)*0.5 -> 5.496 | AJ6: 0.67 | AK6: =($AJ6/100)*2000 -> 13.4 | AL6: =($AJ6/100)*1000 -> 6.7 | AM6: =($AJ6/100)*2000*(100/$F6) -> 26.8 | AN6: =($AJ6/100)*1000*(100/$F6) -> 13.4 | AO6: =($AJ6/100)*2000*1.2 -> 16.08 | AP6: =($AJ6/100)*1000*1.2 -> 8.04 | AQ6: =($AO6)*0.9 -> 14.472 | AR6: =($AP6)*0.9 -> 7.236 | AS6: =($AM6)*1.2 -> 32.16 | AT6: =($AN6)*1.2 -> 16.08 | AU6: =($AS6)*0.9 -> 28.944 | AV6: =($AT6)*0.9 -> 14.472
B7: Finishers | C7: 30 – 70 | D7: 30 | E7: 70 | F7: 50 | G7: 0.65 – 1.25 | H7: 0.65 | I7: 1.25 | J7: =AVERAGE(H7:I7) -> 0.95 | K7: 19 | L7: 9.5 | M7: 38 | N7: 19 | O7: 5.1 | P7: 2.6 | Q7: 10.2 | R7: 5.2 | S7: 6.5 | T7: 3.2 | U7: 13 | V7: 6.4 | W7: 0.24 | X7: 4.8 | Y7: 2.4 | Z7: 9.6 | AA7: 4.8 | AB7: 10.992 | AC7: 5.496 | AD7: 5.496 | AE7: 2.748 | AF7: 21.984 | AG7: 10.992 | AH7: 10.992 | AI7: 5.496 | AJ7: 0.67 | AK7: 13.4 | AL7: 6.7 | AM7: 26.8 | AN7: 13.4 | AO7: 16.08 | AP7: 8.04 | AQ7: 14.472 | AR7: 7.236 | AS7: 32.16 | AT7: 16.08 | AU7: 28.944 | AV7: 14.472
A8: Beef | B8: Feeder Calves | C8: 30 – 70 | D8: 30 | E8: 70 | F8: 50 | G8: 0.65 – 1.25 | H8: 0.65 | I8: 1.25 | J8: =AVERAGE(H8:I8) -> 0.95 | K8: 19 | L8: 9.5 | M8: 38 | N8: 19 | O8: 5.1 | P8: 2.6 | Q8: 10.2 | R8: 5.2 | S8: 6.5 | T8: 3.2 | U8: 13 | V8: 6.4 | W8: 0.24 | X8: 4.8 | Y8: 2.4 | Z8: 9.6 | AA8: 4.8 | AB8: 10.992 | AC8: 5.496 | AD8: 5.496 | AE8: 2.748 | AF8: 21.984 | AG8: 10.992 | AH8: 10.992 | AI8: 5.496 | AJ8: 0.67 | AK8: 13.4 | AL8: 6.7 | AM8: 26.8 | AN8: 13.4 | AO8: 16.08 | AP8: 8.04 | AQ8: 14.472 | AR8: 7.236 | AS8: 32.16 | AT8: 16.08 | AU8: 28.944 | AV8: 14.472
B9: Cow w/calf | C9: 30 – 70 | D9: 30 | E9: 70 | F9: 50 | G9: 0.65 – 1.25 | H9: 0.65 | I9: 1.25 | J9: 0.95 | K9: 19 | L9: 9.5 | M9: 38 | N9: 19 | O9: 5.1 | P9: 2.6 | Q9: 10.2 | R9: 5.2 | S9: 6.5 | T9: 3.2 | U9: 13 | V9: 6.4 | W9: 0.24 | X9: 4.8 | Y9: 2.4 | Z9: 9.6 | AA9: 4.8 | AB9: 10.992 | AC9: 5.496 | AD9: 5.496 | AE9: 2.748 | AF9: 21.984 | AG9: 10.992 | AH9: 10.992 | AI9: 5.496 | AJ9: 0.67 | AK9: 13.4 | AL9: 6.7 | AM9: 26.8 | AN9: 13.4 | AO9: 16.08 | AP9: 8.04 | AQ9: 14.472 | AR9: 7.236 | AS9: 32.16 | AT9: 16.08 | AU9: 28.944 | AV9: 14.472
B10: Cow/bulls | C10: 30 – 70 | D10: 30 | E10: 70 | F10: 50 | G10: 0.65 – 1.25 | H10: 0.65 | I10: 1.25 | J10: 0.95 | K10: 19 | L10: 9.5 | M10: 38 | N10: 19 | O10: 5.1 | P10: 2.6 | Q10: 10.2 | R10: 5.2 | S10: 6.5 | T10: 3.2 | U10: 13 | V10: 6.4 | W10: 0.24 | X10: 4.8 | Y10: 2.4 | Z10: 9.6 | AA10: 4.8 | AB10: 10.992 | AC10: 5.496 | AD10: 5.496 | AE10: 2.748 | AF10: 21.984 | AG10: 10.992 | AH10: 10.992 | AI10: 5.496 | AJ10: 0.67 | AK10: 13.4 | AL10: 6.7 | AM10: 26.8 | AN10: 13.4 | AO10: 16.08 | AP10: 8.04 | AQ10: 14.472 | AR10: 7.236 | AS10: 32.16 | AT10: 16.08 | AU10: 28.944 | AV10: 14.472
B11: Paved Feedlot | C11: 50 – 75 | D11: 50 | E11: 75 | F11: 62.5 | G11: 0.45 – 0.80 | H11: 0.45 | I11: 0.8 | J11: 0.625 | K11: 12.5 | L11: 6.25 | M11: 20 | N11: 10 | O11: 5.4 | P11: 2.7 | Q11: 8.64 | R11: 4.32 | S11: 5 | T11: 2.5 | U11: 8 | V11: 4 | W11: 0.09 | X11: 1.8 | Y11: 0.9 | Z11: 2.88 | AA11: 1.44 | AB11: 4.122 | AC11: 2.061 | AD11: 2.061 | AE11: 1.0305 | AF11: 6.5952 | AG11: 3.2976 | AH11: 3.2976 | AI11: 1.6488 | AJ11: 0.38 | AK11: 7.6 | AL11: 3.8 | AM11: 12.16 | AN11: 6.08 | AO11: 9.12 | AP11: 4.56 | AQ11: 8.208 | AR11: 4.104 | AS11: 14.592 | AT11: 7.296 | AU11: 13.1328 | AV11: 6.5664
B12: Free Stall | C12: 85 – 95 | D12: 85 | E12: 95 | F12: 90 | G12: 0.35 – 0.60 | H12: 0.35 | I12: 0.6 | J12: 0.475 | K12: 9.5 | L12: 4.75 | M12: 10.55555556 | N12: 5.277777778 | O12: 3.6 | P12: 1.8 | Q12: 4 | R12: 2 | S12: 3.3 | T12: 1.7 | U12: 3.666666667 | V12: 1.888888889 | W12: 0.09 | X12: 1.8 | Y12: 0.9 | Z12: 2 | AA12: 1 | AB12: 4.122 | AC12: 2.061 | AD12: 2.061 | AE12: 1.0305 | AF12: 4.58 | AG12: 2.29 | AH12: 2.29 | AI12: 1.145
A13: Dairy | B13: Tie Stall | C13: 85 – 95 | D13: 85 | E13: 95 | F13: 90 | G13: 0.35 – 0.60 | H13: 0.35 | I13: 0.6 | J13: 0.475 | K13: 9.5 | L13: 4.75 | M13: 10.55555556 | N13: 5.277777778 | O13: 3.6 | P13: 1.8 | Q13: 4 | R13: 2 | S13: 3.3 | T13: 1.7 | U13: 3.666666667 | V13: 1.888888889 | W13: 0.09 | X13: 1.8 | Y13: 0.9 | Z13: 2 | AA13: 1 | AB13: 4.122 | AC13: 2.061 | AD13: 2.061 | AE13: 1.0305 | AF13: 4.58 | AG13: 2.29 | AH13: 2.29 | AI13: 1.145
B14: Loose Housing | C14: 70 – 85 | D14: 70 | E14: 85 | F14: 77.5 | G14: 0.45 – 0.65 | H14: 0.45 | I14: 0.65 | J14: 0.55 | K14: 11 | L14: 5.5 | M14: 14.19354839 | N14: 7.096774194 | O14: 4.2 | P14: 2.1 | Q14: 5.419354839 | R14: 2.709677419 | S14: 3.8 | T14: 1.9 | U14: 4.903225806 | V14: 2.451612903 | W14: 0.09 | X14: 1.8 | Y14: 0.9 | Z14: 2.322580645 | AA14: 1.161290323 | AB14: 4.122 | AC14: 2.061 | AD14: 2.061 | AE14: 1.0305 | AF14: 5.318709677 | AG14: 2.659354839 | AH14: 2.659354839 | AI14: 1.329677419 | AJ14: 0.42 | AK14: =($AJ14/100)*2000 -> 8.4 | AL14: =($AJ14/100)*1000 -> 4.2 | AM14: =($AJ14/100)*2000*(100/$F14) -> 10.83870968 | AN14: =($AJ14/100)*1000*(100/$F14) -> 5.419354839 | AO14: =($AJ14/100)*2000*1.2 -> 10.08 | AP14: =($AJ14/100)*1000*1.2 -> 5.04 | AQ14: =($AO14)*0.9 -> 9.072 | AR14: =($AP14)*0.9 -> 4.536 | AS14: =($AM14)*1.2 -> 13.00645161 | AT14: =($AN14)*1.2 -> 6.503225806 | AU14: =($AS14)*0.9 -> 11.70580645 | AV14: =($AT14)*0.9 -> 5.852903226
B15: Replacements | C15: 70 – 85 | D15: 70 | E15: 85 | F15: 77.5 | G15: 0.45 – 0.65 | H15: 0.45 | I15: 0.65 | J15: 0.55 | K15: 11 | L15: 5.5 | M15: 14.19354839 | N15: 7.096774194 | O15: 4.2 | P15: 2.1 | Q15: 5.419354839 | R15: 2.709677419 | S15: 3.8 | T15: 1.9 | U15: 4.903225806 | V15: 2.451612903 | W15: 0.09 | X15: 1.8 | Y15: 0.9 | Z15: 2.322580645 | AA15: 1.161290323 | AB15: 4.122 | AC15: 2.061 | AD15: 2.061 | AE15: 1.0305 | AF15: 5.318709677 | AG15: 2.659354839 | AH15: 2.659354839 | AI15: 1.329677419 | AJ15: 0.42 | AK15: 8.4 | AL15: 4.2 | AM15: 10.83870968 | AN15: 5.419354839 | AO15: 10.08 | AP15: 5.04 | AQ15: 9.072 | AR15: 4.536 | AS15: 13.00645161 | AT15: 6.503225806 | AU15: 11.70580645 | AV15: 5.852903226
B16: Calves | C16: 70 – 85 | D16: 70 | E16: 85 | F16: 77.5 | G16: 0.45 – 0.65 | H16: 0.45 | I16: 0.65 | J16: 0.55 | K16: 11 | L16: 5.5 | M16: 14.19354839 | N16: 7.096774194 | O16: 4.2 | P16: 2.1 | Q16: 5.419354839 | R16: 2.709677419 | S16: 3.8 | T16: 1.9 | U16: 4.903225806 | V16: 2.451612903 | W16: 0.09 | X16: 1.8 | Y16: 0.9 | Z16: 2.322580645 | AA16: 1.161290323 | AB16: 4.122 | AC16: 2.061 | AD16: 2.061 | AE16: 1.0305 | AF16: 5.318709677 | AG16: 2.659354839 | AH16: 2.659354839 | AI16: 1.329677419 | AJ16: 0.17 | AK16: 3.4 | AL16: 1.7 | AM16: 4.387096774 | AN16: 2.193548387 | AO16: 4.08 | AP16: 2.04 | AQ16: 3.672 | AR16: 1.836 | AS16: 5.264516129 | AT16: 2.632258065 | AU16: 4.738064516 | AV16: 2.369032258
A17: Swine | B17: Liquid | C17: 90 – 99 | D17: 90 | E17: 99 | F17: 94.5 | G17: 0.20 – 0.55 | H17: 0.2 | I17: 0.55 | J17: 0.375 | K17: 7.5 | L17: 3.75 | M17: 7.936507937 | N17: 3.968253968 | O17: 3.2 | P17: 1.6 | Q17: 3.386243386 | R17: 1.693121693 | S17: 3.1 | T17: 1.6 | U17: 3.28042328 | V17: 1.693121693 | W17: 0.11 | X17: 2.2 | Y17: 1.1 | Z17: 2.328042328 | AA17: 1.164021164 | AB17: 5.038 | AC17: 2.519 | AD17: 2.519 | AE17: 1.2595 | AF17: 5.331216931 | AG17: 2.665608466 | AH17: 2.665608466 | AI17: 1.332804233 | AJ17: 0.17 | AK17: 3.4 | AL17: 1.7 | AM17: 3.597883598 | AN17: 1.798941799 | AO17: 4.08 | AP17: 2.04 | AQ17: 3.672 | AR17: 1.836 | AS17: 4.317460317 | AT17: 2.158730159 | AU17: 3.885714286 | AV17: 1.942857143
B18: Solid | C18: 40 – 70 | D18: 40 | E18: 70 | F18: 55 | G18: 0.60 – 0.90 | H18: 0.6 | I18: 0.9 | J18: 0.75 | K18: 15 | L18: 7.5 | M18: 27.27272727 | N18: 13.63636364 | O18: 6.4 | P18: 3.2 | Q18: 11.63636364 | R18: 5.818181818 | S18: 6.2 | T18: 3.1 | U18: 11.27272727 | V18: 5.636363636 | W18: 0.15 | X18: 3 | Y18: 1.5 | Z18: 5.454545455 | AA18: 2.727272727 | AB18: 6.87 | AC18: 3.435 | AD18: 3.435 | AE18: 1.7175 | AF18: 12.49090909 | AG18: 6.245454545 | AH18: 6.245454545 | AI18: 3.122727273 | AJ18: 0.23 | AK18: 4.6 | AL18: 2.3 | AM18: 8.363636364 | AN18: 4.181818182 | AO18: 5.52 | AP18: 2.76 | AQ18: 4.968 | AR18: 2.484 | AS18: 10.03636364 | AT18: 5.018181818 | AU18: 9.032727273 | AV18: 4.516363636
B19: Layers (solid) Belt Cage | C19: 30 – 60 | D19: 30 | E19: 60 | F19: 45 | G19: 2.50 – 3.50 | H19: 2.5 | I19: 3.5 | J19: 3 | K19: 60 | L19: 30 | M19: 133.3333333 | N19: 66.66666667 | O19: 40 | P19: 20.1 | Q19: 88.88888889 | R19: 44.66666667 | S19: 37.7 | T19: 18.9 | U19: 83.77777778 | V19: 42 | W19: 1.54 | X19: 30.8 | Y19: 15.4 | Z19: 68.44444444 | AA19: 34.22222222 | AB19: 70.532 | AC19: 35.266 | AD19: 35.266 | AE19: 17.633 | AF19: 156.7377778 | AG19: 78.36888889 | AH19: 78.36888889 | AI19: 39.18444444 | AJ19: 1 | AK19: 20 | AL19: 10 | AM19: 44.44444444 | AN19: 22.22222222 | AO19: 24 | AP19: 12 | AQ19: 21.6 | AR19: 10.8 | AS19: 53.33333333 | AT19: 26.66666667 | AU19: 48 | AV19: 24
B20: Layers (solid) Deep Pit | C20: 30 – 60 | D20: 30 | E20: 60 | F20: 45 | G20: 2.00 – 3.00 | H20: 2 | I20: 3 | J20: 2.5 | K20: 50 | L20: 25 | M20: 111.1111111 | N20: 55.55555556 | O20: 32 | P20: 16 | Q20: 71.11111111 | R20: 35.55555556 | S20: 30.1 | T20: 15.1 | U20: 66.88888889 | V20: 33.55555556 | W20: 1.23 | X20: 24.6 | Y20: 12.3 | Z20: 54.66666667 | AA20: 27.33333333 | AB20: 56.334 | AC20: 28.167 | AD20: 28.167 | AE20: 14.0835 | AF20: 125.1866667 | AG20: 62.59333333 | AH20: 62.59333333 | AI20: 31.29666667 | AJ20: 0.83 | AK20: 16.6 | AL20: 8.3 | AM20: 36.88888889 | AN20: 18.44444444 | AO20: 19.92 | AP20: 9.96 | AQ20: 17.928 | AR20: 8.964 | AS20: 44.26666667 | AT20: 22.13333333 | AU20: 39.84 | AV20: 19.92
A21: Poultry | B21: Layers (liquid) | C21: 85 – 95 | D21: 85 | E21: 95 | F21: 90 | G21: 0.50 – 1.00 | H21: 0.5 | I21: 1 | J21: 0.75 | K21: 15 | L21: 7.5 | M21: 16.66666667 | N21: 8.333333333 | O21: 8 | P21: 4 | Q21: 8.888888889 | R21: 4.444444444 | S21: 7.5 | T21: 3.8 | U21: 8.333333333 | V21: 4.222222222 | W21: 0.25 | X21: 5 | Y21: 2.5 | Z21: 5.555555556 | AA21: 2.777777778 | AB21: 11.45 | AC21: 5.725 | AD21: 5.725 | AE21: 2.8625 | AF21: 12.72222222 | AG21: 6.361111111 | AH21: 6.361111111 | AI21: 3.180555556 | AJ21: 0.2 | AK21: 4 | AL21: 2 | AM21: 4.444444444 | AN21: 2.222222222 | AO21: 4.8 | AP21: 2.4 | AQ21: 4.32 | AR21: 2.16 | AS21: 5.333333333 | AT21: 2.666666667 | AU21: 4.8 | AV21: 2.4
B22: Broilers / Pullets | C22: 30 – 50 | D22: 30 | E22: 50 | F22: 40 | G22: 3.50 – 4.00 | H22: 3.5 | I22: 4 | J22: 3.75 | K22: 75 | L22: 37.5 | M22: 187.5 | N22: 93.75 | O22: 38.9 | P22: 19.5 | Q22: 97.25 | R22: 48.75 | S22: 36.8 | T22: 18.4 | U22: 92 | V22: 46 | W22: 0.95 | X22: 19 | Y22: 9.5 | Z22: 47.5 | AA22: 23.75 | AB22: 43.51 | AC22: 21.755 | AD22: 21.755 | AE22: 10.8775 | AF22: 108.775 | AG22: 54.3875 | AH22: 54.3875 | AI22: 27.19375 | AJ22: 1 | AK22: 20 | AL22: 10 | AM22: 50 | AN22: 25 | AO22: 24 | AP22: 12 | AQ22: 21.6 | AR22: 10.8 | AS22: 60 | AT22: 30 | AU22: 54 | AV22: 27
B23: Breeders | C23: 30 – 50 | D23: 30 | E23: 50 | F23: 40 | G23: 1.60 – 2.10 | H23: 1.6 | I23: 2.1 | J23: 1.85 | K23: 37 | L23: 18.5 | M23: 92.5 | N23: 46.25 | O23: 34.3 | P23: 17.2 | Q23: 85.75 | R23: 43 | S23: 32.4 | T23: 16.3 | U23: 81 | V23: 40.75 | W23: 0.95 | X23: 19 | Y23: 9.5 | Z23: 47.5 | AA23: 23.75 | AB23: 43.51 | AC23: 21.755 | AD23: 21.755 | AE23: 10.8775 | AF23: 108.775 | AG23: 54.3875 | AH23: 54.3875 | AI23: 27.19375 | AJ23: 1 | AK23: 20 | AL23: 10 | AM23: 50 | AN23: 25 | AO23: 24 | AP23: 12 | AQ23: 21.6 | AR23: 10.8 | AS23: 60 | AT23: 30 | AU23: 54 | AV23: 27
A24: Turkey | B24: Breeders | C24: 30 – 50 | D24: 30 | E24: 50 | F24: 40 | G24: 1.50 – 2.00 | H24: 1.5 | I24: 2 | J24: 1.75 | K24: 35 | L24: 17.5 | M24: 87.5 | N24: 43.75 | O24: 20 | P24: 10 | Q24: 50 | R24: 25 | S24: 18.9 | T24: 9.5 | U24: 47.25 | V24: 23.75 | W24: 0.59 | X24: 11.8 | Y24: 5.9 | Z24: 29.5 | AA24: 14.75 | AB24: 27.022 | AC24: 13.511 | AD24: 13.511 | AE24: 6.7555 | AF24: 67.555 | AG24: 33.7775 | AH24: 33.7775 | AI24: 16.88875 | AJ24: 0.63 | AK24: 12.6 | AL24: 6.3 | AM24: 31.5 | AN24: 15.75 | AO24: 15.12 | AP24: 7.56 | AQ24: 13.608 | AR24: 6.804 | AS24: 37.8 | AT24: 18.9 | AU24: 34.02 | AV24: 17.01
B25: Feedlot | C25: 30 – 60 | D25: 30 | E25: 60 | F25: 45 | G25: 1.00 – 2.00 | H25: 1 | I25: 2 | J25: 1.5 | K25: 30 | L25: 15 | M25: 66.66666667 | N25: 33.33333333 | O25: 15 | P25: 7.5 | Q25: 33.33333333 | R25: 16.66666667 | S25: 14.3 | T25: 7.1 | U25: 31.77777778 | V25: 15.77777778 | W25: 0.23 | X25: 4.6 | Y25: 2.3 | Z25: 10.22222222 | AA25: 5.111111111 | AB25: 10.534 | AC25: 5.267 | AD25: 5.267 | AE25: 2.6335 | AF25: 23.40888889 | AG25: 11.70444444 | AH25: 11.70444444 | AI25: 5.852222222 | AJ25: 1.04 | AK25: 20.8 | AL25: 10.4 | AM25: 46.22222222 | AN25: 23.11111111 | AO25: 24.96 | AP25: 12.48 | AQ25: 22.464 | AR25: 11.232 | AS25: 55.46666667 | AT25: 27.73333333 | AU25: 49.92 | AV25: 24.96
A26: Horses | B26: PMU | C26: 50 – 80 | D26: 50 | E26: 80 | F26: 65 | G26: 0.50 – 0.70 | H26: 0.5 | I26: 0.7 | J26: 0.6 | K26: 12 | L26: 6 | M26: 18.46153846 | N26: 9.230769231 | O26: 6 | P26: 3 | Q26: 9.230769231 | R26: 4.615384615 | S26: 5.7 | T26: 2.9 | U26: 8.769230769 | V26: 4.461538462 | W26: 0.13 | X26: 2.6 | Y26: 1.3 | Z26: 4 | AA26: 2 | AB26: 5.954 | AC26: 2.977 | AD26: 2.977 | AE26: 1.4885 | AF26: 9.16 | AG26: 4.58 | AH26: 4.58 | AI26: 2.29 | AJ26: 0.5 | AK26: 10 | AL26: 5 | AM26: 15.38461538 | AN26: 7.692307692 | AO26: 12 | AP26: 6 | AQ26: 10.8 | AR26: 5.4 | AS26: 18.46153846 | AT26: 9.230769231 | AU26: 16.61538462 | AV26: 8.307692308
B27: Donkeys | C27: 30 – 70 | D27: 30 | E27: 70 | F27: 50 | G27: 0.80 – 1.10 | H27: 0.8 | I27: 1.1 | J27: 0.95 | K27: 19 | L27: 9.5 | M27: 38 | N27: 19 | O27: 10 | P27: 5 | Q27: 20 | R27: 10 | S27: 9.5 | T27: 4.8 | U27: 19 | V27: 9.6 | W27: 0.23 | X27: 4.6 | Y27: 2.3 | Z27: 9.2 | AA27: 4.6 | AB27: 10.534 | AC27: 5.267 | AD27: 5.267 | AE27: 2.6335 | AF27: 21.068 | AG27: 10.534 | AH27: 10.534 | AI27: 5.267 | AJ27: 1.04 | AK27: 20.8 | AL27: 10.4 | AM27: 41.6 | AN27: 20.8 | AO27: 24.96 | AP27: 12.48 | AQ27: 22.464 | AR27: 11.232 | AS27: 49.92 | AT27: 24.96 | AU27: 44.928 | AV27: 22.464
B28: Mules | C28: 30 – 70 | D28: 30 | E28: 70 | F28: 50 | G28: 0.80 – 1.10 | H28: 0.8 | I28: 1.1 | J28: 0.95 | K28: 19 | L28: 9.5 | M28: 38 | N28: 19 | O28: 10 | P28: 5 | Q28: 20 | R28: 10 | S28: 9.5 | T28: 4.8 | U28: 19 | V28: 9.6 | W28: 0.23 | X28: 4.6 | Y28: 2.3 | Z28: 9.2 | AA28: 4.6 | AB28: 10.534 | AC28: 5.267 | AD28: 5.267 | AE28: 2.6335 | AF28: 21.068 | AG28: 10.534 | AH28: 10.534 | AI28: 5.267 | AJ28: 1.04 | AK28: 20.8 | AL28: 10.4 | AM28: 41.6 | AN28: 20.8 | AO28: 24.96 | AP28: 12.48 | AQ28: 22.464 | AR28: 11.232 | AS28: 49.92 | AT28: 24.96 | AU28: 44.928 | AV28: 22.464
A29: Fur Farms | B29: Mink | G29: 1.50 – 2.00 | H29: 1.5 | I29: 2 | J29: 1.75 | K29: 35 | L29: 17.5 | O29: 18 | P29: 9 | S29: 17.1 | T29: 8.6 | W29: 1.09 | X29: 21.8 | Y29: 10.9 | AB29: 49.922 | AC29: 24.961 | AD29: 24.961 | AE29: 12.4805 | AF29: 0 | AG29: 0 | AH29: 0 | AI29: 0 | AJ29: 1.67 | AK29: 33.4 | AL29: 16.7 | AO29: 40.08 | AP29: 20.04 | AQ29: 36.072 | AR29: 18.036
B30: Fox | G30: 0.20 – 0.60 | H30: 0.2 | I30: 0.6 | J30: 0.4 | K30: 8 | L30: 4 | O30: 4 | P30: 2 | S30: 3.8 | T30: 1.9 | W30: 0.09 | X30: 1.8 | Y30: 0.9 | AB30: 4.122 | AC30: 2.061 | AD30: 2.061 | AE30: 1.0305 | AF30: 0 | AG30: 0 | AH30: 0 | AI30: 0 | AJ30: 0.08 | AK30: 1.6 | AL30: 0.8 | AO30: 1.92 | AP30: 0.96 | AQ30: 1.728 | AR30: 0.864
A31: Rabbits | G31: 0.30 – 0.60 | H31: 0.3 | I31: 0.6 | J31: 0.45 | K31: 9 | L31: 4.5 | O31: 4.2 | P31: 2.1 | S31: 4.6 | T31: 2.3 | W31: 0.52 | X31: 10.4 | Y31: 5.2 | AB31: 23.816 | AC31: 11.908 | AD31: 11.908 | AE31: 5.954 | AF31: 0 | AG31: 0 | AH31: 0 | AI31: 0 | AJ31: 0.42 | AK31: 8.4 | AL31: 4.2 | AO31: 10.08 | AP31: 5.04 | AQ31: 9.072 | AR31: 4.536
A32: Cervid | B32: Elk/Deer | C32: 25 – 50 | D32: 25 | E32: 50 | F32: =AVERAGE(D32:E32) -> 37.5 | G32: 0.50 – 0.75 | H32: 0.5 | I32: 0.75 | J32: 0.625 | K32: 12.5 | L32: 6.25 | M32: =($K32)*(100/$F32) -> 33.33333333 | N32: =($L32)*(100/$F32) -> 16.66666667 | O32: 3.9 | P32: 2 | Q32: =($O32)*(100/$F32) -> 10.4 | R32: =($P32)*(100/$F32) -> 5.333333333 | S32: 4.5 | T32: 2.2 | U32: =($S32)*(100/$F32) -> 12 | V32: =($T32)*(100/$F32) -> 5.866666667 | W32: 0.22 | X32: 4.4 | Y32: 2.2 | Z32: =($W32/100)*2000*(100/$F32) -> 11.73333333 | AA32: =($W32/100)*1000*(100/$F32) -> 5.866666667 | AB32: 10.076 | AC32: 5.038 | AD32: 5.038 | AE32: 2.519 | AF32: 26.86933333 | AG32: 13.43466667 | AH32: 13.43466667 | AI32: 6.717333333 | AJ32: 0.5 | AK32: 10 | AL32: 5 | AM32: =($AJ32/100)*2000*(100/$F32) -> 26.66666667 | AN32: =($AJ32/100)*1000*(100/$F32) -> 13.33333333 | AO32: 12 | AP32: 6 | AQ32: 10.8 | AR32: 5.4 | AS32: =($AM32)*1.2 -> 32 | AT32: =($AN32)*1.2 -> 16 | AU32: =($AS32)*0.9 -> 28.8 | AV32: =($AT32)*0.9 -> 14.4
A33: Bison | C33: 25 – 50 | D33: 25 | E33: 50 | F33: 37.5 | G33: 0.50 – 0.75 | H33: 0.5 | I33: 0.75 | J33: 0.625 | K33: 12.5 | L33: 6.25 | M33: 33.33333333 | N33: 16.66666667 | O33: 3.9 | P33: 2 | Q33: 10.4 | R33: 5.333333333 | S33: 4.5 | T33: 2.2 | U33: 12 | V33: 5.866666667 | W33: 0.22 | X33: 4.4 | Y33: 2.2 | Z33: 11.73333333 | AA33: 5.866666667 | AB33: 10.076 | AC33: 5.038 | AD33: 5.038 | AE33: 2.519 | AF33: 26.86933333 | AG33: 13.43466667 | AH33: 13.43466667 | AI33: 6.717333333 | AJ33: 0.5 | AK33: 10 | AL33: 5 | AM33: 26.66666667 | AN33: 13.33333333 | AO33: 12 | AP33: 6 | AQ33: 10.8 | AR33: 5.4 | AS33: 32 | AT33: 16 | AU33: 28.8 | AV33: 14.4
A34: Alpaca/Llama | C34: 25 – 50 | D34: 25 | E34: 50 | F34: 37.5 | G34: 0.80 – 0.20 | H34: 0.8 | I34: 0.2 | J34: 0.5 | K34: 10 | L34: 5 | M34: 26.66666667 | N34: 13.33333333 | O34: 8 | P34: 4 | Q34: 21.33333333 | R34: 10.66666667 | S34: 7.2 | T34: 3.6 | U34: 19.2 | V34: 9.6 | W34: 0.2 | X34: 4 | Y34: 2 | Z34: 10.66666667 | AA34: 5.333333333 | AB34: 9.16 | AC34: 4.58 | AD34: 4.58 | AE34: 2.29 | AF34: 24.42666667 | AG34: 12.21333333 | AH34: 12.21333333 | AI34: 6.106666667 | AJ34: 1.04 | AK34: 20.8 | AL34: 10.4 | AM34: 55.46666667 | AN34: 27.73333333 | AO34: 24.96 | AP34: 12.48 | AQ34: 22.464 | AR34: 11.232 | AS34: 66.56 | AT34: 33.28 | AU34: 59.904 | AV34: 29.952
B35: Ewes w/lambs | C35: 30 – 65 | D35: 30 | E35: 65 | F35: 47.5 | G35: 0.65 – 1.25 | H35: 0.65 | I35: 1.25 | J35: 0.95 | K35: 19 | L35: 9.5 | M35: 40 | N35: 20 | O35: 8 | P35: 4 | Q35: 16.84210526 | R35: 8.421052632 | S35: 7.2 | T35: 3.6 | U35: 15.15789474 | V35: 7.578947368 | W35: 0.2 | X35: 4 | Y35: 2 | Z35: 8.421052632 | AA35: 4.210526316 | AB35: 9.16 | AC35: 4.58 | AD35: 4.58 | AE35: 2.29 | AF35: 19.28421053 | AG35: 9.642105263 | AH35: 9.642105263 | AI35: 4.821052632 | AJ35: 1.04 | AK35: 20.8 | AL35: 10.4 | AM35: 43.78947368 | AN35: 21.89473684 | AO35: 24.96 | AP35: 12.48 | AQ35: 22.464 | AR35: 11.232 | AS35: 52.54736842 | AT35: 26.27368421 | AU35: 47.29263158 | AV35: 23.64631579
A36: Sheep | B36: Ewes/Rams | C36: 30 – 65 | D36: 30 | E36: 65 | F36: 47.5 | G36: 0.65 – 1.25 | H36: 0.65 | I36: 1.25 | J36: 0.95 | K36: 19 | L36: 9.5 | M36: 40 | N36: 20 | O36: 8 | P36: 4 | Q36: 16.84210526 | R36: 8.421052632 | S36: 7.2 | T36: 3.6 | U36: 15.15789474 | V36: 7.578947368 | W36: 0.2 | X36: 4 | Y36: 2 | Z36: 8.421052632 | AA36: 4.210526316 | AB36: 9.16 | AC36: 4.58 | AD36: 4.58 | AE36: 2.29 | AF36: 19.28421053 | AG36: 9.642105263 | AH36: 9.642105263 | AI36: 4.821052632 | AJ36: 1.04 | AK36: 20.8 | AL36: 10.4 | AM36: 43.78947368 | AN36: 21.89473684 | AO36: 24.96 | AP36: 12.48 | AQ36: 22.464 | AR36: 11.232 | AS36: 52.54736842 | AT36: 26.27368421 | AU36: 47.29263158 | AV36: 23.64631579
B37: Feeders | C37: 30 – 65 | D37: 30 | E37: 65 | F37: 47.5 | G37: 0.65 – 1.25 | H37: 0.65 | I37: 1.25 | J37: 0.95 | K37: 19 | L37: 9.5 | M37: 40 | N37: 20 | O37: 8 | P37: 4 | Q37: 16.84210526 | R37: 8.421052632 | S37: 7.2 | T37: 3.6 | U37: 15.15789474 | V37: 7.578947368 | W37: 0.2 | X37: 4 | Y37: 2 | Z37: 8.421052632 | AA37: 4.210526316 | AB37: 9.16 | AC37: 4.58 | AD37: 4.58 | AE37: 2.29 | AF37: 19.28421053 | AG37: 9.642105263 | AH37: 9.642105263 | AI37: 4.821052632 | AJ37: 1.04 | AK37: 20.8 | AL37: 10.4 | AM37: 43.78947368 | AN37: 21.89473684 | AO37: 24.96 | AP37: 12.48 | AQ37: 22.464 | AR37: 11.232 | AS37: 52.54736842 | AT37: 26.27368421 | AU37: 47.29263158 | AV37: 23.64631579
B38: Lambs | C38: 30 – 65 | D38: 30 | E38: 65 | F38: 47.5 | G38: 0.50 – 1.00 | H38: 0.5 | I38: 1 | J38: 0.75 | K38: 15 | L38: 7.5 | M38: 31.57894737 | N38: 15.78947368 | O38: 5.6 | P38: 2.8 | Q38: 11.78947368 | R38: 5.894736842 | S38: 5 | T38: 2.5 | U38: 10.52631579 | V38: 5.263157895 | W38: 0.2 | X38: 4 | Y38: 2 | Z38: 8.421052632 | AA38: 4.210526316 | AB38: 9.16 | AC38: 4.58 | AD38: 4.58 | AE38: 2.29 | AF38: 19.28421053 | AG38: 9.642105263 | AH38: 9.642105263 | AI38: 4.821052632 | AJ38: 1.04 | AK38: 20.8 | AL38: 10.4 | AM38: 43.78947368 | AN38: 21.89473684 | AO38: 24.96 | AP38: 12.48 | AQ38: 22.464 | AR38: 11.232 | AS38: 52.54736842 | AT38: 26.27368421 | AU38: 47.29263158 | AV38: 23.64631579
A39: Goats | C39: 30 – 65 | D39: 30 | E39: 65 | F39: 47.5 | G39: 0.50 – 0.75 | H39: 0.5 | I39: 0.75 | J39: 0.625 | K39: 12.5 | L39: 6.25 | M39: 26.31578947 | N39: 13.15789474 | O39: 5 | P39: 2.5 | Q39: 10.52631579 | R39: 5.263157895 | S39: 4.5 | T39: 2.3 | U39: 9.473684211 | V39: 4.842105263 | W39: 0.2 | X39: 4 | Y39: 2 | Z39: 8.421052632 | AA39: 4.210526316 | AB39: 9.16 | AC39: 4.58 | AD39: 4.58 | AE39: 2.29 | AF39: 19.28421053 | AG39: 9.642105263 | AH39: 9.642105263 | AI39: 4.821052632 | AJ39: 1.04 | AK39: 20.8 | AL39: 10.4 | AM39: 43.78947368 | AN39: 21.89473684 | AO39: 24.96 | AP39: 12.48 | AQ39: 22.464 | AR39: 11.232 | AS39: 52.54736842 | AT39: 26.27368421 | AU39: 47.29263158 | AV39: 23.64631579
A40: Ratite | C40: 25 – 50 | D40: 25 | E40: 50 | F40: 37.5 | G40: 1.50 – 2.00 | H40: 1.5 | I40: 2 | J40: 1.75 | K40: 35 | L40: 17.5 | M40: 93.33333333 | N40: 46.66666667 | O40: 20 | P40: 10 | Q40: 53.33333333 | R40: 26.66666667 | S40: 18.9 | T40: 9.5 | U40: 50.4 | V40: 25.33333333 | W40: 0.59 | X40: 11.8 | Y40: 5.9 | Z40: 31.46666667 | AA40: 15.73333333 | AB40: 27.022 | AC40: 13.511 | AD40: 13.511 | AE40: 6.7555 | AF40: 72.05866667 | AG40: 36.02933333 | AH40: 36.02933333 | AI40: 18.01466667 | AJ40: 0.63 | AK40: 12.6 | AL40: 6.3 | AM40: 33.6 | AN40: 16.8 | AO40: 15.12 | AP40: 7.56 | AQ40: 13.608 | AR40: 6.804 | AS40: 40.32 | AT40: 20.16 | AU40: 36.288 | AV40: 18.144

Sheet Uptake Imperial (hidden)
B1: Yield | D1: N Uptake lb/Unit | G1: P2O5 Uptake lb/Unit | J1: K2O Uptake lb/Unit | M1: S Uptake lb/Unit
A2: Crop | B2: Units | C2: Min | D2: Max | E2: Mean | F2: Min | G2: Max | H2: Mean | I2: Min | J2: Max | K2: Mean | L2: Min | M2: Max | N2: Mean
A3: Spring Wheat | B3: bu | C3: 1.9 | D3: 2.325 | E3: 2.1125 | F3: 0.725 | G3: 0.875 | H3: 0.8 | I3: 1.625 | J3: 2 | K3: 1.8125 | L3: 0.2 | M3: 0.25 | N3: 0.225
A4: Winter Wheat | B4: bu | C4: 1.22 | D4: 1.48 | E4: 1.35 | F4: 0.54 | G4: 0.68 | H4: 0.61 | I4: 1.28 | J4: 1.56 | K4: 1.42 | L4: 0.18 | M4: 0.22 | N4: 0.2
A5: Barley | B5: bu | C5: 1.25 | D5: 1.525 | E5: 1.3875 | F5: 0.5 | G5: 0.6125 | H5: 0.55625 | I5: 1.2 | J5: 1.4625 | K5: 1.33125 | L5: 0.15 | M5: 0.175 | N5: 0.1625
A6: Oats | B6: bu | C6: 0.96 | D6: 1.17 | E6: 1.065 | F6: 0.36 | G6: 0.45 | H6: 0.405 | I6: 1.31 | J6: 1.6 | K6: 1.455 | L6: 0.12 | M6: 0.14 | N6: 0.13
A7: Rye | B7: bu | C7: 1.509090909 | D7: 1.836363636 | E7: 1.672727273 | F7: 0.7454545455 | G7: 0.9272727273 | H7: 0.8363636364 | I7: 2.127272727 | J7: 2.618181818 | K7: 2.372727273 | L7: 0.2545454545 | M7: 0.3090909091 | N7: 0.2818181818
A8: Corn | B8: bu | C8: 1.38 | D8: 1.68 | E8: 1.53 | F8: 0.57 | G8: 0.69 | H8: 0.63 | I8: 1.16 | J8: 1.41 | K8: 1.285 | L8: 0.13 | M8: 0.16 | N8: 0.145
A9: Canola | B9: bu | C9: 2.857142857 | D9: 3.514285714 | E9: 3.185714286 | F9: 1.314285714 | G9: 1.628571429 | H9: 1.471428571 | I9: 2.085714286 | J9: 2.542857143 | K9: 2.314285714 | L9: 0.4857142857 | M9: 0.6 | N9: 0.5428571429
A10: Flax | B10: bu | C10: 2.583333333 | D10: 3.166666667 | E10: 2.875 | F10: 0.75 | G10: 0.9166666667 | H10: 0.8333333333 | I10: 1.625 | J10: 2 | K10: 1.8125 | L10: 0.5 | M10: 0.625 | N10: 0.5625
A11: Sunflower | B11: bu | C11: 1.34 | D11: 1.64 | E11: 1.49 | F11: 0.46 | G11: 0.56 | H11: 0.51 | I11: 0.66 | J11: 0.88 | K11: 0.77 | L11: 0.16 | M11: 0.18 | N11: 0.17
A12: Peas | B12: bu | C12: 2.76 | D12: 3.36 | E12: 3.06 | F12: 0.76 | G12: 0.92 | H12: 0.84 | I12: 2.46 | J12: 3 | K12: 2.73 | L12: 0.22 | M12: 0.28 | N12: 0.25
A13: Lentils | B13: bu | C13: 2.733333333 | D13: 3.366666667 | E13: 3.05 | F13: 0.7333333333 | G13: 0.9 | H13: 0.8166666667 | I13: 2.3 | J13: 2.8 | K13: 2.55 | L13: 0.2666666667 | M13: 0.3333333333 | N13: 0.3
A14: Fababeans | B14: bu | C14: 5.14 | D14: 6.28 | E14: 5.71 | F14: 1.78 | G14: 2.16 | H14: 1.97 | I14: 4.58 | J14: 5.6 | K14: 5.09 | L14: 0.24 | M14: 0.3 | N14: 0.27
A15: Sugarbeets | B15: tons | C15: 8.636363636 | D15: 10.54545455 | E15: 9.590909091 | F15: 2.772727273 | G15: 3.409090909 | H15: 3.090909091 | I15: 15.77272727 | J15: 19.27272727 | K15: 17.52272727 | L15: 1.363636364 | M15: 1.636363636 | N15: 1.5
A16: Potatoes | B16: tons | C16: 10.25 | D16: 12.55 | E16: 11.4 | F16: 3 | G16: 3.65 | H16: 3.325 | I16: 13.4 | J16: 16.35 | K16: 14.875 | L16: 0.8 | M16: 1 | N16: 0.9
A17: Alfalfa (Dry Matter) | B17: tons | C17: 52.2 | D17: 63.8 | E17: 58 | F17: 12.4 | G17: 15.2 | H17: 13.8 | I17: 54 | J17: 66 | K17: 60 | L17: 5.4 | M17: 6.6 | N17: 6
A18: Clover (Dry Matter) | B18: tons | C18: 48.5 | D18: 59.25 | E18: 53.875 | F18: 12.5 | G18: 15.25 | H18: 13.875 | I18: 45.25 | J18: 55.5 | K18: 50.375 | L18: 2.5 | M18: 3 | N18: 2.75
A19: Grass (Dry Matter) | B19: tons | C19: 30.66666667 | D19: 37.66666667 | E19: 34.16666667 | F19: 9 | G19: 11 | H19: 10 | I19: 39 | J19: 47.66666667 | K19: 43.33333333 | L19: 3.666666667 | M19: 4.666666667 | N19: 4.166666667
A20: Grass 25% Legume 75% (Dry Matter) | B20: tons | C20: =(C19*0.25) + (C17*0.75) -> 46.81666667 | D20: =(D19*0.25) + (D17*0.75) -> 57.26666667 | E20: 52.04166667 | F20: 11.55 | G20: 14.15 | H20: 12.85 | I20: 50.25 | J20: 61.41666667 | K20: 55.83333333 | L20: 4.966666667 | M20: 6.116666667 | N20: 5.541666667
A21: Grass 50% Legume 50% (Dry Matter) | B21: tons | C21: =(C19*0.5) + (C17*0.5) -> 41.43333333 | D21: =(D19*0.5) + (D17*0.5) -> 50.73333333 | E21: 46.08333333 | F21: 10.7 | G21: 13.1 | H21: 11.9 | I21: 46.5 | J21: 56.83333333 | K21: 51.66666667 | L21: 4.533333333 | M21: 5.633333333 | N21: 5.083333333
A22: Grass 75% Legume 25% (Dry Matter) | B22: tons | C22: =(C19*0.75) + (C17*0.25) -> 36.05 | D22: =(D19*0.75) + (D17*0.25) -> 44.2 | E22: 40.125 | F22: 9.85 | G22: 12.05 | H22: 10.95 | I22: 42.75 | J22: 52.25 | K22: 47.5 | L22: 4.1 | M22: 5.15 | N22: 4.625
A23: Barley Silage (Dry Matter) | B23: tons | C23: 28.88888889 | D23: 40 | E23: 34.44444444 | F23: 10.22222222 | G23: 13.33333333 | H23: 11.77777778 | I23: 25.33333333 | J23: 29.33333333 | K23: 27.33333333 | L23: 3.111111111 | M23: 4.666666667 | N23: 3.888888889
A24: Corn Silage (Dry Matter) | B24: tons | C24: 28 | D24: 34.4 | E24: 31.2 | F24: 11.4 | G24: 14 | H24: 12.7 | I24: 36.2 | J24: 44.4 | K24: 40.3 | L24: 2.4 | M24: 2.8 | N24: 2.6
A25: Alfalfa Silage (50% Moisture) | B25: tons | C25: =C17*0.5 -> 26.1 | D25: =D17*0.5 -> 31.9 | E25: 29 | F25: 6.2 | G25: 7.6 | H25: 6.9 | I25: 27 | J25: 33 | K25: 30 | L25: 2.7 | M25: 3.3 | N25: 3
A26: Clover Silage (50% Moisture) | B26: tons | C26: =C18*0.5 -> 24.25 | D26: 29.625 | E26: 26.9375 | F26: 6.25 | G26: 7.625 | H26: 6.9375 | I26: 22.625 | J26: 27.75 | K26: 25.1875 | L26: 1.25 | M26: 1.5 | N26: 1.375
A27: Grass Silage (50% Moisture) | B27: tons | C27: 15.33333333 | D27: 18.83333333 | E27: 17.08333333 | F27: 4.5 | G27: 5.5 | H27: 5 | I27: 19.5 | J27: 23.83333333 | K27: 21.66666667 | L27: 1.833333333 | M27: 2.333333333 | N27: 2.083333333
A28: Grass 25% Legume 75% Silage (50% Moisture) | B28: tons | C28: 23.40833333 | D28: 28.63333333 | E28: 26.02083333 | F28: 5.775 | G28: 7.075 | H28: 6.425 | I28: 25.125 | J28: 30.70833333 | K28: 27.91666667 | L28: 2.483333333 | M28: 3.058333333 | N28: 2.770833333
A29: Grass 50% Legume 50% Silage (50% Moisture) | B29: tons | C29: 20.71666667 | D29: 25.36666667 | E29: 23.04166667 | F29: 5.35 | G29: 6.55 | H29: 5.95 | I29: 23.25 | J29: 28.41666667 | K29: 25.83333333 | L29: 2.266666667 | M29: 2.816666667 | N29: 2.541666667
A30: Grass 75% Legume 25% Silage (50% Moisture) | B30: tons | C30: 18.025 | D30: 22.1 | E30: 20.0625 | F30: 4.925 | G30: 6.025 | H30: 5.475 | I30: 21.375 | J30: 26.125 | K30: 23.75 | L30: 2.05 | M30: 2.575 | N30: 2.3125
A31: Barley Silage (50% Moisture) | B31: tons | C31: 14.44444444 | D31: 20 | E31: 17.22222222 | F31: 5.111111111 | G31: 6.666666667 | H31: 5.888888889 | I31: 12.66666667 | J31: 14.66666667 | K31: 13.66666667 | L31: 1.555555556 | M31: 2.333333333 | N31: 1.944444444
A32: Corn Silage (50% Moisture) | B32: tons | C32: 14 | D32: 17.2 | E32: 15.6 | F32: 5.7 | G32: 7 | H32: 6.35 | I32: 18.1 | J32: 22.2 | K32: 20.15 | L32: 1.2 | M32: 1.4 | N32: 1.3
A33: Alfalfa Hay (20% Moisture) | B33: tons | C33: =C17*0.8 -> 41.76 | D33: =D17*0.8 -> 51.04 | E33: 46.4 | F33: 9.92 | G33: 12.16 | H33: 11.04 | I33: 43.2 | J33: 52.8 | K33: 48 | L33: 4.32 | M33: 5.28 | N33: 4.8
A34: Clover Hay (20% Moisture) | B34: tons | C34: =C18*0.8 -> 38.8 | D34: 47.4 | E34: 43.1 | F34: 10 | G34: 12.2 | H34: 11.1 | I34: 36.2 | J34: 44.4 | K34: 40.3 | L34: 2 | M34: 2.4 | N34: 2.2
A35: Grass Hay (20% Moisture) | B35: tons | C35: 24.53333333 | D35: 30.13333333 | E35: 27.33333333 | F35: 7.2 | G35: 8.8 | H35: 8 | I35: 31.2 | J35: 38.13333333 | K35: 34.66666667 | L35: 2.933333333 | M35: 3.733333333 | N35: 3.333333333
A36: Grass 25% Legume 75% Hay (20% Moisture) | B36: tons | C36: 37.45333333 | D36: 45.81333333 | E36: 41.63333333 | F36: 9.24 | G36: 11.32 | H36: 10.28 | I36: 40.2 | J36: 49.13333333 | K36: 44.66666667 | L36: 3.973333333 | M36: 4.893333333 | N36: 4.433333333
A37: Grass 50% Legume 50% Hay (20% Moisture) | B37: tons | C37: 33.14666667 | D37: 40.58666667 | E37: 36.86666667 | F37: 8.56 | G37: 10.48 | H37: 9.52 | I37: 37.2 | J37: 45.46666667 | K37: 41.33333333 | L37: 3.626666667 | M37: 4.506666667 | N37: 4.066666667
A38: Grass 75% Legume 25% Hay (20% Moisture) | B38: tons | C38: 28.84 | D38: 35.36 | E38: 32.1 | F38: 7.88 | G38: 9.64 | H38: 8.76 | I38: 34.2 | J38: 41.8 | K38: 38 | L38: 3.28 | M38: 4.12 | N38: 3.7
A39: Barley Greenfeed (20% Moisture) | B39: tons | C39: 23.11111111 | D39: 32 | E39: 27.55555556 | F39: 8.177777778 | G39: 10.66666667 | H39: 9.422222222 | I39: 20.26666667 | J39: 23.46666667 | K39: 21.86666667 | L39: 2.488888889 | M39: 3.733333333 | N39: 3.111111111
A40: Corn Greenfeed (20% Moisture) | B40: tons | C40: 22.4 | D40: 27.52 | E40: 24.96 | F40: 9.12 | G40: 11.2 | H40: 10.16 | I40: 28.96 | J40: 35.52 | K40: 32.24 | L40: 1.92 | M40: 2.24 | N40: 2.08
